﻿Body Name,Supp ID,,Supplier Name,Service Area Category,Supp Grp,Period,Invoice Date,TT,Unique Invoice Reference,,Inv Amount,Account,Expenditure Description,Cost C,Cost Centre Name,Posted Amount
Nottinghamshire Fire and Rescue Service,101782,Derbyshire Fire Authority,Derbyshire Fire Authority,Operational Responses,4,202312,13/02/2023,P6,9105259,"-36,517.26 ","36,517.26 ",1001,Admin Pay,2005,Fire Control,"7,155.02 "
Nottinghamshire Fire and Rescue Service,101782,Derbyshire Fire Authority,Derbyshire Fire Authority,Operational Responses,4,202312,13/02/2023,P6,9105272,"-117,706.40 ","117,706.40 ",1001,Admin Pay,2005,Fire Control,"15,733.27 "
Nottinghamshire Fire and Rescue Service,101866,Leicestershire Fire & Rescue Service (Bacs),Leicestershire Fire & Rescue Service (Bacs),Operational Responses,4,202312,17/03/2023,P6,9105499,"-16,008.00 ","16,008.00 ",1001,Admin Pay,2005,Fire Control,"13,340.00 "
Nottinghamshire Fire and Rescue Service,101001,Express Recruitment Ltd,Express Recruitment Ltd,Management & Support Services,1,202312,01/03/2023,P6,9105192,-753.06 ,753.06 ,1005,Admin Agency Staff,2087,Estates Department (Previously Premises),627.55 
Nottinghamshire Fire and Rescue Service,101001,Express Recruitment Ltd,Express Recruitment Ltd,Management & Support Services,1,202312,15/03/2023,P6,9105464,-753.06 ,753.06 ,1005,Admin Agency Staff,2087,Estates Department (Previously Premises),627.55 
Nottinghamshire Fire and Rescue Service,101001,Express Recruitment Ltd,Express Recruitment Ltd,Management & Support Services,1,202312,08/03/2023,P6,9105465,-753.06 ,753.06 ,1005,Admin Agency Staff,2087,Estates Department (Previously Premises),627.55 
Nottinghamshire Fire and Rescue Service,101866,Leicestershire Fire & Rescue Service (Bacs),Leicestershire Fire & Rescue Service (Bacs),Operational Responses,4,202312,27/02/2023,P6,9105497,"-10,341.00 ","10,341.00 ",1005,Admin Agency Staff,2005,Fire Control,"10,341.00 "
Nottinghamshire Fire and Rescue Service,103371,Nottinghamshire Healthcare NHS Trust,Nottinghamshire Healthcare NHS Trust,Management & Support Services,5,202312,21/03/2023,P6,9105503,"-4,030.86 ","4,030.86 ",1005,Admin Agency Staff,2068,Prevention,"4,030.86 "
Nottinghamshire Fire and Rescue Service,101001,Express Recruitment Ltd,Express Recruitment Ltd,Management & Support Services,1,202312,22/03/2023,P6,9105761,-753.06 ,753.06 ,1005,Admin Agency Staff,2087,Estates Department (Previously Premises),627.55 
Nottinghamshire Fire and Rescue Service,100019,Nuffield Sailing Centre,Nuffield Sailing Centre,Management & Support Services,1,202312,01/03/2023,P6,9105191,-880.00 ,880.00 ,1801,Training,2059,Corporate Training,40.00 
Nottinghamshire Fire and Rescue Service,100212,Driving Standards Agency,Driving Standards Agency,Management & Support Services,4,202312,09/02/2023,P6,9105203,-950.00 ,950.00 ,1801,Training,2059,Corporate Training,950.00 
Nottinghamshire Fire and Rescue Service,104097,In Professional Development,In Professional Development,Management & Support Services,5,202312,23/02/2023,P6,9105204,"-1,860.00 ","1,860.00 ",1801,Training,2068,Prevention,"1,550.00 "
Nottinghamshire Fire and Rescue Service,102124,East Midlands Councils,East Midlands Councils,Management & Support Services,1,202312,15/07/2022,P6,9105216,-396.00 ,396.00 ,1801,Training,2054,Equalities Team,330.00 
Nottinghamshire Fire and Rescue Service,104168,ioda Limited,ioda Limited,Management & Support Services,5,202312,28/02/2023,P6,9105223,"-1,188.00 ","1,188.00 ",1801,Training,2054,Equalities Team,990.00 
Nottinghamshire Fire and Rescue Service,100779,Local Government Association,Local Government Association,Management & Support Services,1,202312,03/03/2023,P6,9105225,"-2,844.00 ","2,844.00 ",1801,Training,2093,Command Suite,395.00 
Nottinghamshire Fire and Rescue Service,100779,Local Government Association,Local Government Association,Management & Support Services,1,202312,03/03/2023,P6,9105242,-948.00 ,948.00 ,1801,Training,2093,Command Suite,395.00 
Nottinghamshire Fire and Rescue Service,102933,Lincolnshire Fire and Rescue Service,Lincolnshire Fire and Rescue Service,Management & Support Services,4,202312,09/03/2023,P6,9105293,"-16,000.00 ","16,000.00 ",1801,Training,2059,Corporate Training,"16,000.00 "
Nottinghamshire Fire and Rescue Service,102933,Lincolnshire Fire and Rescue Service,Lincolnshire Fire and Rescue Service,Management & Support Services,4,202312,09/03/2023,P6,9105305,"-10,250.00 ","10,250.00 ",1801,Training,2059,Corporate Training,"1,000.00 "
Nottinghamshire Fire and Rescue Service,102933,Lincolnshire Fire and Rescue Service,Lincolnshire Fire and Rescue Service,Management & Support Services,4,202312,09/03/2023,P6,9105305,"-10,250.00 ","10,250.00 ",1801,Training,2059,Corporate Training,"9,250.00 "
Nottinghamshire Fire and Rescue Service,101335,Nottingham Trent University,Nottingham Trent University,Management & Support Services,1,202312,16/03/2023,P6,9105404,"-7,200.00 ","7,200.00 ",1801,Training,2054,Equalities Team,"6,000.00 "
Nottinghamshire Fire and Rescue Service,101847,The Outreach Organisation Limited,The Outreach Organisation Limited,Management & Support Services,1,202312,14/03/2023,P6,9105419,"-8,064.00 ","8,064.00 ",1801,Training,2059,Corporate Training,"6,720.00 "
Nottinghamshire Fire and Rescue Service,100224,Delta Fire,Delta Fire,Management & Support Services,1,202312,13/02/2023,P6,9105476,-843.72 ,843.72 ,1801,Training,2084,Engineering,703.10 
Nottinghamshire Fire and Rescue Service,104096,Professional Development Group T/A Government Events,Professional Development Group T/A Government Events,Management & Support Services,5,202312,20/03/2023,P6,9105512,-373.44 ,373.44 ,1801,Training,2093,Command Suite,311.20 
Nottinghamshire Fire and Rescue Service,104168,ioda Limited,ioda Limited,Management & Support Services,5,202312,22/03/2023,P6,9105525,"-1,188.00 ","1,188.00 ",1801,Training,2054,Equalities Team,990.00 
Nottinghamshire Fire and Rescue Service,101847,The Outreach Organisation Limited,The Outreach Organisation Limited,Management & Support Services,1,202312,07/03/2023,P6,9105554,-852.00 ,852.00 ,1801,Training,2059,Corporate Training,710.00 
Nottinghamshire Fire and Rescue Service,103277,Actorshop Training Associates,Actorshop Training Associates,Management & Support Services,5,202312,28/02/2023,P6,9105585,-760.00 ,760.00 ,1801,Training,2054,Equalities Team,760.00 
Nottinghamshire Fire and Rescue Service,104264,MVT Surveying Consultancy & Training,MVT Surveying Consultancy & Training,"Statutory Inspection, Certification & Enforcement",5,202312,29/03/2023,P6,9105613,"-2,300.00 ","2,300.00 ",1801,Training,2021,Fire Protection,"2,300.00 "
Nottinghamshire Fire and Rescue Service,104270,Women to Work Ltd,Women to Work Ltd,Management & Support Services,5,202312,27/03/2023,P6,9105637,-450.00 ,450.00 ,1801,Training,2054,Equalities Team,450.00 
Nottinghamshire Fire and Rescue Service,103869,Shelagh Roberts,Shelagh Roberts,Management & Support Services,5,202312,27/03/2023,P6,9105654,-320.00 ,320.00 ,1801,Training,2054,Equalities Team,320.00 
Nottinghamshire Fire and Rescue Service,100019,Nuffield Sailing Centre,Nuffield Sailing Centre,Management & Support Services,1,202312,24/03/2023,P6,9105668,-880.00 ,880.00 ,1801,Training,2059,Corporate Training,40.00 
Nottinghamshire Fire and Rescue Service,104272,Intuition Publishing Limited,Intuition Publishing Limited,Management & Support Services,5,202312,30/03/2023,P6,9105768,"-1,250.00 ","1,250.00 ",1801,Training,2081,Finance,"1,250.00 "
Nottinghamshire Fire and Rescue Service,103358,JSMTC (Joint Service Mountain Training Centre),JSMTC (Joint Service Mountain Training Centre),Management & Support Services,5,202312,23/02/2023,P6,9105779,-256.27 ,256.27 ,1801,Training,2059,Corporate Training,213.56 
Nottinghamshire Fire and Rescue Service,103358,JSMTC (Joint Service Mountain Training Centre),JSMTC (Joint Service Mountain Training Centre),Management & Support Services,5,202312,23/03/2023,P6,9105780,-277.62 ,277.62 ,1801,Training,2059,Corporate Training,231.35 
Nottinghamshire Fire and Rescue Service,103934,Purchasing Management Services Limited,Purchasing Management Services Limited,Management & Support Services,5,202312,04/04/2023,P6,9105781,"-8,880.00 ","8,880.00 ",1801,Training,2086,Procurement,"7,400.00 "
Nottinghamshire Fire and Rescue Service,103185,Concerto Support Services Limited,Concerto Support Services Limited,Management & Support Services,5,202312,31/03/2023,P6,9105817,"-3,420.00 ","3,420.00 ",1801,Training,2087,Estates Department (Previously Premises),"2,850.00 "
Nottinghamshire Fire and Rescue Service,101879,Alarm,Alarm,Management & Support Services,1,202312,01/01/2023,P6,9105837,"-1,352.40 ","1,352.40 ",1815,Professional Body Subscriptions,2063,Risk Management & Insurance,"1,127.00 "
Nottinghamshire Fire and Rescue Service,104248,RealWorldHR Limited,RealWorldHR Limited,Management & Support Services,5,202312,05/03/2023,P6,9105214,"-5,124.00 ","5,124.00 ",1850,Recruitment Advertising,2049,Professional Support,"4,270.00 "
Nottinghamshire Fire and Rescue Service,103377,Flat Fee Recruiter Limited,Flat Fee Recruiter Limited,Management & Support Services,5,202312,22/03/2023,P6,9105586,-322.80 ,322.80 ,1850,Recruitment Advertising,2075,Service Support Hub,269.00 
Nottinghamshire Fire and Rescue Service,103377,Flat Fee Recruiter Limited,Flat Fee Recruiter Limited,Management & Support Services,5,202312,22/03/2023,P6,9105588,-322.80 ,322.80 ,1850,Recruitment Advertising,2075,Service Support Hub,269.00 
Nottinghamshire Fire and Rescue Service,103923,Bupa UK Insurance Services,Bupa UK Insurance Services,Management & Support Services,5,202312,27/02/2023,P6,9105486,"-3,324.73 ","3,324.73 ",1860,Employee Benefits Schemes,2049,Professional Support,"3,324.73 "
Nottinghamshire Fire and Rescue Service,103923,Bupa UK Insurance Services,Bupa UK Insurance Services,Management & Support Services,5,202312,30/03/2023,P6,9105798,"-3,316.07 ","3,316.07 ",1860,Employee Benefits Schemes,2049,Professional Support,"3,316.07 "
Nottinghamshire Fire and Rescue Service,104132,West Yorkshire Pension Fund,West Yorkshire Pension Fund,Management & Support Services,5,202312,27/03/2023,P6,9105660,"-78,664.52 ","78,664.52 ",1907,Firefighters Pension Scheme Sanction Charge,1089,Pension Costs met from Revenue,442.67 
Nottinghamshire Fire and Rescue Service,104132,West Yorkshire Pension Fund,West Yorkshire Pension Fund,Management & Support Services,5,202312,27/03/2023,P6,9105660,"-78,664.52 ","78,664.52 ",1907,Firefighters Pension Scheme Sanction Charge,1089,Pension Costs met from Revenue,457.54 
Nottinghamshire Fire and Rescue Service,104132,West Yorkshire Pension Fund,West Yorkshire Pension Fund,Management & Support Services,5,202312,27/03/2023,P6,9105660,"-78,664.52 ","78,664.52 ",1907,Firefighters Pension Scheme Sanction Charge,1089,Pension Costs met from Revenue,602.01 
Nottinghamshire Fire and Rescue Service,104132,West Yorkshire Pension Fund,West Yorkshire Pension Fund,Management & Support Services,5,202312,27/03/2023,P6,9105660,"-78,664.52 ","78,664.52 ",1907,Firefighters Pension Scheme Sanction Charge,1089,Pension Costs met from Revenue,705.35 
Nottinghamshire Fire and Rescue Service,104132,West Yorkshire Pension Fund,West Yorkshire Pension Fund,Management & Support Services,5,202312,27/03/2023,P6,9105660,"-78,664.52 ","78,664.52 ",1907,Firefighters Pension Scheme Sanction Charge,1089,Pension Costs met from Revenue,757.90 
Nottinghamshire Fire and Rescue Service,104132,West Yorkshire Pension Fund,West Yorkshire Pension Fund,Management & Support Services,5,202312,27/03/2023,P6,9105660,"-78,664.52 ","78,664.52 ",1907,Firefighters Pension Scheme Sanction Charge,1089,Pension Costs met from Revenue,783.56 
Nottinghamshire Fire and Rescue Service,104132,West Yorkshire Pension Fund,West Yorkshire Pension Fund,Management & Support Services,5,202312,27/03/2023,P6,9105660,"-78,664.52 ","78,664.52 ",1907,Firefighters Pension Scheme Sanction Charge,1089,Pension Costs met from Revenue,815.69 
Nottinghamshire Fire and Rescue Service,104132,West Yorkshire Pension Fund,West Yorkshire Pension Fund,Management & Support Services,5,202312,27/03/2023,P6,9105660,"-78,664.52 ","78,664.52 ",1907,Firefighters Pension Scheme Sanction Charge,1089,Pension Costs met from Revenue,907.56 
Nottinghamshire Fire and Rescue Service,104132,West Yorkshire Pension Fund,West Yorkshire Pension Fund,Management & Support Services,5,202312,27/03/2023,P6,9105660,"-78,664.52 ","78,664.52 ",1907,Firefighters Pension Scheme Sanction Charge,1089,Pension Costs met from Revenue,"1,019.69 "
Nottinghamshire Fire and Rescue Service,104132,West Yorkshire Pension Fund,West Yorkshire Pension Fund,Management & Support Services,5,202312,27/03/2023,P6,9105660,"-78,664.52 ","78,664.52 ",1907,Firefighters Pension Scheme Sanction Charge,1089,Pension Costs met from Revenue,"1,388.87 "
Nottinghamshire Fire and Rescue Service,104132,West Yorkshire Pension Fund,West Yorkshire Pension Fund,Management & Support Services,5,202312,27/03/2023,P6,9105660,"-78,664.52 ","78,664.52 ",1907,Firefighters Pension Scheme Sanction Charge,1089,Pension Costs met from Revenue,"1,560.19 "
Nottinghamshire Fire and Rescue Service,104132,West Yorkshire Pension Fund,West Yorkshire Pension Fund,Management & Support Services,5,202312,27/03/2023,P6,9105660,"-78,664.52 ","78,664.52 ",1907,Firefighters Pension Scheme Sanction Charge,1089,Pension Costs met from Revenue,"1,996.11 "
Nottinghamshire Fire and Rescue Service,102280,Amptron Electrical Services,Amptron Electrical Services,Operational Responses,1,202312,28/02/2023,P6,9105282,-884.88 ,884.88 ,2000,Buildings Repairs and Maintenance - Reactive,1001,Mansfield,737.40 
Nottinghamshire Fire and Rescue Service,102280,Amptron Electrical Services,Amptron Electrical Services,Operational Responses,1,202312,28/02/2023,P6,9105307,"-38,133.19 ","38,133.19 ",2000,Buildings Repairs and Maintenance - Reactive,1001,Mansfield,"3,493.97 "
Nottinghamshire Fire and Rescue Service,102280,Amptron Electrical Services,Amptron Electrical Services,Operational Responses,1,202312,28/02/2023,P6,9105307,"-38,133.19 ","38,133.19 ",2000,Buildings Repairs and Maintenance - Reactive,1002,Blidworth,168.00 
Nottinghamshire Fire and Rescue Service,102280,Amptron Electrical Services,Amptron Electrical Services,Operational Responses,1,202312,28/02/2023,P6,9105307,"-38,133.19 ","38,133.19 ",2000,Buildings Repairs and Maintenance - Reactive,1003,London Road,"1,042.99 "
Nottinghamshire Fire and Rescue Service,102280,Amptron Electrical Services,Amptron Electrical Services,Operational Responses,1,202312,28/02/2023,P6,9105307,"-38,133.19 ","38,133.19 ",2000,Buildings Repairs and Maintenance - Reactive,1005,Ashfield,"4,287.59 "
Nottinghamshire Fire and Rescue Service,102280,Amptron Electrical Services,Amptron Electrical Services,Operational Responses,1,202312,28/02/2023,P6,9105307,"-38,133.19 ","38,133.19 ",2000,Buildings Repairs and Maintenance - Reactive,1006,Edwinstowe,941.67 
Nottinghamshire Fire and Rescue Service,102280,Amptron Electrical Services,Amptron Electrical Services,Operational Responses,1,202312,28/02/2023,P6,9105307,"-38,133.19 ","38,133.19 ",2000,Buildings Repairs and Maintenance - Reactive,1007,Warsop,"1,048.66 "
Nottinghamshire Fire and Rescue Service,102280,Amptron Electrical Services,Amptron Electrical Services,Operational Responses,1,202312,28/02/2023,P6,9105307,"-38,133.19 ","38,133.19 ",2000,Buildings Repairs and Maintenance - Reactive,1008,Worksop,460.93 
Nottinghamshire Fire and Rescue Service,102280,Amptron Electrical Services,Amptron Electrical Services,Operational Responses,1,202312,28/02/2023,P6,9105307,"-38,133.19 ","38,133.19 ",2000,Buildings Repairs and Maintenance - Reactive,1011,Misterton,613.19 
Nottinghamshire Fire and Rescue Service,102280,Amptron Electrical Services,Amptron Electrical Services,Operational Responses,1,202312,28/02/2023,P6,9105307,"-38,133.19 ","38,133.19 ",2000,Buildings Repairs and Maintenance - Reactive,1012,Retford,532.44 
Nottinghamshire Fire and Rescue Service,102280,Amptron Electrical Services,Amptron Electrical Services,Operational Responses,1,202312,28/02/2023,P6,9105307,"-38,133.19 ","38,133.19 ",2000,Buildings Repairs and Maintenance - Reactive,1013,Tuxford,342.65 
Nottinghamshire Fire and Rescue Service,102280,Amptron Electrical Services,Amptron Electrical Services,Operational Responses,1,202312,28/02/2023,P6,9105307,"-38,133.19 ","38,133.19 ",2000,Buildings Repairs and Maintenance - Reactive,1016,Newark,"2,362.92 "
Nottinghamshire Fire and Rescue Service,102280,Amptron Electrical Services,Amptron Electrical Services,Operational Responses,1,202312,28/02/2023,P6,9105307,"-38,133.19 ","38,133.19 ",2000,Buildings Repairs and Maintenance - Reactive,1017,Bingham,180.33 
Nottinghamshire Fire and Rescue Service,102280,Amptron Electrical Services,Amptron Electrical Services,Operational Responses,1,202312,28/02/2023,P6,9105307,"-38,133.19 ","38,133.19 ",2000,Buildings Repairs and Maintenance - Reactive,1019,West Bridgford,"2,360.40 "
Nottinghamshire Fire and Rescue Service,102280,Amptron Electrical Services,Amptron Electrical Services,Operational Responses,1,202312,28/02/2023,P6,9105307,"-38,133.19 ","38,133.19 ",2000,Buildings Repairs and Maintenance - Reactive,1020,Stockhill,"1,133.82 "
Nottinghamshire Fire and Rescue Service,102280,Amptron Electrical Services,Amptron Electrical Services,Operational Responses,1,202312,28/02/2023,P6,9105307,"-38,133.19 ","38,133.19 ",2000,Buildings Repairs and Maintenance - Reactive,1023,Stapleford,394.94 
Nottinghamshire Fire and Rescue Service,102280,Amptron Electrical Services,Amptron Electrical Services,Operational Responses,1,202312,28/02/2023,P6,9105307,"-38,133.19 ","38,133.19 ",2000,Buildings Repairs and Maintenance - Reactive,1024,Eastwood,322.43 
Nottinghamshire Fire and Rescue Service,102280,Amptron Electrical Services,Amptron Electrical Services,Operational Responses,1,202312,28/02/2023,P6,9105307,"-38,133.19 ","38,133.19 ",2000,Buildings Repairs and Maintenance - Reactive,1025,Hucknall,249.47 
Nottinghamshire Fire and Rescue Service,102280,Amptron Electrical Services,Amptron Electrical Services,Operational Responses,1,202312,28/02/2023,P6,9105307,"-38,133.19 ","38,133.19 ",2000,Buildings Repairs and Maintenance - Reactive,1026,Arnold,680.35 
Nottinghamshire Fire and Rescue Service,102280,Amptron Electrical Services,Amptron Electrical Services,Operational Responses,1,202312,28/02/2023,P6,9105307,"-38,133.19 ","38,133.19 ",2000,Buildings Repairs and Maintenance - Reactive,1027,Carlton,"1,356.60 "
Nottinghamshire Fire and Rescue Service,102280,Amptron Electrical Services,Amptron Electrical Services,Operational Responses,1,202312,28/02/2023,P6,9105307,"-38,133.19 ","38,133.19 ",2000,Buildings Repairs and Maintenance - Reactive,1028,East Leake,"1,986.00 "
Nottinghamshire Fire and Rescue Service,102280,Amptron Electrical Services,Amptron Electrical Services,Operational Responses,1,202312,28/02/2023,P6,9105307,"-38,133.19 ","38,133.19 ",2000,Buildings Repairs and Maintenance - Reactive,1029,Highfields Station,"1,486.52 "
Nottinghamshire Fire and Rescue Service,102280,Amptron Electrical Services,Amptron Electrical Services,Management & Support Services,1,202312,28/02/2023,P6,9105307,"-38,133.19 ","38,133.19 ",2000,Buildings Repairs and Maintenance - Reactive,1030,Service Development Centre,"6,096.92 "
Nottinghamshire Fire and Rescue Service,102280,Amptron Electrical Services,Amptron Electrical Services,Management & Support Services,1,202312,28/02/2023,P6,9105307,"-38,133.19 ","38,133.19 ",2000,Buildings Repairs and Maintenance - Reactive,1035,Headquarters,234.85 
Nottinghamshire Fire and Rescue Service,102280,Amptron Electrical Services,Amptron Electrical Services,Operational Responses,1,202312,28/02/2023,P6,9105308,"-1,936.68 ","1,936.68 ",2000,Buildings Repairs and Maintenance - Reactive,1007,Warsop,642.00 
Nottinghamshire Fire and Rescue Service,102280,Amptron Electrical Services,Amptron Electrical Services,Operational Responses,1,202312,28/02/2023,P6,9105308,"-1,936.68 ","1,936.68 ",2000,Buildings Repairs and Maintenance - Reactive,1015,Collingham,156.00 
Nottinghamshire Fire and Rescue Service,102280,Amptron Electrical Services,Amptron Electrical Services,Operational Responses,1,202312,28/02/2023,P6,9105308,"-1,936.68 ","1,936.68 ",2000,Buildings Repairs and Maintenance - Reactive,1029,Highfields Station,815.90 
Nottinghamshire Fire and Rescue Service,102280,Amptron Electrical Services,Amptron Electrical Services,Operational Responses,1,202312,28/02/2023,P6,9105390,"-1,447.59 ","1,447.59 ",2000,Buildings Repairs and Maintenance - Reactive,1001,Mansfield,550.18 
Nottinghamshire Fire and Rescue Service,102280,Amptron Electrical Services,Amptron Electrical Services,Operational Responses,1,202312,28/02/2023,P6,9105390,"-1,447.59 ","1,447.59 ",2000,Buildings Repairs and Maintenance - Reactive,1019,West Bridgford,656.14 
Nottinghamshire Fire and Rescue Service,102280,Amptron Electrical Services,Amptron Electrical Services,Operational Responses,1,202312,28/02/2023,P6,9105391,-993.60 ,993.60 ,2000,Buildings Repairs and Maintenance - Reactive,1005,Ashfield,828.00 
Nottinghamshire Fire and Rescue Service,102280,Amptron Electrical Services,Amptron Electrical Services,Management & Support Services,1,202312,22/03/2023,P6,9105532,"-1,916.34 ","1,916.34 ",2000,Buildings Repairs and Maintenance - Reactive,2087,Estates Department (Previously Premises),"1,596.95 "
Nottinghamshire Fire and Rescue Service,102280,Amptron Electrical Services,Amptron Electrical Services,Operational Responses,1,202312,22/03/2023,P6,9105546,"-35,923.84 ","35,923.84 ",2000,Buildings Repairs and Maintenance - Reactive,1001,Mansfield,"1,393.94 "
Nottinghamshire Fire and Rescue Service,102280,Amptron Electrical Services,Amptron Electrical Services,Operational Responses,1,202312,22/03/2023,P6,9105546,"-35,923.84 ","35,923.84 ",2000,Buildings Repairs and Maintenance - Reactive,1002,Blidworth,"1,476.06 "
Nottinghamshire Fire and Rescue Service,102280,Amptron Electrical Services,Amptron Electrical Services,Operational Responses,1,202312,22/03/2023,P6,9105546,"-35,923.84 ","35,923.84 ",2000,Buildings Repairs and Maintenance - Reactive,1003,London Road,347.94 
Nottinghamshire Fire and Rescue Service,102280,Amptron Electrical Services,Amptron Electrical Services,Operational Responses,1,202312,22/03/2023,P6,9105546,"-35,923.84 ","35,923.84 ",2000,Buildings Repairs and Maintenance - Reactive,1005,Ashfield,"1,284.41 "
Nottinghamshire Fire and Rescue Service,102280,Amptron Electrical Services,Amptron Electrical Services,Operational Responses,1,202312,22/03/2023,P6,9105546,"-35,923.84 ","35,923.84 ",2000,Buildings Repairs and Maintenance - Reactive,1006,Edwinstowe,189.00 
Nottinghamshire Fire and Rescue Service,102280,Amptron Electrical Services,Amptron Electrical Services,Operational Responses,1,202312,22/03/2023,P6,9105546,"-35,923.84 ","35,923.84 ",2000,Buildings Repairs and Maintenance - Reactive,1012,Retford,558.42 
Nottinghamshire Fire and Rescue Service,102280,Amptron Electrical Services,Amptron Electrical Services,Operational Responses,1,202312,22/03/2023,P6,9105546,"-35,923.84 ","35,923.84 ",2000,Buildings Repairs and Maintenance - Reactive,1014,Southwell,132.10 
Nottinghamshire Fire and Rescue Service,102280,Amptron Electrical Services,Amptron Electrical Services,Operational Responses,1,202312,22/03/2023,P6,9105546,"-35,923.84 ","35,923.84 ",2000,Buildings Repairs and Maintenance - Reactive,1016,Newark,"1,585.80 "
Nottinghamshire Fire and Rescue Service,102280,Amptron Electrical Services,Amptron Electrical Services,Operational Responses,1,202312,22/03/2023,P6,9105546,"-35,923.84 ","35,923.84 ",2000,Buildings Repairs and Maintenance - Reactive,1017,Bingham,"1,926.00 "
Nottinghamshire Fire and Rescue Service,102280,Amptron Electrical Services,Amptron Electrical Services,Operational Responses,1,202312,22/03/2023,P6,9105546,"-35,923.84 ","35,923.84 ",2000,Buildings Repairs and Maintenance - Reactive,1019,West Bridgford,"1,463.77 "
Nottinghamshire Fire and Rescue Service,102280,Amptron Electrical Services,Amptron Electrical Services,Operational Responses,1,202312,22/03/2023,P6,9105546,"-35,923.84 ","35,923.84 ",2000,Buildings Repairs and Maintenance - Reactive,1020,Stockhill,"2,095.04 "
Nottinghamshire Fire and Rescue Service,102280,Amptron Electrical Services,Amptron Electrical Services,Operational Responses,1,202312,22/03/2023,P6,9105546,"-35,923.84 ","35,923.84 ",2000,Buildings Repairs and Maintenance - Reactive,1024,Eastwood,277.78 
Nottinghamshire Fire and Rescue Service,102280,Amptron Electrical Services,Amptron Electrical Services,Operational Responses,1,202312,22/03/2023,P6,9105546,"-35,923.84 ","35,923.84 ",2000,Buildings Repairs and Maintenance - Reactive,1026,Arnold,"3,490.26 "
Nottinghamshire Fire and Rescue Service,102280,Amptron Electrical Services,Amptron Electrical Services,Operational Responses,1,202312,22/03/2023,P6,9105546,"-35,923.84 ","35,923.84 ",2000,Buildings Repairs and Maintenance - Reactive,1027,Carlton,273.76 
Nottinghamshire Fire and Rescue Service,102280,Amptron Electrical Services,Amptron Electrical Services,Operational Responses,1,202312,22/03/2023,P6,9105546,"-35,923.84 ","35,923.84 ",2000,Buildings Repairs and Maintenance - Reactive,1029,Highfields Station,"9,757.32 "
Nottinghamshire Fire and Rescue Service,102280,Amptron Electrical Services,Amptron Electrical Services,Management & Support Services,1,202312,22/03/2023,P6,9105546,"-35,923.84 ","35,923.84 ",2000,Buildings Repairs and Maintenance - Reactive,1030,Service Development Centre,"3,528.88 "
Nottinghamshire Fire and Rescue Service,102280,Amptron Electrical Services,Amptron Electrical Services,Management & Support Services,1,202312,22/03/2023,P6,9105546,"-35,923.84 ","35,923.84 ",2000,Buildings Repairs and Maintenance - Reactive,1035,Headquarters,156.02 
Nottinghamshire Fire and Rescue Service,102280,Amptron Electrical Services,Amptron Electrical Services,Operational Responses,1,202312,22/03/2023,P6,9105547,"-1,520.50 ","1,520.50 ",2000,Buildings Repairs and Maintenance - Reactive,1012,Retford,85.23 
Nottinghamshire Fire and Rescue Service,102280,Amptron Electrical Services,Amptron Electrical Services,Operational Responses,1,202312,22/03/2023,P6,9105547,"-1,520.50 ","1,520.50 ",2000,Buildings Repairs and Maintenance - Reactive,1015,Collingham,153.10 
Nottinghamshire Fire and Rescue Service,102280,Amptron Electrical Services,Amptron Electrical Services,Operational Responses,1,202312,22/03/2023,P6,9105547,"-1,520.50 ","1,520.50 ",2000,Buildings Repairs and Maintenance - Reactive,1016,Newark,153.15 
Nottinghamshire Fire and Rescue Service,102280,Amptron Electrical Services,Amptron Electrical Services,Operational Responses,1,202312,22/03/2023,P6,9105547,"-1,520.50 ","1,520.50 ",2000,Buildings Repairs and Maintenance - Reactive,1029,Highfields Station,875.60 
Nottinghamshire Fire and Rescue Service,100437,Nottinghamshire Fire Safety Limited,Nottinghamshire Fire Safety Limited,Operational Responses,1,202312,29/03/2023,P6,9105657,"-1,497.26 ","1,497.26 ",2000,Buildings Repairs and Maintenance - Reactive,1001,Mansfield,39.45 
Nottinghamshire Fire and Rescue Service,100437,Nottinghamshire Fire Safety Limited,Nottinghamshire Fire Safety Limited,Operational Responses,1,202312,29/03/2023,P6,9105657,"-1,497.26 ","1,497.26 ",2000,Buildings Repairs and Maintenance - Reactive,1002,Blidworth,16.68 
Nottinghamshire Fire and Rescue Service,100437,Nottinghamshire Fire Safety Limited,Nottinghamshire Fire Safety Limited,Operational Responses,1,202312,29/03/2023,P6,9105657,"-1,497.26 ","1,497.26 ",2000,Buildings Repairs and Maintenance - Reactive,1003,London Road,85.90 
Nottinghamshire Fire and Rescue Service,100437,Nottinghamshire Fire Safety Limited,Nottinghamshire Fire Safety Limited,Operational Responses,1,202312,29/03/2023,P6,9105657,"-1,497.26 ","1,497.26 ",2000,Buildings Repairs and Maintenance - Reactive,1005,Ashfield,78.00 
Nottinghamshire Fire and Rescue Service,100437,Nottinghamshire Fire Safety Limited,Nottinghamshire Fire Safety Limited,Operational Responses,1,202312,29/03/2023,P6,9105657,"-1,497.26 ","1,497.26 ",2000,Buildings Repairs and Maintenance - Reactive,1010,Harworth,54.13 
Nottinghamshire Fire and Rescue Service,100437,Nottinghamshire Fire Safety Limited,Nottinghamshire Fire Safety Limited,Operational Responses,1,202312,29/03/2023,P6,9105657,"-1,497.26 ","1,497.26 ",2000,Buildings Repairs and Maintenance - Reactive,1012,Retford,68.67 
Nottinghamshire Fire and Rescue Service,100437,Nottinghamshire Fire Safety Limited,Nottinghamshire Fire Safety Limited,Operational Responses,1,202312,29/03/2023,P6,9105657,"-1,497.26 ","1,497.26 ",2000,Buildings Repairs and Maintenance - Reactive,1014,Southwell,5.56 
Nottinghamshire Fire and Rescue Service,100437,Nottinghamshire Fire Safety Limited,Nottinghamshire Fire Safety Limited,Operational Responses,1,202312,29/03/2023,P6,9105657,"-1,497.26 ","1,497.26 ",2000,Buildings Repairs and Maintenance - Reactive,1015,Collingham,106.40 
Nottinghamshire Fire and Rescue Service,100437,Nottinghamshire Fire Safety Limited,Nottinghamshire Fire Safety Limited,Operational Responses,1,202312,29/03/2023,P6,9105657,"-1,497.26 ","1,497.26 ",2000,Buildings Repairs and Maintenance - Reactive,1016,Newark,77.24 
Nottinghamshire Fire and Rescue Service,100437,Nottinghamshire Fire Safety Limited,Nottinghamshire Fire Safety Limited,Operational Responses,1,202312,29/03/2023,P6,9105657,"-1,497.26 ","1,497.26 ",2000,Buildings Repairs and Maintenance - Reactive,1020,Stockhill,5.56 
Nottinghamshire Fire and Rescue Service,100437,Nottinghamshire Fire Safety Limited,Nottinghamshire Fire Safety Limited,Operational Responses,1,202312,29/03/2023,P6,9105657,"-1,497.26 ","1,497.26 ",2000,Buildings Repairs and Maintenance - Reactive,1023,Stapleford,33.85 
Nottinghamshire Fire and Rescue Service,100437,Nottinghamshire Fire Safety Limited,Nottinghamshire Fire Safety Limited,Operational Responses,1,202312,29/03/2023,P6,9105657,"-1,497.26 ","1,497.26 ",2000,Buildings Repairs and Maintenance - Reactive,1024,Eastwood,39.45 
Nottinghamshire Fire and Rescue Service,100437,Nottinghamshire Fire Safety Limited,Nottinghamshire Fire Safety Limited,Operational Responses,1,202312,29/03/2023,P6,9105657,"-1,497.26 ","1,497.26 ",2000,Buildings Repairs and Maintenance - Reactive,1026,Arnold,58.44 
Nottinghamshire Fire and Rescue Service,100437,Nottinghamshire Fire Safety Limited,Nottinghamshire Fire Safety Limited,Operational Responses,1,202312,29/03/2023,P6,9105657,"-1,497.26 ","1,497.26 ",2000,Buildings Repairs and Maintenance - Reactive,1027,Carlton,39.45 
Nottinghamshire Fire and Rescue Service,100437,Nottinghamshire Fire Safety Limited,Nottinghamshire Fire Safety Limited,Operational Responses,1,202312,29/03/2023,P6,9105657,"-1,497.26 ","1,497.26 ",2000,Buildings Repairs and Maintenance - Reactive,1028,East Leake,5.56 
Nottinghamshire Fire and Rescue Service,100437,Nottinghamshire Fire Safety Limited,Nottinghamshire Fire Safety Limited,Operational Responses,1,202312,29/03/2023,P6,9105657,"-1,497.26 ","1,497.26 ",2000,Buildings Repairs and Maintenance - Reactive,1029,Highfields Station,277.69 
Nottinghamshire Fire and Rescue Service,100437,Nottinghamshire Fire Safety Limited,Nottinghamshire Fire Safety Limited,Management & Support Services,1,202312,29/03/2023,P6,9105657,"-1,497.26 ","1,497.26 ",2000,Buildings Repairs and Maintenance - Reactive,1030,Service Development Centre,108.12 
Nottinghamshire Fire and Rescue Service,100437,Nottinghamshire Fire Safety Limited,Nottinghamshire Fire Safety Limited,Management & Support Services,1,202312,29/03/2023,P6,9105657,"-1,497.26 ","1,497.26 ",2000,Buildings Repairs and Maintenance - Reactive,2087,Estates Department (Previously Premises),147.57 
Nottinghamshire Fire and Rescue Service,102280,Amptron Electrical Services,Amptron Electrical Services,Operational Responses,1,202312,31/03/2023,P6,9105800,"-4,963.55 ","4,963.55 ",2000,Buildings Repairs and Maintenance - Reactive,1027,Carlton,"4,136.29 "
Nottinghamshire Fire and Rescue Service,102280,Amptron Electrical Services,Amptron Electrical Services,Operational Responses,1,202312,29/03/2023,P6,9105815,"-45,692.73 ","45,692.73 ",2000,Buildings Repairs and Maintenance - Reactive,1001,Mansfield,"3,127.79 "
Nottinghamshire Fire and Rescue Service,102280,Amptron Electrical Services,Amptron Electrical Services,Operational Responses,1,202312,29/03/2023,P6,9105815,"-45,692.73 ","45,692.73 ",2000,Buildings Repairs and Maintenance - Reactive,1003,London Road,786.28 
Nottinghamshire Fire and Rescue Service,102280,Amptron Electrical Services,Amptron Electrical Services,Operational Responses,1,202312,29/03/2023,P6,9105815,"-45,692.73 ","45,692.73 ",2000,Buildings Repairs and Maintenance - Reactive,1005,Ashfield,"2,839.20 "
Nottinghamshire Fire and Rescue Service,102280,Amptron Electrical Services,Amptron Electrical Services,Operational Responses,1,202312,29/03/2023,P6,9105815,"-45,692.73 ","45,692.73 ",2000,Buildings Repairs and Maintenance - Reactive,1006,Edwinstowe,786.17 
Nottinghamshire Fire and Rescue Service,102280,Amptron Electrical Services,Amptron Electrical Services,Operational Responses,1,202312,29/03/2023,P6,9105815,"-45,692.73 ","45,692.73 ",2000,Buildings Repairs and Maintenance - Reactive,1007,Warsop,"1,872.77 "
Nottinghamshire Fire and Rescue Service,102280,Amptron Electrical Services,Amptron Electrical Services,Operational Responses,1,202312,29/03/2023,P6,9105815,"-45,692.73 ","45,692.73 ",2000,Buildings Repairs and Maintenance - Reactive,1012,Retford,"2,090.51 "
Nottinghamshire Fire and Rescue Service,102280,Amptron Electrical Services,Amptron Electrical Services,Operational Responses,1,202312,29/03/2023,P6,9105815,"-45,692.73 ","45,692.73 ",2000,Buildings Repairs and Maintenance - Reactive,1015,Collingham,"1,713.97 "
Nottinghamshire Fire and Rescue Service,102280,Amptron Electrical Services,Amptron Electrical Services,Operational Responses,1,202312,29/03/2023,P6,9105815,"-45,692.73 ","45,692.73 ",2000,Buildings Repairs and Maintenance - Reactive,1016,Newark,"7,194.82 "
Nottinghamshire Fire and Rescue Service,102280,Amptron Electrical Services,Amptron Electrical Services,Operational Responses,1,202312,29/03/2023,P6,9105815,"-45,692.73 ","45,692.73 ",2000,Buildings Repairs and Maintenance - Reactive,1019,West Bridgford,"4,487.70 "
Nottinghamshire Fire and Rescue Service,102280,Amptron Electrical Services,Amptron Electrical Services,Operational Responses,1,202312,29/03/2023,P6,9105815,"-45,692.73 ","45,692.73 ",2000,Buildings Repairs and Maintenance - Reactive,1020,Stockhill,"3,355.59 "
Nottinghamshire Fire and Rescue Service,102280,Amptron Electrical Services,Amptron Electrical Services,Operational Responses,1,202312,29/03/2023,P6,9105815,"-45,692.73 ","45,692.73 ",2000,Buildings Repairs and Maintenance - Reactive,1024,Eastwood,858.00 
Nottinghamshire Fire and Rescue Service,102280,Amptron Electrical Services,Amptron Electrical Services,Operational Responses,1,202312,29/03/2023,P6,9105815,"-45,692.73 ","45,692.73 ",2000,Buildings Repairs and Maintenance - Reactive,1026,Arnold,"2,244.00 "
Nottinghamshire Fire and Rescue Service,102280,Amptron Electrical Services,Amptron Electrical Services,Operational Responses,1,202312,29/03/2023,P6,9105815,"-45,692.73 ","45,692.73 ",2000,Buildings Repairs and Maintenance - Reactive,1027,Carlton,223.44 
Nottinghamshire Fire and Rescue Service,102280,Amptron Electrical Services,Amptron Electrical Services,Operational Responses,1,202312,29/03/2023,P6,9105815,"-45,692.73 ","45,692.73 ",2000,Buildings Repairs and Maintenance - Reactive,1029,Highfields Station,"4,063.27 "
Nottinghamshire Fire and Rescue Service,102280,Amptron Electrical Services,Amptron Electrical Services,Management & Support Services,1,202312,29/03/2023,P6,9105815,"-45,692.73 ","45,692.73 ",2000,Buildings Repairs and Maintenance - Reactive,1030,Service Development Centre,"2,433.75 "
Nottinghamshire Fire and Rescue Service,102280,Amptron Electrical Services,Amptron Electrical Services,Operational Responses,1,202312,28/02/2023,P6,9105828,993.60 ,-993.60 ,2000,Buildings Repairs and Maintenance - Reactive,1005,Ashfield,-828.00 
Nottinghamshire Fire and Rescue Service,104235,Integrated Water Services,Integrated Water Services,Operational Responses,5,202312,28/02/2023,P6,9105273,-557.40 ,557.40 ,2050,Building Maintenance - Planned,1020,Stockhill,464.50 
Nottinghamshire Fire and Rescue Service,104235,Integrated Water Services,Integrated Water Services,Operational Responses,5,202312,28/02/2023,P6,9105274,-657.00 ,657.00 ,2050,Building Maintenance - Planned,1027,Carlton,547.50 
Nottinghamshire Fire and Rescue Service,104235,Integrated Water Services,Integrated Water Services,Operational Responses,5,202312,13/03/2023,P6,9105544,-664.20 ,664.20 ,2050,Building Maintenance - Planned,1029,Highfields Station,553.50 
Nottinghamshire Fire and Rescue Service,102280,Amptron Electrical Services,Amptron Electrical Services,Operational Responses,1,202312,28/02/2023,P6,9105545,"-12,427.92 ","12,427.92 ",2050,Building Maintenance - Planned,1001,Mansfield,434.18 
Nottinghamshire Fire and Rescue Service,102280,Amptron Electrical Services,Amptron Electrical Services,Operational Responses,1,202312,28/02/2023,P6,9105545,"-12,427.92 ","12,427.92 ",2050,Building Maintenance - Planned,1002,Blidworth,163.15 
Nottinghamshire Fire and Rescue Service,102280,Amptron Electrical Services,Amptron Electrical Services,Operational Responses,1,202312,28/02/2023,P6,9105545,"-12,427.92 ","12,427.92 ",2050,Building Maintenance - Planned,1003,London Road,445.15 
Nottinghamshire Fire and Rescue Service,102280,Amptron Electrical Services,Amptron Electrical Services,Operational Responses,1,202312,28/02/2023,P6,9105545,"-12,427.92 ","12,427.92 ",2050,Building Maintenance - Planned,1005,Ashfield,374.19 
Nottinghamshire Fire and Rescue Service,102280,Amptron Electrical Services,Amptron Electrical Services,Operational Responses,1,202312,28/02/2023,P6,9105545,"-12,427.92 ","12,427.92 ",2050,Building Maintenance - Planned,1006,Edwinstowe,400.67 
Nottinghamshire Fire and Rescue Service,102280,Amptron Electrical Services,Amptron Electrical Services,Operational Responses,1,202312,28/02/2023,P6,9105545,"-12,427.92 ","12,427.92 ",2050,Building Maintenance - Planned,1007,Warsop,146.39 
Nottinghamshire Fire and Rescue Service,102280,Amptron Electrical Services,Amptron Electrical Services,Operational Responses,1,202312,28/02/2023,P6,9105545,"-12,427.92 ","12,427.92 ",2050,Building Maintenance - Planned,1010,Harworth,163.15 
Nottinghamshire Fire and Rescue Service,102280,Amptron Electrical Services,Amptron Electrical Services,Operational Responses,1,202312,28/02/2023,P6,9105545,"-12,427.92 ","12,427.92 ",2050,Building Maintenance - Planned,1011,Misterton,146.39 
Nottinghamshire Fire and Rescue Service,102280,Amptron Electrical Services,Amptron Electrical Services,Operational Responses,1,202312,28/02/2023,P6,9105545,"-12,427.92 ","12,427.92 ",2050,Building Maintenance - Planned,1012,Retford,478.67 
Nottinghamshire Fire and Rescue Service,102280,Amptron Electrical Services,Amptron Electrical Services,Operational Responses,1,202312,28/02/2023,P6,9105545,"-12,427.92 ","12,427.92 ",2050,Building Maintenance - Planned,1013,Tuxford,328.67 
Nottinghamshire Fire and Rescue Service,102280,Amptron Electrical Services,Amptron Electrical Services,Operational Responses,1,202312,28/02/2023,P6,9105545,"-12,427.92 ","12,427.92 ",2050,Building Maintenance - Planned,1014,Southwell,146.39 
Nottinghamshire Fire and Rescue Service,102280,Amptron Electrical Services,Amptron Electrical Services,Operational Responses,1,202312,28/02/2023,P6,9105545,"-12,427.92 ","12,427.92 ",2050,Building Maintenance - Planned,1015,Collingham,163.15 
Nottinghamshire Fire and Rescue Service,102280,Amptron Electrical Services,Amptron Electrical Services,Operational Responses,1,202312,28/02/2023,P6,9105545,"-12,427.92 ","12,427.92 ",2050,Building Maintenance - Planned,1016,Newark,"1,799.61 "
Nottinghamshire Fire and Rescue Service,102280,Amptron Electrical Services,Amptron Electrical Services,Operational Responses,1,202312,28/02/2023,P6,9105545,"-12,427.92 ","12,427.92 ",2050,Building Maintenance - Planned,1017,Bingham,196.67 
Nottinghamshire Fire and Rescue Service,102280,Amptron Electrical Services,Amptron Electrical Services,Operational Responses,1,202312,28/02/2023,P6,9105545,"-12,427.92 ","12,427.92 ",2050,Building Maintenance - Planned,1019,West Bridgford,"1,140.19 "
Nottinghamshire Fire and Rescue Service,102280,Amptron Electrical Services,Amptron Electrical Services,Operational Responses,1,202312,28/02/2023,P6,9105545,"-12,427.92 ","12,427.92 ",2050,Building Maintenance - Planned,1020,Stockhill,441.18 
Nottinghamshire Fire and Rescue Service,102280,Amptron Electrical Services,Amptron Electrical Services,Operational Responses,1,202312,28/02/2023,P6,9105545,"-12,427.92 ","12,427.92 ",2050,Building Maintenance - Planned,1023,Stapleford,179.91 
Nottinghamshire Fire and Rescue Service,102280,Amptron Electrical Services,Amptron Electrical Services,Operational Responses,1,202312,28/02/2023,P6,9105545,"-12,427.92 ","12,427.92 ",2050,Building Maintenance - Planned,1024,Eastwood,213.39 
Nottinghamshire Fire and Rescue Service,102280,Amptron Electrical Services,Amptron Electrical Services,Operational Responses,1,202312,28/02/2023,P6,9105545,"-12,427.92 ","12,427.92 ",2050,Building Maintenance - Planned,1025,Hucknall,33.76 
Nottinghamshire Fire and Rescue Service,102280,Amptron Electrical Services,Amptron Electrical Services,Operational Responses,1,202312,28/02/2023,P6,9105545,"-12,427.92 ","12,427.92 ",2050,Building Maintenance - Planned,1026,Arnold,"1,140.19 "
Nottinghamshire Fire and Rescue Service,102280,Amptron Electrical Services,Amptron Electrical Services,Operational Responses,1,202312,28/02/2023,P6,9105545,"-12,427.92 ","12,427.92 ",2050,Building Maintenance - Planned,1027,Carlton,478.67 
Nottinghamshire Fire and Rescue Service,102280,Amptron Electrical Services,Amptron Electrical Services,Operational Responses,1,202312,28/02/2023,P6,9105545,"-12,427.92 ","12,427.92 ",2050,Building Maintenance - Planned,1028,East Leake,146.39 
Nottinghamshire Fire and Rescue Service,102280,Amptron Electrical Services,Amptron Electrical Services,Operational Responses,1,202312,28/02/2023,P6,9105545,"-12,427.92 ","12,427.92 ",2050,Building Maintenance - Planned,1029,Highfields Station,963.86 
Nottinghamshire Fire and Rescue Service,102280,Amptron Electrical Services,Amptron Electrical Services,Management & Support Services,1,202312,28/02/2023,P6,9105545,"-12,427.92 ","12,427.92 ",2050,Building Maintenance - Planned,1030,Service Development Centre,232.63 
Nottinghamshire Fire and Rescue Service,102280,Amptron Electrical Services,Amptron Electrical Services,Operational Responses,1,202312,22/03/2023,P6,9105548,"-5,869.81 ","5,869.81 ",2050,Building Maintenance - Planned,1001,Mansfield,"1,707.83 "
Nottinghamshire Fire and Rescue Service,102280,Amptron Electrical Services,Amptron Electrical Services,Operational Responses,1,202312,22/03/2023,P6,9105548,"-5,869.81 ","5,869.81 ",2050,Building Maintenance - Planned,1002,Blidworth,45.83 
Nottinghamshire Fire and Rescue Service,102280,Amptron Electrical Services,Amptron Electrical Services,Operational Responses,1,202312,22/03/2023,P6,9105548,"-5,869.81 ","5,869.81 ",2050,Building Maintenance - Planned,1003,London Road,57.83 
Nottinghamshire Fire and Rescue Service,102280,Amptron Electrical Services,Amptron Electrical Services,Operational Responses,1,202312,22/03/2023,P6,9105548,"-5,869.81 ","5,869.81 ",2050,Building Maintenance - Planned,1005,Ashfield,57.83 
Nottinghamshire Fire and Rescue Service,102280,Amptron Electrical Services,Amptron Electrical Services,Operational Responses,1,202312,22/03/2023,P6,9105548,"-5,869.81 ","5,869.81 ",2050,Building Maintenance - Planned,1006,Edwinstowe,631.50 
Nottinghamshire Fire and Rescue Service,102280,Amptron Electrical Services,Amptron Electrical Services,Operational Responses,1,202312,22/03/2023,P6,9105548,"-5,869.81 ","5,869.81 ",2050,Building Maintenance - Planned,1007,Warsop,423.73 
Nottinghamshire Fire and Rescue Service,102280,Amptron Electrical Services,Amptron Electrical Services,Operational Responses,1,202312,22/03/2023,P6,9105548,"-5,869.81 ","5,869.81 ",2050,Building Maintenance - Planned,1010,Harworth,45.83 
Nottinghamshire Fire and Rescue Service,102280,Amptron Electrical Services,Amptron Electrical Services,Operational Responses,1,202312,22/03/2023,P6,9105548,"-5,869.81 ","5,869.81 ",2050,Building Maintenance - Planned,1011,Misterton,45.83 
Nottinghamshire Fire and Rescue Service,102280,Amptron Electrical Services,Amptron Electrical Services,Operational Responses,1,202312,22/03/2023,P6,9105548,"-5,869.81 ","5,869.81 ",2050,Building Maintenance - Planned,1012,Retford,307.83 
Nottinghamshire Fire and Rescue Service,102280,Amptron Electrical Services,Amptron Electrical Services,Operational Responses,1,202312,22/03/2023,P6,9105548,"-5,869.81 ","5,869.81 ",2050,Building Maintenance - Planned,1013,Tuxford,45.83 
Nottinghamshire Fire and Rescue Service,102280,Amptron Electrical Services,Amptron Electrical Services,Operational Responses,1,202312,22/03/2023,P6,9105548,"-5,869.81 ","5,869.81 ",2050,Building Maintenance - Planned,1014,Southwell,45.83 
Nottinghamshire Fire and Rescue Service,102280,Amptron Electrical Services,Amptron Electrical Services,Operational Responses,1,202312,22/03/2023,P6,9105548,"-5,869.81 ","5,869.81 ",2050,Building Maintenance - Planned,1015,Collingham,45.83 
Nottinghamshire Fire and Rescue Service,102280,Amptron Electrical Services,Amptron Electrical Services,Operational Responses,1,202312,22/03/2023,P6,9105548,"-5,869.81 ","5,869.81 ",2050,Building Maintenance - Planned,1016,Newark,45.83 
Nottinghamshire Fire and Rescue Service,102280,Amptron Electrical Services,Amptron Electrical Services,Operational Responses,1,202312,22/03/2023,P6,9105548,"-5,869.81 ","5,869.81 ",2050,Building Maintenance - Planned,1017,Bingham,45.83 
Nottinghamshire Fire and Rescue Service,102280,Amptron Electrical Services,Amptron Electrical Services,Operational Responses,1,202312,22/03/2023,P6,9105548,"-5,869.81 ","5,869.81 ",2050,Building Maintenance - Planned,1019,West Bridgford,57.83 
Nottinghamshire Fire and Rescue Service,102280,Amptron Electrical Services,Amptron Electrical Services,Operational Responses,1,202312,22/03/2023,P6,9105548,"-5,869.81 ","5,869.81 ",2050,Building Maintenance - Planned,1020,Stockhill,57.83 
Nottinghamshire Fire and Rescue Service,102280,Amptron Electrical Services,Amptron Electrical Services,Operational Responses,1,202312,22/03/2023,P6,9105548,"-5,869.81 ","5,869.81 ",2050,Building Maintenance - Planned,1023,Stapleford,45.83 
Nottinghamshire Fire and Rescue Service,102280,Amptron Electrical Services,Amptron Electrical Services,Operational Responses,1,202312,22/03/2023,P6,9105548,"-5,869.81 ","5,869.81 ",2050,Building Maintenance - Planned,1024,Eastwood,45.83 
Nottinghamshire Fire and Rescue Service,102280,Amptron Electrical Services,Amptron Electrical Services,Operational Responses,1,202312,22/03/2023,P6,9105548,"-5,869.81 ","5,869.81 ",2050,Building Maintenance - Planned,1026,Arnold,57.83 
Nottinghamshire Fire and Rescue Service,102280,Amptron Electrical Services,Amptron Electrical Services,Operational Responses,1,202312,22/03/2023,P6,9105548,"-5,869.81 ","5,869.81 ",2050,Building Maintenance - Planned,1027,Carlton,307.83 
Nottinghamshire Fire and Rescue Service,102280,Amptron Electrical Services,Amptron Electrical Services,Operational Responses,1,202312,22/03/2023,P6,9105548,"-5,869.81 ","5,869.81 ",2050,Building Maintenance - Planned,1028,East Leake,45.83 
Nottinghamshire Fire and Rescue Service,102280,Amptron Electrical Services,Amptron Electrical Services,Operational Responses,1,202312,22/03/2023,P6,9105548,"-5,869.81 ","5,869.81 ",2050,Building Maintenance - Planned,1029,Highfields Station,337.52 
Nottinghamshire Fire and Rescue Service,102280,Amptron Electrical Services,Amptron Electrical Services,Management & Support Services,1,202312,22/03/2023,P6,9105548,"-5,869.81 ","5,869.81 ",2050,Building Maintenance - Planned,1030,Service Development Centre,381.99 
Nottinghamshire Fire and Rescue Service,104235,Integrated Water Services,Integrated Water Services,Operational Responses,5,202312,28/03/2023,P6,9105658,-382.20 ,382.20 ,2050,Building Maintenance - Planned,1005,Ashfield,318.50 
Nottinghamshire Fire and Rescue Service,104235,Integrated Water Services,Integrated Water Services,Operational Responses,5,202312,28/03/2023,P6,9105672,-431.40 ,431.40 ,2050,Building Maintenance - Planned,1008,Worksop,359.50 
Nottinghamshire Fire and Rescue Service,104235,Integrated Water Services,Integrated Water Services,Operational Responses,5,202312,28/03/2023,P6,9105673,-304.20 ,304.20 ,2050,Building Maintenance - Planned,1026,Arnold,253.50 
Nottinghamshire Fire and Rescue Service,104235,Integrated Water Services,Integrated Water Services,Prevention & Education,5,202312,30/03/2023,P6,9105782,-447.00 ,447.00 ,2050,Building Maintenance - Planned,1036,Clifton Community Safety Centre,372.50 
Nottinghamshire Fire and Rescue Service,104235,Integrated Water Services,Integrated Water Services,Operational Responses,5,202312,29/03/2023,P6,9105783,-305.40 ,305.40 ,2050,Building Maintenance - Planned,1012,Retford,254.50 
Nottinghamshire Fire and Rescue Service,102280,Amptron Electrical Services,Amptron Electrical Services,Management & Support Services,1,202312,30/03/2023,P6,9105794,"-105,000.00 ","105,000.00 ",2050,Building Maintenance - Planned,2087,Estates Department (Previously Premises),"87,500.00 "
Nottinghamshire Fire and Rescue Service,102280,Amptron Electrical Services,Amptron Electrical Services,Operational Responses,1,202312,31/03/2023,P6,9105809,"-84,000.00 ","84,000.00 ",2050,Building Maintenance - Planned,1020,Stockhill,"70,000.00 "
Nottinghamshire Fire and Rescue Service,102280,Amptron Electrical Services,Amptron Electrical Services,Operational Responses,1,202312,30/03/2023,P6,9105811,"-51,696.00 ","51,696.00 ",2050,Building Maintenance - Planned,1020,Stockhill,"43,080.00 "
Nottinghamshire Fire and Rescue Service,102280,Amptron Electrical Services,Amptron Electrical Services,Operational Responses,1,202312,29/03/2023,P6,9105816,"-13,320.00 ","13,320.00 ",2050,Building Maintenance - Planned,1001,Mansfield,"1,650.00 "
Nottinghamshire Fire and Rescue Service,102280,Amptron Electrical Services,Amptron Electrical Services,Operational Responses,1,202312,29/03/2023,P6,9105816,"-13,320.00 ","13,320.00 ",2050,Building Maintenance - Planned,1007,Warsop,"1,500.00 "
Nottinghamshire Fire and Rescue Service,102280,Amptron Electrical Services,Amptron Electrical Services,Operational Responses,1,202312,29/03/2023,P6,9105816,"-13,320.00 ","13,320.00 ",2050,Building Maintenance - Planned,1013,Tuxford,"1,650.00 "
Nottinghamshire Fire and Rescue Service,102280,Amptron Electrical Services,Amptron Electrical Services,Operational Responses,1,202312,29/03/2023,P6,9105816,"-13,320.00 ","13,320.00 ",2050,Building Maintenance - Planned,1017,Bingham,"1,680.00 "
Nottinghamshire Fire and Rescue Service,102280,Amptron Electrical Services,Amptron Electrical Services,Operational Responses,1,202312,29/03/2023,P6,9105816,"-13,320.00 ","13,320.00 ",2050,Building Maintenance - Planned,1019,West Bridgford,"1,545.00 "
Nottinghamshire Fire and Rescue Service,102280,Amptron Electrical Services,Amptron Electrical Services,Operational Responses,1,202312,29/03/2023,P6,9105816,"-13,320.00 ","13,320.00 ",2050,Building Maintenance - Planned,1020,Stockhill,"1,530.00 "
Nottinghamshire Fire and Rescue Service,102280,Amptron Electrical Services,Amptron Electrical Services,Operational Responses,1,202312,29/03/2023,P6,9105816,"-13,320.00 ","13,320.00 ",2050,Building Maintenance - Planned,1026,Arnold,"1,545.00 "
Nottinghamshire Fire and Rescue Service,102280,Amptron Electrical Services,Amptron Electrical Services,Operational Responses,1,202312,31/03/2023,P6,9105829,"-4,010.40 ","4,010.40 ",2050,Building Maintenance - Planned,1020,Stockhill,"3,342.00 "
Nottinghamshire Fire and Rescue Service,102280,Amptron Electrical Services,Amptron Electrical Services,Operational Responses,1,202312,31/03/2023,P6,9105853,"-3,061.72 ","3,061.72 ",2050,Building Maintenance - Planned,1005,Ashfield,"2,551.43 "
Nottinghamshire Fire and Rescue Service,102744,EDF Energy,EDF Energy,Operational Responses,1,202312,11/01/2023,P6,9105340,"-1,494.58 ","1,494.58 ",2100,Electricity,1017,Bingham,"1,245.47 "
Nottinghamshire Fire and Rescue Service,102744,EDF Energy,EDF Energy,Operational Responses,1,202312,02/02/2023,P6,9105342,-465.57 ,465.57 ,2100,Electricity,1001,Mansfield,387.98 
Nottinghamshire Fire and Rescue Service,102744,EDF Energy,EDF Energy,Operational Responses,1,202312,28/02/2023,P6,9105343,-923.35 ,923.35 ,2100,Electricity,1013,Tuxford,769.46 
Nottinghamshire Fire and Rescue Service,102744,EDF Energy,EDF Energy,Operational Responses,1,202312,02/02/2023,P6,9105344,-463.08 ,463.08 ,2100,Electricity,1015,Collingham,385.90 
Nottinghamshire Fire and Rescue Service,102744,EDF Energy,EDF Energy,Operational Responses,1,202312,03/02/2023,P6,9105345,"-1,942.71 ","1,942.71 ",2100,Electricity,1026,Arnold,"1,618.93 "
Nottinghamshire Fire and Rescue Service,102744,EDF Energy,EDF Energy,Operational Responses,1,202312,08/02/2023,P6,9105346,-616.00 ,616.00 ,2100,Electricity,1007,Warsop,1.57 
Nottinghamshire Fire and Rescue Service,102744,EDF Energy,EDF Energy,Operational Responses,1,202312,08/02/2023,P6,9105346,-616.00 ,616.00 ,2100,Electricity,1007,Warsop,512.03 
Nottinghamshire Fire and Rescue Service,102744,EDF Energy,EDF Energy,Operational Responses,1,202312,09/02/2023,P6,9105347,-340.92 ,340.92 ,2100,Electricity,1007,Warsop,284.10 
Nottinghamshire Fire and Rescue Service,102744,EDF Energy,EDF Energy,Operational Responses,1,202312,06/02/2023,P6,9105351,-544.19 ,544.19 ,2100,Electricity,1014,Southwell,453.49 
Nottinghamshire Fire and Rescue Service,102744,EDF Energy,EDF Energy,Operational Responses,1,202312,09/02/2023,P6,9105352,-345.55 ,345.55 ,2100,Electricity,1007,Warsop,5.11 
Nottinghamshire Fire and Rescue Service,102744,EDF Energy,EDF Energy,Operational Responses,1,202312,09/02/2023,P6,9105352,-345.55 ,345.55 ,2100,Electricity,1007,Warsop,283.70 
Nottinghamshire Fire and Rescue Service,102744,EDF Energy,EDF Energy,Operational Responses,1,202312,01/03/2023,P6,9105353,-417.71 ,417.71 ,2100,Electricity,1028,East Leake,348.09 
Nottinghamshire Fire and Rescue Service,102744,EDF Energy,EDF Energy,Operational Responses,1,202312,09/02/2023,P6,9105354,-293.90 ,293.90 ,2100,Electricity,1007,Warsop,244.91 
Nottinghamshire Fire and Rescue Service,102744,EDF Energy,EDF Energy,Operational Responses,1,202312,16/02/2023,P6,9105355,"-6,618.27 ","6,618.27 ",2100,Electricity,1020,Stockhill,2.56 
Nottinghamshire Fire and Rescue Service,102744,EDF Energy,EDF Energy,Operational Responses,1,202312,16/02/2023,P6,9105355,"-6,618.27 ","6,618.27 ",2100,Electricity,1020,Stockhill,"5,513.09 "
Nottinghamshire Fire and Rescue Service,102744,EDF Energy,EDF Energy,Operational Responses,1,202312,21/02/2023,P6,9105356,-292.13 ,292.13 ,2100,Electricity,1007,Warsop,243.44 
Nottinghamshire Fire and Rescue Service,102744,EDF Energy,EDF Energy,Operational Responses,1,202312,28/02/2023,P6,9105357,-267.18 ,267.18 ,2100,Electricity,1002,Blidworth,1.59 
Nottinghamshire Fire and Rescue Service,102744,EDF Energy,EDF Energy,Operational Responses,1,202312,28/02/2023,P6,9105357,-267.18 ,267.18 ,2100,Electricity,1002,Blidworth,252.94 
Nottinghamshire Fire and Rescue Service,102744,EDF Energy,EDF Energy,Operational Responses,1,202312,28/02/2023,P6,9105358,-905.34 ,905.34 ,2100,Electricity,1001,Mansfield,0.01 
Nottinghamshire Fire and Rescue Service,102744,EDF Energy,EDF Energy,Operational Responses,1,202312,28/02/2023,P6,9105358,-905.34 ,905.34 ,2100,Electricity,1001,Mansfield,754.44 
Nottinghamshire Fire and Rescue Service,102744,EDF Energy,EDF Energy,Operational Responses,1,202312,28/02/2023,P6,9105360,-409.24 ,409.24 ,2100,Electricity,1015,Collingham,0.21 
Nottinghamshire Fire and Rescue Service,102744,EDF Energy,EDF Energy,Operational Responses,1,202312,28/02/2023,P6,9105360,-409.24 ,409.24 ,2100,Electricity,1015,Collingham,340.86 
Nottinghamshire Fire and Rescue Service,102744,EDF Energy,EDF Energy,Operational Responses,1,202312,28/02/2023,P6,9105361,-377.23 ,377.23 ,2100,Electricity,1008,Worksop,314.36 
Nottinghamshire Fire and Rescue Service,102744,EDF Energy,EDF Energy,Operational Responses,1,202312,28/02/2023,P6,9105362,"-1,658.72 ","1,658.72 ",2100,Electricity,1026,Arnold,0.70 
Nottinghamshire Fire and Rescue Service,102744,EDF Energy,EDF Energy,Operational Responses,1,202312,28/02/2023,P6,9105362,"-1,658.72 ","1,658.72 ",2100,Electricity,1026,Arnold,"1,381.69 "
Nottinghamshire Fire and Rescue Service,102744,EDF Energy,EDF Energy,Operational Responses,1,202312,01/03/2023,P6,9105363,"-3,716.56 ","3,716.56 ",2100,Electricity,1008,Worksop,"3,097.13 "
Nottinghamshire Fire and Rescue Service,102744,EDF Energy,EDF Energy,Operational Responses,1,202312,07/03/2023,P6,9105564,-485.44 ,485.44 ,2100,Electricity,1014,Southwell,0.39 
Nottinghamshire Fire and Rescue Service,102744,EDF Energy,EDF Energy,Operational Responses,1,202312,07/03/2023,P6,9105564,-485.44 ,485.44 ,2100,Electricity,1014,Southwell,404.21 
Nottinghamshire Fire and Rescue Service,102744,EDF Energy,EDF Energy,Operational Responses,1,202312,02/02/2023,P6,9105318,444.54 ,-444.54 ,2100,Electricity,1001,Mansfield,-370.45 
Nottinghamshire Fire and Rescue Service,102744,EDF Energy,EDF Energy,Operational Responses,1,202312,02/02/2023,P6,9105319,456.46 ,-456.46 ,2100,Electricity,1015,Collingham,-380.38 
Nottinghamshire Fire and Rescue Service,102744,EDF Energy,EDF Energy,Operational Responses,1,202312,09/02/2023,P6,9105320,399.24 ,-399.24 ,2100,Electricity,1007,Warsop,-331.82 
Nottinghamshire Fire and Rescue Service,102744,EDF Energy,EDF Energy,Operational Responses,1,202312,09/02/2023,P6,9105320,399.24 ,-399.24 ,2100,Electricity,1007,Warsop,-1.05 
Nottinghamshire Fire and Rescue Service,102744,EDF Energy,EDF Energy,Operational Responses,1,202312,09/02/2023,P6,9105321,431.56 ,-431.56 ,2100,Electricity,1007,Warsop,-359.25 
Nottinghamshire Fire and Rescue Service,102744,EDF Energy,EDF Energy,Operational Responses,1,202312,09/02/2023,P6,9105321,431.56 ,-431.56 ,2100,Electricity,1007,Warsop,-0.46 
Nottinghamshire Fire and Rescue Service,102744,EDF Energy,EDF Energy,Operational Responses,1,202312,09/02/2023,P6,9105322,616.00 ,-616.00 ,2100,Electricity,1007,Warsop,-512.03 
Nottinghamshire Fire and Rescue Service,102744,EDF Energy,EDF Energy,Operational Responses,1,202312,09/02/2023,P6,9105322,616.00 ,-616.00 ,2100,Electricity,1007,Warsop,-1.57 
Nottinghamshire Fire and Rescue Service,102744,EDF Energy,EDF Energy,Operational Responses,1,202312,09/02/2023,P6,9105323,347.23 ,-347.23 ,2100,Electricity,1007,Warsop,-288.49 
Nottinghamshire Fire and Rescue Service,102744,EDF Energy,EDF Energy,Operational Responses,1,202312,09/02/2023,P6,9105323,347.23 ,-347.23 ,2100,Electricity,1007,Warsop,-1.05 
Nottinghamshire Fire and Rescue Service,102744,EDF Energy,EDF Energy,Operational Responses,1,202312,09/02/2023,P6,9105324,330.67 ,-330.67 ,2100,Electricity,1007,Warsop,-275.56 
Nottinghamshire Fire and Rescue Service,102744,EDF Energy,EDF Energy,Operational Responses,1,202312,09/02/2023,P6,9105325,599.48 ,-599.48 ,2100,Electricity,1007,Warsop,-498.42 
Nottinghamshire Fire and Rescue Service,102744,EDF Energy,EDF Energy,Operational Responses,1,202312,09/02/2023,P6,9105325,599.48 ,-599.48 ,2100,Electricity,1007,Warsop,-1.38 
Nottinghamshire Fire and Rescue Service,102744,EDF Energy,EDF Energy,Operational Responses,1,202312,09/02/2023,P6,9105329,399.72 ,-399.72 ,2100,Electricity,1007,Warsop,-333.10 
Nottinghamshire Fire and Rescue Service,102744,EDF Energy,EDF Energy,Operational Responses,1,202312,09/02/2023,P6,9105330,414.17 ,-414.17 ,2100,Electricity,1007,Warsop,-345.14 
Nottinghamshire Fire and Rescue Service,102744,EDF Energy,EDF Energy,Operational Responses,1,202312,09/02/2023,P6,9105331,403.11 ,-403.11 ,2100,Electricity,1007,Warsop,-335.92 
Nottinghamshire Fire and Rescue Service,102744,EDF Energy,EDF Energy,Operational Responses,1,202312,09/02/2023,P6,9105332,397.00 ,-397.00 ,2100,Electricity,1007,Warsop,-330.71 
Nottinghamshire Fire and Rescue Service,102744,EDF Energy,EDF Energy,Operational Responses,1,202312,09/02/2023,P6,9105332,397.00 ,-397.00 ,2100,Electricity,1007,Warsop,-0.15 
Nottinghamshire Fire and Rescue Service,102744,EDF Energy,EDF Energy,Operational Responses,1,202312,09/02/2023,P6,9105333,436.22 ,-436.22 ,2100,Electricity,1007,Warsop,-363.52 
Nottinghamshire Fire and Rescue Service,102744,EDF Energy,EDF Energy,Operational Responses,1,202312,09/02/2023,P6,9105334,527.80 ,-527.80 ,2100,Electricity,1007,Warsop,-439.83 
Nottinghamshire Fire and Rescue Service,102744,EDF Energy,EDF Energy,Operational Responses,1,202312,09/02/2023,P6,9105341,603.61 ,-603.61 ,2100,Electricity,1007,Warsop,-503.47 
Nottinghamshire Fire and Rescue Service,102744,EDF Energy,EDF Energy,Operational Responses,1,202312,09/02/2023,P6,9105341,603.61 ,-603.61 ,2100,Electricity,1007,Warsop,0.55 
Nottinghamshire Fire and Rescue Service,100055,Nottingham City Council,Nottingham City Council,Operational Responses,4,202312,09/03/2023,P6,9105261,"-4,086.23 ","4,086.23 ",2101,Gas,1003,London Road,"3,405.19 "
Nottinghamshire Fire and Rescue Service,104098,Total Gas & Power Limited,Total Gas & Power Limited,Operational Responses,5,202312,13/03/2023,P6,9105420,"-1,676.37 ","1,676.37 ",2101,Gas,1019,West Bridgford,"1,396.98 "
Nottinghamshire Fire and Rescue Service,104098,Total Gas & Power Limited,Total Gas & Power Limited,Operational Responses,5,202312,13/03/2023,P6,9105422,"-1,287.80 ","1,287.80 ",2101,Gas,1024,Eastwood,"1,073.17 "
Nottinghamshire Fire and Rescue Service,104098,Total Gas & Power Limited,Total Gas & Power Limited,Operational Responses,5,202312,13/03/2023,P6,9105423,"-1,268.67 ","1,268.67 ",2101,Gas,1012,Retford,"1,057.22 "
Nottinghamshire Fire and Rescue Service,104098,Total Gas & Power Limited,Total Gas & Power Limited,Operational Responses,5,202312,13/03/2023,P6,9105424,"-1,104.78 ","1,104.78 ",2101,Gas,1027,Carlton,920.65 
Nottinghamshire Fire and Rescue Service,104098,Total Gas & Power Limited,Total Gas & Power Limited,Operational Responses,5,202312,13/03/2023,P6,9105425,-899.18 ,899.18 ,2101,Gas,1015,Collingham,749.32 
Nottinghamshire Fire and Rescue Service,104098,Total Gas & Power Limited,Total Gas & Power Limited,Operational Responses,5,202312,13/03/2023,P6,9105426,-888.89 ,888.89 ,2101,Gas,1016,Newark,740.74 
Nottinghamshire Fire and Rescue Service,104098,Total Gas & Power Limited,Total Gas & Power Limited,Operational Responses,5,202312,13/03/2023,P6,9105427,"-4,072.45 ","4,072.45 ",2101,Gas,1001,Mansfield,"3,393.71 "
Nottinghamshire Fire and Rescue Service,104098,Total Gas & Power Limited,Total Gas & Power Limited,Operational Responses,5,202312,13/03/2023,P6,9105429,-770.65 ,770.65 ,2101,Gas,1001,Mansfield,642.21 
Nottinghamshire Fire and Rescue Service,104098,Total Gas & Power Limited,Total Gas & Power Limited,Operational Responses,5,202312,13/03/2023,P6,9105430,-586.74 ,586.74 ,2101,Gas,1010,Harworth,488.95 
Nottinghamshire Fire and Rescue Service,104098,Total Gas & Power Limited,Total Gas & Power Limited,Operational Responses,5,202312,13/03/2023,P6,9105431,"-3,387.07 ","3,387.07 ",2101,Gas,1005,Ashfield,"2,822.56 "
Nottinghamshire Fire and Rescue Service,104098,Total Gas & Power Limited,Total Gas & Power Limited,Operational Responses,5,202312,13/03/2023,P6,9105432,-381.57 ,381.57 ,2101,Gas,1007,Warsop,317.98 
Nottinghamshire Fire and Rescue Service,104098,Total Gas & Power Limited,Total Gas & Power Limited,Operational Responses,5,202312,13/03/2023,P6,9105433,-336.70 ,336.70 ,2101,Gas,1015,Collingham,320.67 
Nottinghamshire Fire and Rescue Service,104098,Total Gas & Power Limited,Total Gas & Power Limited,Operational Responses,5,202312,13/03/2023,P6,9105434,-260.12 ,260.12 ,2101,Gas,1002,Blidworth,247.73 
Nottinghamshire Fire and Rescue Service,104098,Total Gas & Power Limited,Total Gas & Power Limited,Operational Responses,5,202312,13/03/2023,P6,9105435,"-3,168.71 ","3,168.71 ",2101,Gas,1020,Stockhill,"2,640.59 "
Nottinghamshire Fire and Rescue Service,104098,Total Gas & Power Limited,Total Gas & Power Limited,Management & Support Services,5,202312,13/03/2023,P6,9105436,-368.39 ,368.39 ,2101,Gas,1035,Headquarters,306.99 
Nottinghamshire Fire and Rescue Service,104098,Total Gas & Power Limited,Total Gas & Power Limited,Operational Responses,5,202312,13/03/2023,P6,9105437,-613.85 ,613.85 ,2101,Gas,1017,Bingham,511.54 
Nottinghamshire Fire and Rescue Service,104098,Total Gas & Power Limited,Total Gas & Power Limited,Operational Responses,5,202312,14/03/2023,P6,9105438,"-3,265.73 ","3,265.73 ",2101,Gas,1029,Highfields Station,"2,721.44 "
Nottinghamshire Fire and Rescue Service,104098,Total Gas & Power Limited,Total Gas & Power Limited,Management & Support Services,5,202312,13/03/2023,P6,9105439,"-1,692.55 ","1,692.55 ",2101,Gas,1030,Service Development Centre,"1,410.46 "
Nottinghamshire Fire and Rescue Service,104098,Total Gas & Power Limited,Total Gas & Power Limited,Operational Responses,5,202312,14/03/2023,P6,9105440,"-2,096.30 ","2,096.30 ",2101,Gas,1026,Arnold,"1,746.92 "
Nottinghamshire Fire and Rescue Service,104098,Total Gas & Power Limited,Total Gas & Power Limited,Operational Responses,5,202312,14/03/2023,P6,9105441,-371.45 ,371.45 ,2101,Gas,1014,Southwell,309.54 
Nottinghamshire Fire and Rescue Service,104098,Total Gas & Power Limited,Total Gas & Power Limited,Operational Responses,5,202312,14/03/2023,P6,9105442,"-1,791.32 ","1,791.32 ",2101,Gas,1006,Edwinstowe,"1,492.77 "
Nottinghamshire Fire and Rescue Service,104098,Total Gas & Power Limited,Total Gas & Power Limited,Operational Responses,5,202312,02/03/2023,P6,9105454,-289.38 ,289.38 ,2101,Gas,1015,Collingham,275.60 
Nottinghamshire Fire and Rescue Service,104098,Total Gas & Power Limited,Total Gas & Power Limited,Operational Responses,5,202312,02/03/2023,P6,9105455,-561.02 ,561.02 ,2101,Gas,1015,Collingham,534.30 
Nottinghamshire Fire and Rescue Service,104098,Total Gas & Power Limited,Total Gas & Power Limited,Operational Responses,5,202312,17/03/2023,P6,9105565,"-1,710.79 ","1,710.79 ",2101,Gas,1008,Worksop,"1,425.66 "
Nottinghamshire Fire and Rescue Service,102655,Nottingham City Council (City Treasurer),Nottingham City Council (City Treasurer),Operational Responses,1,202312,28/02/2022,P6,9105674,"-2,170.81 ","2,170.81 ",2101,Gas,1003,London Road,"1,809.01 "
Nottinghamshire Fire and Rescue Service,104098,Total Gas & Power Limited,Total Gas & Power Limited,Operational Responses,5,202312,02/03/2023,P6,9105421,517.54 ,-517.54 ,2101,Gas,1015,Collingham,-431.28 
Nottinghamshire Fire and Rescue Service,104007,Castle Water Limited,Castle Water Limited,Management & Support Services,5,202312,24/02/2023,P6,9105364,"-8,855.14 ","8,855.14 ",2103,Water Rates,1030,Service Development Centre,"5,240.35 "
Nottinghamshire Fire and Rescue Service,102276,Water Plus Limited (Payments Centre),Water Plus Limited (Payments Centre),Operational Responses,1,202312,24/02/2023,P6,9105367,-315.23 ,315.23 ,2103,Water Rates,1008,Worksop,75.72 
Nottinghamshire Fire and Rescue Service,104007,Castle Water Limited,Castle Water Limited,Operational Responses,5,202312,15/02/2023,P6,9105371,"-4,725.04 ","4,725.04 ",2103,Water Rates,1029,Highfields Station,"2,796.52 "
Nottinghamshire Fire and Rescue Service,104007,Castle Water Limited,Castle Water Limited,Operational Responses,5,202312,06/03/2023,P6,9105380,-263.60 ,263.60 ,2103,Water Rates,1013,Tuxford,219.92 
Nottinghamshire Fire and Rescue Service,104256,Advanced Demand Side Management Limited,Advanced Demand Side Management Limited,Operational Responses,5,202312,03/03/2023,P6,9105384,"-3,635.39 ","3,635.39 ",2103,Water Rates,1001,Mansfield,27.60 
Nottinghamshire Fire and Rescue Service,104256,Advanced Demand Side Management Limited,Advanced Demand Side Management Limited,Operational Responses,5,202312,03/03/2023,P6,9105384,"-3,635.39 ","3,635.39 ",2103,Water Rates,1001,Mansfield,39.29 
Nottinghamshire Fire and Rescue Service,104256,Advanced Demand Side Management Limited,Advanced Demand Side Management Limited,Operational Responses,5,202312,03/03/2023,P6,9105384,"-3,635.39 ","3,635.39 ",2103,Water Rates,1002,Blidworth,3.11 
Nottinghamshire Fire and Rescue Service,104256,Advanced Demand Side Management Limited,Advanced Demand Side Management Limited,Operational Responses,5,202312,03/03/2023,P6,9105384,"-3,635.39 ","3,635.39 ",2103,Water Rates,1003,London Road,58.88 
Nottinghamshire Fire and Rescue Service,104256,Advanced Demand Side Management Limited,Advanced Demand Side Management Limited,Operational Responses,5,202312,03/03/2023,P6,9105384,"-3,635.39 ","3,635.39 ",2103,Water Rates,1005,Ashfield,45.82 
Nottinghamshire Fire and Rescue Service,104256,Advanced Demand Side Management Limited,Advanced Demand Side Management Limited,Operational Responses,5,202312,03/03/2023,P6,9105384,"-3,635.39 ","3,635.39 ",2103,Water Rates,1006,Edwinstowe,13.06 
Nottinghamshire Fire and Rescue Service,104256,Advanced Demand Side Management Limited,Advanced Demand Side Management Limited,Operational Responses,5,202312,03/03/2023,P6,9105384,"-3,635.39 ","3,635.39 ",2103,Water Rates,1006,Edwinstowe,26.71 
Nottinghamshire Fire and Rescue Service,104256,Advanced Demand Side Management Limited,Advanced Demand Side Management Limited,Operational Responses,5,202312,03/03/2023,P6,9105384,"-3,635.39 ","3,635.39 ",2103,Water Rates,1007,Warsop,16.17 
Nottinghamshire Fire and Rescue Service,104256,Advanced Demand Side Management Limited,Advanced Demand Side Management Limited,Operational Responses,5,202312,03/03/2023,P6,9105384,"-3,635.39 ","3,635.39 ",2103,Water Rates,1011,Misterton,3.50 
Nottinghamshire Fire and Rescue Service,104256,Advanced Demand Side Management Limited,Advanced Demand Side Management Limited,Operational Responses,5,202312,03/03/2023,P6,9105384,"-3,635.39 ","3,635.39 ",2103,Water Rates,1012,Retford,26.99 
Nottinghamshire Fire and Rescue Service,104256,Advanced Demand Side Management Limited,Advanced Demand Side Management Limited,Operational Responses,5,202312,03/03/2023,P6,9105384,"-3,635.39 ","3,635.39 ",2103,Water Rates,1013,Tuxford,72.51 
Nottinghamshire Fire and Rescue Service,104256,Advanced Demand Side Management Limited,Advanced Demand Side Management Limited,Operational Responses,5,202312,03/03/2023,P6,9105384,"-3,635.39 ","3,635.39 ",2103,Water Rates,1014,Southwell,16.17 
Nottinghamshire Fire and Rescue Service,104256,Advanced Demand Side Management Limited,Advanced Demand Side Management Limited,Operational Responses,5,202312,03/03/2023,P6,9105384,"-3,635.39 ","3,635.39 ",2103,Water Rates,1015,Collingham,19.44 
Nottinghamshire Fire and Rescue Service,104256,Advanced Demand Side Management Limited,Advanced Demand Side Management Limited,Operational Responses,5,202312,03/03/2023,P6,9105384,"-3,635.39 ","3,635.39 ",2103,Water Rates,1016,Newark,1.73 
Nottinghamshire Fire and Rescue Service,104256,Advanced Demand Side Management Limited,Advanced Demand Side Management Limited,Operational Responses,5,202312,03/03/2023,P6,9105384,"-3,635.39 ","3,635.39 ",2103,Water Rates,1017,Bingham,14.54 
Nottinghamshire Fire and Rescue Service,104256,Advanced Demand Side Management Limited,Advanced Demand Side Management Limited,Operational Responses,5,202312,03/03/2023,P6,9105384,"-3,635.39 ","3,635.39 ",2103,Water Rates,1023,Stapleford,40.67 
Nottinghamshire Fire and Rescue Service,104256,Advanced Demand Side Management Limited,Advanced Demand Side Management Limited,Operational Responses,5,202312,03/03/2023,P6,9105384,"-3,635.39 ","3,635.39 ",2103,Water Rates,1024,Eastwood,16.93 
Nottinghamshire Fire and Rescue Service,104256,Advanced Demand Side Management Limited,Advanced Demand Side Management Limited,Operational Responses,5,202312,03/03/2023,P6,9105384,"-3,635.39 ","3,635.39 ",2103,Water Rates,1026,Arnold,65.16 
Nottinghamshire Fire and Rescue Service,104256,Advanced Demand Side Management Limited,Advanced Demand Side Management Limited,Operational Responses,5,202312,03/03/2023,P6,9105384,"-3,635.39 ","3,635.39 ",2103,Water Rates,1027,Carlton,20.20 
Nottinghamshire Fire and Rescue Service,104256,Advanced Demand Side Management Limited,Advanced Demand Side Management Limited,Operational Responses,5,202312,03/03/2023,P6,9105384,"-3,635.39 ","3,635.39 ",2103,Water Rates,1029,Highfields Station,258.08 
Nottinghamshire Fire and Rescue Service,104256,Advanced Demand Side Management Limited,Advanced Demand Side Management Limited,Management & Support Services,5,202312,03/03/2023,P6,9105384,"-3,635.39 ","3,635.39 ",2103,Water Rates,1030,Service Development Centre,426.26 
Nottinghamshire Fire and Rescue Service,104256,Advanced Demand Side Management Limited,Advanced Demand Side Management Limited,Management & Support Services,5,202312,03/03/2023,P6,9105384,"-3,635.39 ","3,635.39 ",2103,Water Rates,1035,Headquarters,213.99 
Nottinghamshire Fire and Rescue Service,104256,Advanced Demand Side Management Limited,Advanced Demand Side Management Limited,Prevention & Education,5,202312,03/03/2023,P6,9105384,"-3,635.39 ","3,635.39 ",2103,Water Rates,1036,Clifton Community Safety Centre,12.91 
Nottinghamshire Fire and Rescue Service,104007,Castle Water Limited,Castle Water Limited,Operational Responses,5,202312,24/11/2021,P6,9105618,-469.78 ,469.78 ,2103,Water Rates,1019,West Bridgford,192.51 
Nottinghamshire Fire and Rescue Service,104007,Castle Water Limited,Castle Water Limited,Operational Responses,5,202312,02/02/2022,P6,9105621,-649.17 ,649.17 ,2103,Water Rates,1019,West Bridgford,2.22 
Nottinghamshire Fire and Rescue Service,104007,Castle Water Limited,Castle Water Limited,Operational Responses,5,202312,02/02/2022,P6,9105621,-649.17 ,649.17 ,2103,Water Rates,1019,West Bridgford,199.06 
Nottinghamshire Fire and Rescue Service,104007,Castle Water Limited,Castle Water Limited,Operational Responses,5,202312,04/05/2022,P6,9105624,-544.06 ,544.06 ,2103,Water Rates,1019,West Bridgford,42.38 
Nottinghamshire Fire and Rescue Service,104007,Castle Water Limited,Castle Water Limited,Operational Responses,5,202312,04/05/2022,P6,9105624,-544.06 ,544.06 ,2103,Water Rates,1019,West Bridgford,200.34 
Nottinghamshire Fire and Rescue Service,104007,Castle Water Limited,Castle Water Limited,Operational Responses,5,202312,06/06/2022,P6,9105625,-524.40 ,524.40 ,2103,Water Rates,1019,West Bridgford,5.98 
Nottinghamshire Fire and Rescue Service,104007,Castle Water Limited,Castle Water Limited,Operational Responses,5,202312,06/06/2022,P6,9105625,-524.40 ,524.40 ,2103,Water Rates,1019,West Bridgford,207.03 
Nottinghamshire Fire and Rescue Service,104007,Castle Water Limited,Castle Water Limited,Operational Responses,5,202312,04/07/2022,P6,9105626,-512.07 ,512.07 ,2103,Water Rates,1019,West Bridgford,3.79 
Nottinghamshire Fire and Rescue Service,104007,Castle Water Limited,Castle Water Limited,Operational Responses,5,202312,04/07/2022,P6,9105626,-512.07 ,512.07 ,2103,Water Rates,1019,West Bridgford,202.97 
Nottinghamshire Fire and Rescue Service,104007,Castle Water Limited,Castle Water Limited,Operational Responses,5,202312,16/03/2023,P6,9105629,-263.61 ,263.61 ,2103,Water Rates,1028,East Leake,219.93 
Nottinghamshire Fire and Rescue Service,102276,Water Plus Limited (Payments Centre),Water Plus Limited (Payments Centre),Operational Responses,1,202312,24/03/2023,P6,9105826,-284.94 ,284.94 ,2103,Water Rates,1008,Worksop,68.53 
Nottinghamshire Fire and Rescue Service,102276,Water Plus Limited (Payments Centre),Water Plus Limited (Payments Centre),Operational Responses,1,202312,24/03/2023,P6,9105839,-284.94 ,284.94 ,2103,Water Rates,1008,Worksop,68.53 
Nottinghamshire Fire and Rescue Service,104007,Castle Water Limited,Castle Water Limited,Management & Support Services,5,202312,24/02/2023,P6,9105349,879.99 ,-879.99 ,2103,Water Rates,1030,Service Development Centre,-515.35 
Nottinghamshire Fire and Rescue Service,104007,Castle Water Limited,Castle Water Limited,Management & Support Services,5,202312,24/02/2023,P6,9105349,879.99 ,-879.99 ,2103,Water Rates,1030,Service Development Centre,-8.91 
Nottinghamshire Fire and Rescue Service,104007,Castle Water Limited,Castle Water Limited,Operational Responses,5,202312,17/03/2023,P6,9105631,261.38 ,-261.38 ,2103,Water Rates,1019,West Bridgford,-248.48 
Nottinghamshire Fire and Rescue Service,104007,Castle Water Limited,Castle Water Limited,Operational Responses,5,202312,17/03/2023,P6,9105631,261.38 ,-261.38 ,2103,Water Rates,1019,West Bridgford,4.11 
Nottinghamshire Fire and Rescue Service,104007,Castle Water Limited,Castle Water Limited,Management & Support Services,5,202312,24/02/2023,P6,9105364,"-8,855.14 ","8,855.14 ",2104,Sewerage and Environmental,1030,Service Development Centre,"3,614.79 "
Nottinghamshire Fire and Rescue Service,102276,Water Plus Limited (Payments Centre),Water Plus Limited (Payments Centre),Operational Responses,1,202312,24/02/2023,P6,9105367,-315.23 ,315.23 ,2104,Sewerage and Environmental,1008,Worksop,52.95 
Nottinghamshire Fire and Rescue Service,102276,Water Plus Limited (Payments Centre),Water Plus Limited (Payments Centre),Operational Responses,1,202312,24/02/2023,P6,9105367,-315.23 ,315.23 ,2104,Sewerage and Environmental,1008,Worksop,171.42 
Nottinghamshire Fire and Rescue Service,104007,Castle Water Limited,Castle Water Limited,Operational Responses,5,202312,15/02/2023,P6,9105371,"-4,725.04 ","4,725.04 ",2104,Sewerage and Environmental,1029,Highfields Station,"1,928.52 "
Nottinghamshire Fire and Rescue Service,104256,Advanced Demand Side Management Limited,Advanced Demand Side Management Limited,Operational Responses,5,202312,03/03/2023,P6,9105384,"-3,635.39 ","3,635.39 ",2104,Sewerage and Environmental,1001,Mansfield,19.55 
Nottinghamshire Fire and Rescue Service,104256,Advanced Demand Side Management Limited,Advanced Demand Side Management Limited,Operational Responses,5,202312,03/03/2023,P6,9105384,"-3,635.39 ","3,635.39 ",2104,Sewerage and Environmental,1001,Mansfield,177.08 
Nottinghamshire Fire and Rescue Service,104256,Advanced Demand Side Management Limited,Advanced Demand Side Management Limited,Operational Responses,5,202312,03/03/2023,P6,9105384,"-3,635.39 ","3,635.39 ",2104,Sewerage and Environmental,1002,Blidworth,10.49 
Nottinghamshire Fire and Rescue Service,104256,Advanced Demand Side Management Limited,Advanced Demand Side Management Limited,Operational Responses,5,202312,03/03/2023,P6,9105384,"-3,635.39 ","3,635.39 ",2104,Sewerage and Environmental,1003,London Road,40.94 
Nottinghamshire Fire and Rescue Service,104256,Advanced Demand Side Management Limited,Advanced Demand Side Management Limited,Operational Responses,5,202312,03/03/2023,P6,9105384,"-3,635.39 ","3,635.39 ",2104,Sewerage and Environmental,1005,Ashfield,75.87 
Nottinghamshire Fire and Rescue Service,104256,Advanced Demand Side Management Limited,Advanced Demand Side Management Limited,Operational Responses,5,202312,03/03/2023,P6,9105384,"-3,635.39 ","3,635.39 ",2104,Sewerage and Environmental,1006,Edwinstowe,9.01 
Nottinghamshire Fire and Rescue Service,104256,Advanced Demand Side Management Limited,Advanced Demand Side Management Limited,Operational Responses,5,202312,03/03/2023,P6,9105384,"-3,635.39 ","3,635.39 ",2104,Sewerage and Environmental,1006,Edwinstowe,107.00 
Nottinghamshire Fire and Rescue Service,104256,Advanced Demand Side Management Limited,Advanced Demand Side Management Limited,Operational Responses,5,202312,03/03/2023,P6,9105384,"-3,635.39 ","3,635.39 ",2104,Sewerage and Environmental,1007,Warsop,11.67 
Nottinghamshire Fire and Rescue Service,104256,Advanced Demand Side Management Limited,Advanced Demand Side Management Limited,Operational Responses,5,202312,03/03/2023,P6,9105384,"-3,635.39 ","3,635.39 ",2104,Sewerage and Environmental,1011,Misterton,33.29 
Nottinghamshire Fire and Rescue Service,104256,Advanced Demand Side Management Limited,Advanced Demand Side Management Limited,Operational Responses,5,202312,03/03/2023,P6,9105384,"-3,635.39 ","3,635.39 ",2104,Sewerage and Environmental,1012,Retford,21.80 
Nottinghamshire Fire and Rescue Service,104256,Advanced Demand Side Management Limited,Advanced Demand Side Management Limited,Operational Responses,5,202312,03/03/2023,P6,9105384,"-3,635.39 ","3,635.39 ",2104,Sewerage and Environmental,1012,Retford,86.02 
Nottinghamshire Fire and Rescue Service,104256,Advanced Demand Side Management Limited,Advanced Demand Side Management Limited,Operational Responses,5,202312,03/03/2023,P6,9105384,"-3,635.39 ","3,635.39 ",2104,Sewerage and Environmental,1013,Tuxford,144.15 
Nottinghamshire Fire and Rescue Service,104256,Advanced Demand Side Management Limited,Advanced Demand Side Management Limited,Operational Responses,5,202312,03/03/2023,P6,9105384,"-3,635.39 ","3,635.39 ",2104,Sewerage and Environmental,1014,Southwell,74.27 
Nottinghamshire Fire and Rescue Service,104256,Advanced Demand Side Management Limited,Advanced Demand Side Management Limited,Operational Responses,5,202312,03/03/2023,P6,9105384,"-3,635.39 ","3,635.39 ",2104,Sewerage and Environmental,1015,Collingham,57.86 
Nottinghamshire Fire and Rescue Service,104256,Advanced Demand Side Management Limited,Advanced Demand Side Management Limited,Operational Responses,5,202312,03/03/2023,P6,9105384,"-3,635.39 ","3,635.39 ",2104,Sewerage and Environmental,1016,Newark,151.19 
Nottinghamshire Fire and Rescue Service,104256,Advanced Demand Side Management Limited,Advanced Demand Side Management Limited,Operational Responses,5,202312,03/03/2023,P6,9105384,"-3,635.39 ","3,635.39 ",2104,Sewerage and Environmental,1017,Bingham,73.14 
Nottinghamshire Fire and Rescue Service,104256,Advanced Demand Side Management Limited,Advanced Demand Side Management Limited,Operational Responses,5,202312,03/03/2023,P6,9105384,"-3,635.39 ","3,635.39 ",2104,Sewerage and Environmental,1023,Stapleford,91.15 
Nottinghamshire Fire and Rescue Service,104256,Advanced Demand Side Management Limited,Advanced Demand Side Management Limited,Operational Responses,5,202312,03/03/2023,P6,9105384,"-3,635.39 ","3,635.39 ",2104,Sewerage and Environmental,1024,Eastwood,42.03 
Nottinghamshire Fire and Rescue Service,104256,Advanced Demand Side Management Limited,Advanced Demand Side Management Limited,Operational Responses,5,202312,03/03/2023,P6,9105384,"-3,635.39 ","3,635.39 ",2104,Sewerage and Environmental,1026,Arnold,132.90 
Nottinghamshire Fire and Rescue Service,104256,Advanced Demand Side Management Limited,Advanced Demand Side Management Limited,Operational Responses,5,202312,03/03/2023,P6,9105384,"-3,635.39 ","3,635.39 ",2104,Sewerage and Environmental,1027,Carlton,162.45 
Nottinghamshire Fire and Rescue Service,104256,Advanced Demand Side Management Limited,Advanced Demand Side Management Limited,Operational Responses,5,202312,03/03/2023,P6,9105384,"-3,635.39 ","3,635.39 ",2104,Sewerage and Environmental,1029,Highfields Station,178.30 
Nottinghamshire Fire and Rescue Service,104256,Advanced Demand Side Management Limited,Advanced Demand Side Management Limited,Management & Support Services,5,202312,03/03/2023,P6,9105384,"-3,635.39 ","3,635.39 ",2104,Sewerage and Environmental,1030,Service Development Centre,294.26 
Nottinghamshire Fire and Rescue Service,104256,Advanced Demand Side Management Limited,Advanced Demand Side Management Limited,Management & Support Services,5,202312,03/03/2023,P6,9105384,"-3,635.39 ","3,635.39 ",2104,Sewerage and Environmental,1035,Headquarters,147.90 
Nottinghamshire Fire and Rescue Service,104256,Advanced Demand Side Management Limited,Advanced Demand Side Management Limited,Prevention & Education,5,202312,03/03/2023,P6,9105384,"-3,635.39 ","3,635.39 ",2104,Sewerage and Environmental,1036,Clifton Community Safety Centre,53.35 
Nottinghamshire Fire and Rescue Service,104007,Castle Water Limited,Castle Water Limited,Operational Responses,5,202312,24/11/2021,P6,9105618,-469.78 ,469.78 ,2104,Sewerage and Environmental,1019,West Bridgford,277.27 
Nottinghamshire Fire and Rescue Service,104007,Castle Water Limited,Castle Water Limited,Operational Responses,5,202312,02/02/2022,P6,9105621,-649.17 ,649.17 ,2104,Sewerage and Environmental,1019,West Bridgford,447.89 
Nottinghamshire Fire and Rescue Service,104007,Castle Water Limited,Castle Water Limited,Operational Responses,5,202312,04/05/2022,P6,9105624,-544.06 ,544.06 ,2104,Sewerage and Environmental,1019,West Bridgford,301.34 
Nottinghamshire Fire and Rescue Service,104007,Castle Water Limited,Castle Water Limited,Operational Responses,5,202312,06/06/2022,P6,9105625,-524.40 ,524.40 ,2104,Sewerage and Environmental,1019,West Bridgford,311.39 
Nottinghamshire Fire and Rescue Service,104007,Castle Water Limited,Castle Water Limited,Operational Responses,5,202312,04/07/2022,P6,9105626,-512.07 ,512.07 ,2104,Sewerage and Environmental,1019,West Bridgford,305.31 
Nottinghamshire Fire and Rescue Service,102276,Water Plus Limited (Payments Centre),Water Plus Limited (Payments Centre),Operational Responses,1,202312,24/03/2023,P6,9105826,-284.94 ,284.94 ,2104,Sewerage and Environmental,1008,Worksop,47.88 
Nottinghamshire Fire and Rescue Service,102276,Water Plus Limited (Payments Centre),Water Plus Limited (Payments Centre),Operational Responses,1,202312,24/03/2023,P6,9105826,-284.94 ,284.94 ,2104,Sewerage and Environmental,1008,Worksop,154.82 
Nottinghamshire Fire and Rescue Service,102276,Water Plus Limited (Payments Centre),Water Plus Limited (Payments Centre),Operational Responses,1,202312,24/03/2023,P6,9105839,-284.94 ,284.94 ,2104,Sewerage and Environmental,1008,Worksop,47.88 
Nottinghamshire Fire and Rescue Service,102276,Water Plus Limited (Payments Centre),Water Plus Limited (Payments Centre),Operational Responses,1,202312,24/03/2023,P6,9105839,-284.94 ,284.94 ,2104,Sewerage and Environmental,1008,Worksop,154.82 
Nottinghamshire Fire and Rescue Service,104007,Castle Water Limited,Castle Water Limited,Management & Support Services,5,202312,24/02/2023,P6,9105349,879.99 ,-879.99 ,2104,Sewerage and Environmental,1030,Service Development Centre,-355.73 
Nottinghamshire Fire and Rescue Service,104007,Castle Water Limited,Castle Water Limited,Operational Responses,5,202312,17/03/2023,P6,9105631,261.38 ,-261.38 ,2104,Sewerage and Environmental,1019,West Bridgford,-17.01 
Nottinghamshire Fire and Rescue Service,103847,Veolia ES UK Limited,Veolia ES UK Limited,Management & Support Services,5,202312,28/02/2023,P6,9105506,"-1,307.03 ","1,307.03 ",2106,Refuse / Trade Waste Collection,2086,Procurement,"1,089.19 "
Nottinghamshire Fire and Rescue Service,101512,Frank Key Group Merchants (Nottingham) Ltd,Frank Key Group Merchants (Nottingham) Ltd,Management & Support Services,1,202312,16/03/2023,P6,9105507,-282.00 ,282.00 ,2106,Refuse / Trade Waste Collection,1035,Headquarters,235.00 
Nottinghamshire Fire and Rescue Service,101812,A B Waste Disposal Ltd,A B Waste Disposal Ltd,Operational Responses,1,202312,14/03/2023,P6,9105807,-558.00 ,558.00 ,2106,Refuse / Trade Waste Collection,1001,Mansfield,465.00 
Nottinghamshire Fire and Rescue Service,100557,NCC Sundry Debtors,NCC Sundry Debtors,Operational Responses,4,202312,01/03/2023,P6,9105268,"-1,805.45 ","1,805.45 ",2201,Grounds Maintenance,1001,Mansfield,39.60 
Nottinghamshire Fire and Rescue Service,100557,NCC Sundry Debtors,NCC Sundry Debtors,Operational Responses,4,202312,01/03/2023,P6,9105268,"-1,805.45 ","1,805.45 ",2201,Grounds Maintenance,1002,Blidworth,67.84 
Nottinghamshire Fire and Rescue Service,100557,NCC Sundry Debtors,NCC Sundry Debtors,Operational Responses,4,202312,01/03/2023,P6,9105268,"-1,805.45 ","1,805.45 ",2201,Grounds Maintenance,1003,London Road,36.40 
Nottinghamshire Fire and Rescue Service,100557,NCC Sundry Debtors,NCC Sundry Debtors,Operational Responses,4,202312,01/03/2023,P6,9105268,"-1,805.45 ","1,805.45 ",2201,Grounds Maintenance,1005,Ashfield,182.04 
Nottinghamshire Fire and Rescue Service,100557,NCC Sundry Debtors,NCC Sundry Debtors,Operational Responses,4,202312,01/03/2023,P6,9105268,"-1,805.45 ","1,805.45 ",2201,Grounds Maintenance,1006,Edwinstowe,38.51 
Nottinghamshire Fire and Rescue Service,100557,NCC Sundry Debtors,NCC Sundry Debtors,Operational Responses,4,202312,01/03/2023,P6,9105268,"-1,805.45 ","1,805.45 ",2201,Grounds Maintenance,1007,Warsop,3.32 
Nottinghamshire Fire and Rescue Service,100557,NCC Sundry Debtors,NCC Sundry Debtors,Operational Responses,4,202312,01/03/2023,P6,9105268,"-1,805.45 ","1,805.45 ",2201,Grounds Maintenance,1008,Worksop,35.95 
Nottinghamshire Fire and Rescue Service,100557,NCC Sundry Debtors,NCC Sundry Debtors,Operational Responses,4,202312,01/03/2023,P6,9105268,"-1,805.45 ","1,805.45 ",2201,Grounds Maintenance,1010,Harworth,42.26 
Nottinghamshire Fire and Rescue Service,100557,NCC Sundry Debtors,NCC Sundry Debtors,Operational Responses,4,202312,01/03/2023,P6,9105268,"-1,805.45 ","1,805.45 ",2201,Grounds Maintenance,1011,Misterton,39.23 
Nottinghamshire Fire and Rescue Service,100557,NCC Sundry Debtors,NCC Sundry Debtors,Operational Responses,4,202312,01/03/2023,P6,9105268,"-1,805.45 ","1,805.45 ",2201,Grounds Maintenance,1012,Retford,26.31 
Nottinghamshire Fire and Rescue Service,100557,NCC Sundry Debtors,NCC Sundry Debtors,Operational Responses,4,202312,01/03/2023,P6,9105268,"-1,805.45 ","1,805.45 ",2201,Grounds Maintenance,1013,Tuxford,27.35 
Nottinghamshire Fire and Rescue Service,100557,NCC Sundry Debtors,NCC Sundry Debtors,Operational Responses,4,202312,01/03/2023,P6,9105268,"-1,805.45 ","1,805.45 ",2201,Grounds Maintenance,1014,Southwell,26.00 
Nottinghamshire Fire and Rescue Service,100557,NCC Sundry Debtors,NCC Sundry Debtors,Operational Responses,4,202312,01/03/2023,P6,9105268,"-1,805.45 ","1,805.45 ",2201,Grounds Maintenance,1015,Collingham,15.21 
Nottinghamshire Fire and Rescue Service,100557,NCC Sundry Debtors,NCC Sundry Debtors,Operational Responses,4,202312,01/03/2023,P6,9105268,"-1,805.45 ","1,805.45 ",2201,Grounds Maintenance,1016,Newark,37.78 
Nottinghamshire Fire and Rescue Service,100557,NCC Sundry Debtors,NCC Sundry Debtors,Operational Responses,4,202312,01/03/2023,P6,9105268,"-1,805.45 ","1,805.45 ",2201,Grounds Maintenance,1017,Bingham,64.08 
Nottinghamshire Fire and Rescue Service,100557,NCC Sundry Debtors,NCC Sundry Debtors,Operational Responses,4,202312,01/03/2023,P6,9105268,"-1,805.45 ","1,805.45 ",2201,Grounds Maintenance,1019,West Bridgford,108.64 
Nottinghamshire Fire and Rescue Service,100557,NCC Sundry Debtors,NCC Sundry Debtors,Operational Responses,4,202312,01/03/2023,P6,9105268,"-1,805.45 ","1,805.45 ",2201,Grounds Maintenance,1020,Stockhill,216.10 
Nottinghamshire Fire and Rescue Service,100557,NCC Sundry Debtors,NCC Sundry Debtors,Operational Responses,4,202312,01/03/2023,P6,9105268,"-1,805.45 ","1,805.45 ",2201,Grounds Maintenance,1023,Stapleford,80.50 
Nottinghamshire Fire and Rescue Service,100557,NCC Sundry Debtors,NCC Sundry Debtors,Operational Responses,4,202312,01/03/2023,P6,9105268,"-1,805.45 ","1,805.45 ",2201,Grounds Maintenance,1024,Eastwood,27.09 
Nottinghamshire Fire and Rescue Service,100557,NCC Sundry Debtors,NCC Sundry Debtors,Operational Responses,4,202312,01/03/2023,P6,9105268,"-1,805.45 ","1,805.45 ",2201,Grounds Maintenance,1026,Arnold,11.31 
Nottinghamshire Fire and Rescue Service,100557,NCC Sundry Debtors,NCC Sundry Debtors,Operational Responses,4,202312,01/03/2023,P6,9105268,"-1,805.45 ","1,805.45 ",2201,Grounds Maintenance,1027,Carlton,10.21 
Nottinghamshire Fire and Rescue Service,100557,NCC Sundry Debtors,NCC Sundry Debtors,Operational Responses,4,202312,01/03/2023,P6,9105268,"-1,805.45 ","1,805.45 ",2201,Grounds Maintenance,1028,East Leake,132.86 
Nottinghamshire Fire and Rescue Service,100557,NCC Sundry Debtors,NCC Sundry Debtors,Operational Responses,4,202312,01/03/2023,P6,9105268,"-1,805.45 ","1,805.45 ",2201,Grounds Maintenance,1029,Highfields Station,79.20 
Nottinghamshire Fire and Rescue Service,100557,NCC Sundry Debtors,NCC Sundry Debtors,Management & Support Services,4,202312,01/03/2023,P6,9105268,"-1,805.45 ","1,805.45 ",2201,Grounds Maintenance,1030,Service Development Centre,156.75 
Nottinghamshire Fire and Rescue Service,104233,Aero Healthcare Limited,Aero Healthcare Limited,Management & Support Services,5,202312,23/03/2023,P6,9105642,-356.40 ,356.40 ,2203,Cleaning Materials,2086,Procurement,297.00 
Nottinghamshire Fire and Rescue Service,100557,NCC Sundry Debtors,NCC Sundry Debtors,Operational Responses,4,202312,01/03/2023,P6,9105258,"-33,678.30 ","33,678.30 ",2204,Contract Cleaning,1001,Mansfield,"2,336.96 "
Nottinghamshire Fire and Rescue Service,100557,NCC Sundry Debtors,NCC Sundry Debtors,Operational Responses,4,202312,01/03/2023,P6,9105258,"-33,678.30 ","33,678.30 ",2204,Contract Cleaning,1002,Blidworth,132.59 
Nottinghamshire Fire and Rescue Service,100557,NCC Sundry Debtors,NCC Sundry Debtors,Operational Responses,4,202312,01/03/2023,P6,9105258,"-33,678.30 ","33,678.30 ",2204,Contract Cleaning,1003,London Road,"2,579.47 "
Nottinghamshire Fire and Rescue Service,100557,NCC Sundry Debtors,NCC Sundry Debtors,Operational Responses,4,202312,01/03/2023,P6,9105258,"-33,678.30 ","33,678.30 ",2204,Contract Cleaning,1005,Ashfield,"1,309.26 "
Nottinghamshire Fire and Rescue Service,100557,NCC Sundry Debtors,NCC Sundry Debtors,Operational Responses,4,202312,01/03/2023,P6,9105258,"-33,678.30 ","33,678.30 ",2204,Contract Cleaning,1006,Edwinstowe,"1,010.88 "
Nottinghamshire Fire and Rescue Service,100557,NCC Sundry Debtors,NCC Sundry Debtors,Operational Responses,4,202312,01/03/2023,P6,9105258,"-33,678.30 ","33,678.30 ",2204,Contract Cleaning,1007,Warsop,165.59 
Nottinghamshire Fire and Rescue Service,100557,NCC Sundry Debtors,NCC Sundry Debtors,Operational Responses,4,202312,01/03/2023,P6,9105258,"-33,678.30 ","33,678.30 ",2204,Contract Cleaning,1008,Worksop,"1,645.61 "
Nottinghamshire Fire and Rescue Service,100557,NCC Sundry Debtors,NCC Sundry Debtors,Operational Responses,4,202312,01/03/2023,P6,9105258,"-33,678.30 ","33,678.30 ",2204,Contract Cleaning,1010,Harworth,331.27 
Nottinghamshire Fire and Rescue Service,100557,NCC Sundry Debtors,NCC Sundry Debtors,Operational Responses,4,202312,01/03/2023,P6,9105258,"-33,678.30 ","33,678.30 ",2204,Contract Cleaning,1011,Misterton,265.08 
Nottinghamshire Fire and Rescue Service,100557,NCC Sundry Debtors,NCC Sundry Debtors,Operational Responses,4,202312,01/03/2023,P6,9105258,"-33,678.30 ","33,678.30 ",2204,Contract Cleaning,1012,Retford,"1,673.76 "
Nottinghamshire Fire and Rescue Service,100557,NCC Sundry Debtors,NCC Sundry Debtors,Operational Responses,4,202312,01/03/2023,P6,9105258,"-33,678.30 ","33,678.30 ",2204,Contract Cleaning,1013,Tuxford,198.69 
Nottinghamshire Fire and Rescue Service,100557,NCC Sundry Debtors,NCC Sundry Debtors,Operational Responses,4,202312,01/03/2023,P6,9105258,"-33,678.30 ","33,678.30 ",2204,Contract Cleaning,1014,Southwell,298.18 
Nottinghamshire Fire and Rescue Service,100557,NCC Sundry Debtors,NCC Sundry Debtors,Operational Responses,4,202312,01/03/2023,P6,9105258,"-33,678.30 ","33,678.30 ",2204,Contract Cleaning,1015,Collingham,298.18 
Nottinghamshire Fire and Rescue Service,100557,NCC Sundry Debtors,NCC Sundry Debtors,Operational Responses,4,202312,01/03/2023,P6,9105258,"-33,678.30 ","33,678.30 ",2204,Contract Cleaning,1016,Newark,"1,309.26 "
Nottinghamshire Fire and Rescue Service,100557,NCC Sundry Debtors,NCC Sundry Debtors,Operational Responses,4,202312,01/03/2023,P6,9105258,"-33,678.30 ","33,678.30 ",2204,Contract Cleaning,1017,Bingham,198.88 
Nottinghamshire Fire and Rescue Service,100557,NCC Sundry Debtors,NCC Sundry Debtors,Operational Responses,4,202312,01/03/2023,P6,9105258,"-33,678.30 ","33,678.30 ",2204,Contract Cleaning,1019,West Bridgford,"2,005.00 "
Nottinghamshire Fire and Rescue Service,100557,NCC Sundry Debtors,NCC Sundry Debtors,Operational Responses,4,202312,01/03/2023,P6,9105258,"-33,678.30 ","33,678.30 ",2204,Contract Cleaning,1020,Stockhill,"1,640.62 "
Nottinghamshire Fire and Rescue Service,100557,NCC Sundry Debtors,NCC Sundry Debtors,Operational Responses,4,202312,01/03/2023,P6,9105258,"-33,678.30 ","33,678.30 ",2204,Contract Cleaning,1023,Stapleford,496.91 
Nottinghamshire Fire and Rescue Service,100557,NCC Sundry Debtors,NCC Sundry Debtors,Operational Responses,4,202312,01/03/2023,P6,9105258,"-33,678.30 ","33,678.30 ",2204,Contract Cleaning,1024,Eastwood,331.22 
Nottinghamshire Fire and Rescue Service,100557,NCC Sundry Debtors,NCC Sundry Debtors,Operational Responses,4,202312,01/03/2023,P6,9105258,"-33,678.30 ","33,678.30 ",2204,Contract Cleaning,1026,Arnold,"1,226.43 "
Nottinghamshire Fire and Rescue Service,100557,NCC Sundry Debtors,NCC Sundry Debtors,Operational Responses,4,202312,01/03/2023,P6,9105258,"-33,678.30 ","33,678.30 ",2204,Contract Cleaning,1027,Carlton,"2,303.82 "
Nottinghamshire Fire and Rescue Service,100557,NCC Sundry Debtors,NCC Sundry Debtors,Operational Responses,4,202312,01/03/2023,P6,9105258,"-33,678.30 ","33,678.30 ",2204,Contract Cleaning,1028,East Leake,198.74 
Nottinghamshire Fire and Rescue Service,100557,NCC Sundry Debtors,NCC Sundry Debtors,Operational Responses,4,202312,01/03/2023,P6,9105258,"-33,678.30 ","33,678.30 ",2204,Contract Cleaning,1029,Highfields Station,"4,319.04 "
Nottinghamshire Fire and Rescue Service,100557,NCC Sundry Debtors,NCC Sundry Debtors,Management & Support Services,4,202312,01/03/2023,P6,9105258,"-33,678.30 ","33,678.30 ",2204,Contract Cleaning,1030,Service Development Centre,"1,789.81 "
Nottinghamshire Fire and Rescue Service,100557,NCC Sundry Debtors,NCC Sundry Debtors,Operational Responses,4,202312,01/03/2023,P6,9105266,-406.01 ,406.01 ,2204,Contract Cleaning,1001,Mansfield,15.42 
Nottinghamshire Fire and Rescue Service,100557,NCC Sundry Debtors,NCC Sundry Debtors,Operational Responses,4,202312,01/03/2023,P6,9105266,-406.01 ,406.01 ,2204,Contract Cleaning,1002,Blidworth,11.57 
Nottinghamshire Fire and Rescue Service,100557,NCC Sundry Debtors,NCC Sundry Debtors,Operational Responses,4,202312,01/03/2023,P6,9105266,-406.01 ,406.01 ,2204,Contract Cleaning,1003,London Road,14.46 
Nottinghamshire Fire and Rescue Service,100557,NCC Sundry Debtors,NCC Sundry Debtors,Operational Responses,4,202312,01/03/2023,P6,9105266,-406.01 ,406.01 ,2204,Contract Cleaning,1005,Ashfield,15.42 
Nottinghamshire Fire and Rescue Service,100557,NCC Sundry Debtors,NCC Sundry Debtors,Operational Responses,4,202312,01/03/2023,P6,9105266,-406.01 ,406.01 ,2204,Contract Cleaning,1006,Edwinstowe,11.57 
Nottinghamshire Fire and Rescue Service,100557,NCC Sundry Debtors,NCC Sundry Debtors,Operational Responses,4,202312,01/03/2023,P6,9105266,-406.01 ,406.01 ,2204,Contract Cleaning,1007,Warsop,11.57 
Nottinghamshire Fire and Rescue Service,100557,NCC Sundry Debtors,NCC Sundry Debtors,Operational Responses,4,202312,01/03/2023,P6,9105266,-406.01 ,406.01 ,2204,Contract Cleaning,1008,Worksop,15.42 
Nottinghamshire Fire and Rescue Service,100557,NCC Sundry Debtors,NCC Sundry Debtors,Operational Responses,4,202312,01/03/2023,P6,9105266,-406.01 ,406.01 ,2204,Contract Cleaning,1010,Harworth,11.57 
Nottinghamshire Fire and Rescue Service,100557,NCC Sundry Debtors,NCC Sundry Debtors,Operational Responses,4,202312,01/03/2023,P6,9105266,-406.01 ,406.01 ,2204,Contract Cleaning,1011,Misterton,11.57 
Nottinghamshire Fire and Rescue Service,100557,NCC Sundry Debtors,NCC Sundry Debtors,Operational Responses,4,202312,01/03/2023,P6,9105266,-406.01 ,406.01 ,2204,Contract Cleaning,1012,Retford,11.57 
Nottinghamshire Fire and Rescue Service,100557,NCC Sundry Debtors,NCC Sundry Debtors,Operational Responses,4,202312,01/03/2023,P6,9105266,-406.01 ,406.01 ,2204,Contract Cleaning,1013,Tuxford,11.57 
Nottinghamshire Fire and Rescue Service,100557,NCC Sundry Debtors,NCC Sundry Debtors,Operational Responses,4,202312,01/03/2023,P6,9105266,-406.01 ,406.01 ,2204,Contract Cleaning,1014,Southwell,11.57 
Nottinghamshire Fire and Rescue Service,100557,NCC Sundry Debtors,NCC Sundry Debtors,Operational Responses,4,202312,01/03/2023,P6,9105266,-406.01 ,406.01 ,2204,Contract Cleaning,1015,Collingham,11.57 
Nottinghamshire Fire and Rescue Service,100557,NCC Sundry Debtors,NCC Sundry Debtors,Operational Responses,4,202312,01/03/2023,P6,9105266,-406.01 ,406.01 ,2204,Contract Cleaning,1016,Newark,15.42 
Nottinghamshire Fire and Rescue Service,100557,NCC Sundry Debtors,NCC Sundry Debtors,Operational Responses,4,202312,01/03/2023,P6,9105266,-406.01 ,406.01 ,2204,Contract Cleaning,1017,Bingham,11.57 
Nottinghamshire Fire and Rescue Service,100557,NCC Sundry Debtors,NCC Sundry Debtors,Operational Responses,4,202312,01/03/2023,P6,9105266,-406.01 ,406.01 ,2204,Contract Cleaning,1019,West Bridgford,15.42 
Nottinghamshire Fire and Rescue Service,100557,NCC Sundry Debtors,NCC Sundry Debtors,Operational Responses,4,202312,01/03/2023,P6,9105266,-406.01 ,406.01 ,2204,Contract Cleaning,1020,Stockhill,15.42 
Nottinghamshire Fire and Rescue Service,100557,NCC Sundry Debtors,NCC Sundry Debtors,Operational Responses,4,202312,01/03/2023,P6,9105266,-406.01 ,406.01 ,2204,Contract Cleaning,1023,Stapleford,11.57 
Nottinghamshire Fire and Rescue Service,100557,NCC Sundry Debtors,NCC Sundry Debtors,Operational Responses,4,202312,01/03/2023,P6,9105266,-406.01 ,406.01 ,2204,Contract Cleaning,1024,Eastwood,11.57 
Nottinghamshire Fire and Rescue Service,100557,NCC Sundry Debtors,NCC Sundry Debtors,Operational Responses,4,202312,01/03/2023,P6,9105266,-406.01 ,406.01 ,2204,Contract Cleaning,1026,Arnold,15.42 
Nottinghamshire Fire and Rescue Service,100557,NCC Sundry Debtors,NCC Sundry Debtors,Operational Responses,4,202312,01/03/2023,P6,9105266,-406.01 ,406.01 ,2204,Contract Cleaning,1027,Carlton,15.42 
Nottinghamshire Fire and Rescue Service,100557,NCC Sundry Debtors,NCC Sundry Debtors,Operational Responses,4,202312,01/03/2023,P6,9105266,-406.01 ,406.01 ,2204,Contract Cleaning,1028,East Leake,11.57 
Nottinghamshire Fire and Rescue Service,100557,NCC Sundry Debtors,NCC Sundry Debtors,Operational Responses,4,202312,01/03/2023,P6,9105266,-406.01 ,406.01 ,2204,Contract Cleaning,1029,Highfields Station,15.42 
Nottinghamshire Fire and Rescue Service,100557,NCC Sundry Debtors,NCC Sundry Debtors,Management & Support Services,4,202312,01/03/2023,P6,9105266,-406.01 ,406.01 ,2204,Contract Cleaning,1030,Service Development Centre,34.69 
Nottinghamshire Fire and Rescue Service,100557,NCC Sundry Debtors,NCC Sundry Debtors,Management & Support Services,4,202312,23/03/2023,P6,9105529,"-1,752.00 ","1,752.00 ",2204,Contract Cleaning,1035,Headquarters,"1,460.00 "
Nottinghamshire Fire and Rescue Service,100557,NCC Sundry Debtors,NCC Sundry Debtors,Operational Responses,4,202312,27/03/2023,P6,9105587,"-9,808.94 ","9,808.94 ",2204,Contract Cleaning,1001,Mansfield,805.00 
Nottinghamshire Fire and Rescue Service,100557,NCC Sundry Debtors,NCC Sundry Debtors,Operational Responses,4,202312,27/03/2023,P6,9105587,"-9,808.94 ","9,808.94 ",2204,Contract Cleaning,1002,Blidworth,79.32 
Nottinghamshire Fire and Rescue Service,100557,NCC Sundry Debtors,NCC Sundry Debtors,Operational Responses,4,202312,27/03/2023,P6,9105587,"-9,808.94 ","9,808.94 ",2204,Contract Cleaning,1003,London Road,750.00 
Nottinghamshire Fire and Rescue Service,100557,NCC Sundry Debtors,NCC Sundry Debtors,Operational Responses,4,202312,27/03/2023,P6,9105587,"-9,808.94 ","9,808.94 ",2204,Contract Cleaning,1006,Edwinstowe,79.32 
Nottinghamshire Fire and Rescue Service,100557,NCC Sundry Debtors,NCC Sundry Debtors,Operational Responses,4,202312,27/03/2023,P6,9105587,"-9,808.94 ","9,808.94 ",2204,Contract Cleaning,1007,Warsop,79.32 
Nottinghamshire Fire and Rescue Service,100557,NCC Sundry Debtors,NCC Sundry Debtors,Operational Responses,4,202312,27/03/2023,P6,9105587,"-9,808.94 ","9,808.94 ",2204,Contract Cleaning,1008,Worksop,79.32 
Nottinghamshire Fire and Rescue Service,100557,NCC Sundry Debtors,NCC Sundry Debtors,Operational Responses,4,202312,27/03/2023,P6,9105587,"-9,808.94 ","9,808.94 ",2204,Contract Cleaning,1010,Harworth,79.32 
Nottinghamshire Fire and Rescue Service,100557,NCC Sundry Debtors,NCC Sundry Debtors,Operational Responses,4,202312,27/03/2023,P6,9105587,"-9,808.94 ","9,808.94 ",2204,Contract Cleaning,1011,Misterton,79.32 
Nottinghamshire Fire and Rescue Service,100557,NCC Sundry Debtors,NCC Sundry Debtors,Operational Responses,4,202312,27/03/2023,P6,9105587,"-9,808.94 ","9,808.94 ",2204,Contract Cleaning,1012,Retford,79.32 
Nottinghamshire Fire and Rescue Service,100557,NCC Sundry Debtors,NCC Sundry Debtors,Operational Responses,4,202312,27/03/2023,P6,9105587,"-9,808.94 ","9,808.94 ",2204,Contract Cleaning,1013,Tuxford,79.32 
Nottinghamshire Fire and Rescue Service,100557,NCC Sundry Debtors,NCC Sundry Debtors,Operational Responses,4,202312,27/03/2023,P6,9105587,"-9,808.94 ","9,808.94 ",2204,Contract Cleaning,1014,Southwell,79.32 
Nottinghamshire Fire and Rescue Service,100557,NCC Sundry Debtors,NCC Sundry Debtors,Operational Responses,4,202312,27/03/2023,P6,9105587,"-9,808.94 ","9,808.94 ",2204,Contract Cleaning,1015,Collingham,79.32 
Nottinghamshire Fire and Rescue Service,100557,NCC Sundry Debtors,NCC Sundry Debtors,Operational Responses,4,202312,27/03/2023,P6,9105587,"-9,808.94 ","9,808.94 ",2204,Contract Cleaning,1016,Newark,79.32 
Nottinghamshire Fire and Rescue Service,100557,NCC Sundry Debtors,NCC Sundry Debtors,Operational Responses,4,202312,27/03/2023,P6,9105587,"-9,808.94 ","9,808.94 ",2204,Contract Cleaning,1017,Bingham,79.32 
Nottinghamshire Fire and Rescue Service,100557,NCC Sundry Debtors,NCC Sundry Debtors,Operational Responses,4,202312,27/03/2023,P6,9105587,"-9,808.94 ","9,808.94 ",2204,Contract Cleaning,1019,West Bridgford,805.00 
Nottinghamshire Fire and Rescue Service,100557,NCC Sundry Debtors,NCC Sundry Debtors,Operational Responses,4,202312,27/03/2023,P6,9105587,"-9,808.94 ","9,808.94 ",2204,Contract Cleaning,1020,Stockhill,920.00 
Nottinghamshire Fire and Rescue Service,100557,NCC Sundry Debtors,NCC Sundry Debtors,Operational Responses,4,202312,27/03/2023,P6,9105587,"-9,808.94 ","9,808.94 ",2204,Contract Cleaning,1023,Stapleford,79.32 
Nottinghamshire Fire and Rescue Service,100557,NCC Sundry Debtors,NCC Sundry Debtors,Operational Responses,4,202312,27/03/2023,P6,9105587,"-9,808.94 ","9,808.94 ",2204,Contract Cleaning,1024,Eastwood,79.32 
Nottinghamshire Fire and Rescue Service,100557,NCC Sundry Debtors,NCC Sundry Debtors,Operational Responses,4,202312,27/03/2023,P6,9105587,"-9,808.94 ","9,808.94 ",2204,Contract Cleaning,1025,Hucknall,79.32 
Nottinghamshire Fire and Rescue Service,100557,NCC Sundry Debtors,NCC Sundry Debtors,Operational Responses,4,202312,27/03/2023,P6,9105587,"-9,808.94 ","9,808.94 ",2204,Contract Cleaning,1026,Arnold,750.00 
Nottinghamshire Fire and Rescue Service,100557,NCC Sundry Debtors,NCC Sundry Debtors,Operational Responses,4,202312,27/03/2023,P6,9105587,"-9,808.94 ","9,808.94 ",2204,Contract Cleaning,1027,Carlton,690.00 
Nottinghamshire Fire and Rescue Service,100557,NCC Sundry Debtors,NCC Sundry Debtors,Operational Responses,4,202312,27/03/2023,P6,9105587,"-9,808.94 ","9,808.94 ",2204,Contract Cleaning,1028,East Leake,79.32 
Nottinghamshire Fire and Rescue Service,100557,NCC Sundry Debtors,NCC Sundry Debtors,Operational Responses,4,202312,27/03/2023,P6,9105587,"-9,808.94 ","9,808.94 ",2204,Contract Cleaning,1029,Highfields Station,805.00 
Nottinghamshire Fire and Rescue Service,100557,NCC Sundry Debtors,NCC Sundry Debtors,Management & Support Services,4,202312,27/03/2023,P6,9105587,"-9,808.94 ","9,808.94 ",2204,Contract Cleaning,1030,Service Development Centre,690.00 
Nottinghamshire Fire and Rescue Service,100557,NCC Sundry Debtors,NCC Sundry Debtors,Management & Support Services,4,202312,27/03/2023,P6,9105587,"-9,808.94 ","9,808.94 ",2204,Contract Cleaning,2086,Procurement,690.00 
Nottinghamshire Fire and Rescue Service,100557,NCC Sundry Debtors,NCC Sundry Debtors,Management & Support Services,4,202312,28/03/2023,P6,9105677,"-1,914.00 ","1,914.00 ",2204,Contract Cleaning,1030,Service Development Centre,"1,595.00 "
Nottinghamshire Fire and Rescue Service,102280,Amptron Electrical Services,Amptron Electrical Services,Operational Responses,1,202312,29/03/2023,P6,9105788,"-4,752.00 ","4,752.00 ",2204,Contract Cleaning,1026,Arnold,"3,960.00 "
Nottinghamshire Fire and Rescue Service,100557,NCC Sundry Debtors,NCC Sundry Debtors,Operational Responses,4,202312,01/03/2023,P6,9105267,-409.48 ,409.48 ,2205,Window Cleaning,1001,Mansfield,19.27 
Nottinghamshire Fire and Rescue Service,100557,NCC Sundry Debtors,NCC Sundry Debtors,Operational Responses,4,202312,01/03/2023,P6,9105267,-409.48 ,409.48 ,2205,Window Cleaning,1002,Blidworth,11.57 
Nottinghamshire Fire and Rescue Service,100557,NCC Sundry Debtors,NCC Sundry Debtors,Operational Responses,4,202312,01/03/2023,P6,9105267,-409.48 ,409.48 ,2205,Window Cleaning,1003,London Road,23.13 
Nottinghamshire Fire and Rescue Service,100557,NCC Sundry Debtors,NCC Sundry Debtors,Operational Responses,4,202312,01/03/2023,P6,9105267,-409.48 ,409.48 ,2205,Window Cleaning,1005,Ashfield,11.57 
Nottinghamshire Fire and Rescue Service,100557,NCC Sundry Debtors,NCC Sundry Debtors,Operational Responses,4,202312,01/03/2023,P6,9105267,-409.48 ,409.48 ,2205,Window Cleaning,1006,Edwinstowe,17.35 
Nottinghamshire Fire and Rescue Service,100557,NCC Sundry Debtors,NCC Sundry Debtors,Operational Responses,4,202312,01/03/2023,P6,9105267,-409.48 ,409.48 ,2205,Window Cleaning,1007,Warsop,9.64 
Nottinghamshire Fire and Rescue Service,100557,NCC Sundry Debtors,NCC Sundry Debtors,Operational Responses,4,202312,01/03/2023,P6,9105267,-409.48 ,409.48 ,2205,Window Cleaning,1008,Worksop,11.57 
Nottinghamshire Fire and Rescue Service,100557,NCC Sundry Debtors,NCC Sundry Debtors,Operational Responses,4,202312,01/03/2023,P6,9105267,-409.48 ,409.48 ,2205,Window Cleaning,1010,Harworth,11.57 
Nottinghamshire Fire and Rescue Service,100557,NCC Sundry Debtors,NCC Sundry Debtors,Operational Responses,4,202312,01/03/2023,P6,9105267,-409.48 ,409.48 ,2205,Window Cleaning,1011,Misterton,11.57 
Nottinghamshire Fire and Rescue Service,100557,NCC Sundry Debtors,NCC Sundry Debtors,Operational Responses,4,202312,01/03/2023,P6,9105267,-409.48 ,409.48 ,2205,Window Cleaning,1012,Retford,15.42 
Nottinghamshire Fire and Rescue Service,100557,NCC Sundry Debtors,NCC Sundry Debtors,Operational Responses,4,202312,01/03/2023,P6,9105267,-409.48 ,409.48 ,2205,Window Cleaning,1013,Tuxford,9.64 
Nottinghamshire Fire and Rescue Service,100557,NCC Sundry Debtors,NCC Sundry Debtors,Operational Responses,4,202312,01/03/2023,P6,9105267,-409.48 ,409.48 ,2205,Window Cleaning,1014,Southwell,9.64 
Nottinghamshire Fire and Rescue Service,100557,NCC Sundry Debtors,NCC Sundry Debtors,Operational Responses,4,202312,01/03/2023,P6,9105267,-409.48 ,409.48 ,2205,Window Cleaning,1015,Collingham,11.57 
Nottinghamshire Fire and Rescue Service,100557,NCC Sundry Debtors,NCC Sundry Debtors,Operational Responses,4,202312,01/03/2023,P6,9105267,-409.48 ,409.48 ,2205,Window Cleaning,1016,Newark,11.57 
Nottinghamshire Fire and Rescue Service,100557,NCC Sundry Debtors,NCC Sundry Debtors,Operational Responses,4,202312,01/03/2023,P6,9105267,-409.48 ,409.48 ,2205,Window Cleaning,1017,Bingham,11.57 
Nottinghamshire Fire and Rescue Service,100557,NCC Sundry Debtors,NCC Sundry Debtors,Operational Responses,4,202312,01/03/2023,P6,9105267,-409.48 ,409.48 ,2205,Window Cleaning,1019,West Bridgford,13.49 
Nottinghamshire Fire and Rescue Service,100557,NCC Sundry Debtors,NCC Sundry Debtors,Operational Responses,4,202312,01/03/2023,P6,9105267,-409.48 ,409.48 ,2205,Window Cleaning,1020,Stockhill,17.35 
Nottinghamshire Fire and Rescue Service,100557,NCC Sundry Debtors,NCC Sundry Debtors,Operational Responses,4,202312,01/03/2023,P6,9105267,-409.48 ,409.48 ,2205,Window Cleaning,1023,Stapleford,11.57 
Nottinghamshire Fire and Rescue Service,100557,NCC Sundry Debtors,NCC Sundry Debtors,Operational Responses,4,202312,01/03/2023,P6,9105267,-409.48 ,409.48 ,2205,Window Cleaning,1024,Eastwood,11.57 
Nottinghamshire Fire and Rescue Service,100557,NCC Sundry Debtors,NCC Sundry Debtors,Operational Responses,4,202312,01/03/2023,P6,9105267,-409.48 ,409.48 ,2205,Window Cleaning,1026,Arnold,11.57 
Nottinghamshire Fire and Rescue Service,100557,NCC Sundry Debtors,NCC Sundry Debtors,Operational Responses,4,202312,01/03/2023,P6,9105267,-409.48 ,409.48 ,2205,Window Cleaning,1027,Carlton,15.42 
Nottinghamshire Fire and Rescue Service,100557,NCC Sundry Debtors,NCC Sundry Debtors,Operational Responses,4,202312,01/03/2023,P6,9105267,-409.48 ,409.48 ,2205,Window Cleaning,1028,East Leake,11.57 
Nottinghamshire Fire and Rescue Service,100557,NCC Sundry Debtors,NCC Sundry Debtors,Operational Responses,4,202312,01/03/2023,P6,9105267,-409.48 ,409.48 ,2205,Window Cleaning,1029,Highfields Station,38.55 
Nottinghamshire Fire and Rescue Service,100557,NCC Sundry Debtors,NCC Sundry Debtors,Management & Support Services,4,202312,01/03/2023,P6,9105267,-409.48 ,409.48 ,2205,Window Cleaning,1030,Service Development Centre,13.49 
Nottinghamshire Fire and Rescue Service,101867,Nottinghamshire Police and Crime Commissioner,Nottinghamshire Police and Crime Commissioner,Management & Support Services,4,202312,26/02/2023,P6,9105498,"-325,100.00 ","325,100.00 ",2207,Hire of Premises,1035,Headquarters,"325,100.00 "
Nottinghamshire Fire and Rescue Service,102280,Amptron Electrical Services,Amptron Electrical Services,Management & Support Services,1,202312,31/03/2023,P6,9105846,-258.55 ,258.55 ,3002,Purchase of Vehicle Equipment,2084,Engineering,215.46 
Nottinghamshire Fire and Rescue Service,102228,Keltruck Limited,Keltruck Limited,Management & Support Services,1,202312,07/03/2023,P6,9105227,"-1,903.03 ","1,903.03 ",3100,Fleet Maintenance - Planned,2084,Engineering,"1,585.86 "
Nottinghamshire Fire and Rescue Service,102228,Keltruck Limited,Keltruck Limited,Management & Support Services,1,202312,15/03/2023,P6,9105456,-672.00 ,672.00 ,3100,Fleet Maintenance - Planned,2084,Engineering,560.00 
Nottinghamshire Fire and Rescue Service,103820,VIA East Midlands Ltd,VIA East Midlands Ltd,Management & Support Services,5,202312,20/03/2023,P6,9105609,"-11,459.51 ","11,459.51 ",3100,Fleet Maintenance - Planned,2084,Engineering,"9,567.36 "
Nottinghamshire Fire and Rescue Service,103820,VIA East Midlands Ltd,VIA East Midlands Ltd,Management & Support Services,5,202312,22/03/2023,P6,9105611,"-6,610.52 ","6,610.52 ",3100,Fleet Maintenance - Planned,2084,Engineering,"5,517.65 "
Nottinghamshire Fire and Rescue Service,103820,VIA East Midlands Ltd,VIA East Midlands Ltd,Management & Support Services,5,202312,02/03/2023,P6,9105644,"-18,905.29 ","18,905.29 ",3100,Fleet Maintenance - Planned,2084,Engineering,"15,763.29 "
Nottinghamshire Fire and Rescue Service,103820,VIA East Midlands Ltd,VIA East Midlands Ltd,Management & Support Services,5,202312,29/03/2023,P6,9105812,"-3,737.42 ","3,737.42 ",3100,Fleet Maintenance - Planned,2084,Engineering,"3,123.40 "
Nottinghamshire Fire and Rescue Service,102364,Woodway Engineering Limited,Woodway Engineering Limited,Management & Support Services,1,202312,15/02/2023,P6,9105661,"-4,828.33 ","4,828.33 ",3101,Fleet Modification,2084,Engineering,"4,023.61 "
Nottinghamshire Fire and Rescue Service,102951,Logistics UK,Logistics UK,Management & Support Services,5,202312,16/02/2023,P6,9105188,-764.53 ,764.53 ,3102,Vehicle Maintenance Outsourced,2084,Engineering,637.11 
Nottinghamshire Fire and Rescue Service,102228,Keltruck Limited,Keltruck Limited,Management & Support Services,1,202312,27/03/2023,P6,9105583,-991.57 ,991.57 ,3102,Vehicle Maintenance Outsourced,2084,Engineering,826.31 
Nottinghamshire Fire and Rescue Service,101100,Angloco Limited,Angloco Limited,Management & Support Services,1,202312,25/02/2023,P6,9105663,"-2,325.29 ","2,325.29 ",3102,Vehicle Maintenance Outsourced,2084,Engineering,"1,937.74 "
Nottinghamshire Fire and Rescue Service,103820,VIA East Midlands Ltd,VIA East Midlands Ltd,Management & Support Services,5,202312,22/03/2023,P6,9105607,"-15,619.97 ","15,619.97 ",3103,Fleet Maintenance - Unplanned,2084,Engineering,"13,016.64 "
Nottinghamshire Fire and Rescue Service,103820,VIA East Midlands Ltd,VIA East Midlands Ltd,Management & Support Services,5,202312,20/03/2023,P6,9105608,"-16,491.44 ","16,491.44 ",3103,Fleet Maintenance - Unplanned,2084,Engineering,"13,742.87 "
Nottinghamshire Fire and Rescue Service,103820,VIA East Midlands Ltd,VIA East Midlands Ltd,Management & Support Services,5,202312,02/03/2023,P6,9105643,"-35,903.20 ","35,903.20 ",3103,Fleet Maintenance - Unplanned,2084,Engineering,"29,919.33 "
Nottinghamshire Fire and Rescue Service,103820,VIA East Midlands Ltd,VIA East Midlands Ltd,Management & Support Services,5,202312,29/03/2023,P6,9105810,"-10,258.18 ","10,258.18 ",3103,Fleet Maintenance - Unplanned,2084,Engineering,"8,548.48 "
Nottinghamshire Fire and Rescue Service,103820,VIA East Midlands Ltd,VIA East Midlands Ltd,Management & Support Services,5,202312,22/03/2023,P6,9105610,"-3,875.09 ","3,875.09 ",3104,Fleet - Accident Repairs,2084,Engineering,"3,229.24 "
Nottinghamshire Fire and Rescue Service,103820,VIA East Midlands Ltd,VIA East Midlands Ltd,Management & Support Services,5,202312,02/03/2023,P6,9105641,-762.73 ,762.73 ,3104,Fleet - Accident Repairs,2084,Engineering,635.61 
Nottinghamshire Fire and Rescue Service,103820,VIA East Midlands Ltd,VIA East Midlands Ltd,Management & Support Services,5,202312,20/03/2023,P6,9105651,-616.73 ,616.73 ,3104,Fleet - Accident Repairs,2084,Engineering,513.94 
Nottinghamshire Fire and Rescue Service,103820,VIA East Midlands Ltd,VIA East Midlands Ltd,Management & Support Services,5,202312,29/03/2023,P6,9105806,-393.17 ,393.17 ,3104,Fleet - Accident Repairs,2084,Engineering,327.64 
Nottinghamshire Fire and Rescue Service,103766,CERTAS,CERTAS,Operational Responses,5,202312,10/03/2023,P6,9105306,"-11,919.36 ","11,919.36 ",3200,Fuel - Vehicle,1012,Retford,"9,932.80 "
Nottinghamshire Fire and Rescue Service,103766,CERTAS,CERTAS,Operational Responses,5,202312,10/03/2023,P6,9105386,"-7,482.49 ","7,482.49 ",3200,Fuel - Vehicle,1029,Highfields Station,"6,235.41 "
Nottinghamshire Fire and Rescue Service,103766,CERTAS,CERTAS,Operational Responses,5,202312,13/03/2023,P6,9105457,"-9,523.80 ","9,523.80 ",3200,Fuel - Vehicle,1019,West Bridgford,"7,936.50 "
Nottinghamshire Fire and Rescue Service,103766,CERTAS,CERTAS,Operational Responses,5,202312,20/03/2023,P6,9105513,"-11,485.24 ","11,485.24 ",3200,Fuel - Vehicle,1006,Edwinstowe,"9,571.03 "
Nottinghamshire Fire and Rescue Service,103766,CERTAS,CERTAS,Operational Responses,5,202312,28/02/2023,P6,9105584,"-11,188.45 ","11,188.45 ",3200,Fuel - Vehicle,1005,Ashfield,"9,323.71 "
Nottinghamshire Fire and Rescue Service,103766,CERTAS,CERTAS,Operational Responses,5,202312,29/03/2023,P6,9105841,"-1,404.12 ","1,404.12 ",3200,Fuel - Vehicle,1011,Misterton,"1,170.10 "
Nottinghamshire Fire and Rescue Service,103942,The Lodge Tyre Co. Limited,The Lodge Tyre Co. Limited,Management & Support Services,5,202312,28/02/2023,P6,9105326,"-1,229.02 ","1,229.02 ",3202,Tyres,2084,Engineering,"1,024.19 "
Nottinghamshire Fire and Rescue Service,103942,The Lodge Tyre Co. Limited,The Lodge Tyre Co. Limited,Management & Support Services,5,202312,31/03/2023,P6,9105834,"-3,327.13 ","3,327.13 ",3202,Tyres,2084,Engineering,"2,772.62 "
Nottinghamshire Fire and Rescue Service,103943,Teletrac Navman (UK) Limited,Teletrac Navman (UK) Limited,Management & Support Services,5,202312,01/03/2023,P6,9105189,"-1,071.96 ","1,071.96 ",3203,Motor Tax / Licenses,2084,Engineering,893.30 
Nottinghamshire Fire and Rescue Service,100321,Drivercheck Ltd,Drivercheck Ltd,Management & Support Services,1,202312,28/02/2023,P6,9105245,-751.50 ,751.50 ,3203,Motor Tax / Licenses,2084,Engineering,626.25 
Nottinghamshire Fire and Rescue Service,100321,Drivercheck Ltd,Drivercheck Ltd,Management & Support Services,1,202312,31/03/2023,P6,9105787,-414.90 ,414.90 ,3203,Motor Tax / Licenses,2084,Engineering,345.75 
Nottinghamshire Fire and Rescue Service,103943,Teletrac Navman (UK) Limited,Teletrac Navman (UK) Limited,Management & Support Services,5,202312,01/04/2023,P6,9105845,"-1,071.96 ","1,071.96 ",3203,Motor Tax / Licenses,2084,Engineering,893.30 
Nottinghamshire Fire and Rescue Service,103443,Terberg DTS UK Limited,Terberg DTS UK Limited,Management & Support Services,5,202312,28/02/2023,P6,9105207,"-5,532.00 ","5,532.00 ",4000,Operational Equipment Purchase,2084,Engineering,"4,610.00 "
Nottinghamshire Fire and Rescue Service,100224,Delta Fire,Delta Fire,Management & Support Services,1,202312,21/12/2022,P6,9105219,-611.03 ,611.03 ,4000,Operational Equipment Purchase,2084,Engineering,18.00 
Nottinghamshire Fire and Rescue Service,100224,Delta Fire,Delta Fire,Management & Support Services,1,202312,21/12/2022,P6,9105219,-611.03 ,611.03 ,4000,Operational Equipment Purchase,2084,Engineering,491.19 
Nottinghamshire Fire and Rescue Service,102070,Life Safety Distribution AG,Life Safety Distribution AG,Management & Support Services,1,202312,28/02/2023,P6,9105220,-437.46 ,437.46 ,4000,Operational Equipment Purchase,2084,Engineering,346.00 
Nottinghamshire Fire and Rescue Service,104263,Rockall Safety Ltd,Rockall Safety Ltd,Management & Support Services,5,202312,02/03/2023,P6,9105228,-670.86 ,670.86 ,4000,Operational Equipment Purchase,2084,Engineering,559.05 
Nottinghamshire Fire and Rescue Service,104268,Ukplanettools,Ukplanettools,Management & Support Services,5,202312,07/03/2023,P6,9105236,"-1,650.00 ","1,650.00 ",4000,Operational Equipment Purchase,2084,Engineering,"1,375.00 "
Nottinghamshire Fire and Rescue Service,104128,LeasePlan UK Limited,LeasePlan UK Limited,Management & Support Services,5,202312,08/03/2023,P6,9105286,"-1,107.78 ","1,107.78 ",4000,Operational Equipment Purchase,2068,Prevention,923.16 
Nottinghamshire Fire and Rescue Service,104213,NightSearcher LTD,NightSearcher LTD,Management & Support Services,5,202312,10/03/2023,P6,9105313,"-14,070.00 ","14,070.00 ",4000,Operational Equipment Purchase,2084,Engineering,"11,725.00 "
Nottinghamshire Fire and Rescue Service,104081,Wel Medical Ltd,Wel Medical Ltd,Management & Support Services,5,202312,17/03/2023,P6,9105401,"-7,140.00 ","7,140.00 ",4000,Operational Equipment Purchase,2084,Engineering,"5,950.00 "
Nottinghamshire Fire and Rescue Service,103443,Terberg DTS UK Limited,Terberg DTS UK Limited,Management & Support Services,5,202312,14/03/2023,P6,9105410,-380.05 ,380.05 ,4000,Operational Equipment Purchase,2084,Engineering,316.71 
Nottinghamshire Fire and Rescue Service,101190,Lyon Equipment Limited,Lyon Equipment Limited,Management & Support Services,1,202312,22/03/2023,P6,9105523,-284.16 ,284.16 ,4000,Operational Equipment Purchase,2084,Engineering,236.80 
Nottinghamshire Fire and Rescue Service,101190,Lyon Equipment Limited,Lyon Equipment Limited,Management & Support Services,1,202312,28/03/2023,P6,9105594,"-8,910.72 ","8,910.72 ",4000,Operational Equipment Purchase,2084,Engineering,"7,425.60 "
Nottinghamshire Fire and Rescue Service,103443,Terberg DTS UK Limited,Terberg DTS UK Limited,Management & Support Services,5,202312,27/03/2023,P6,9105597,"-6,714.72 ","6,714.72 ",4000,Operational Equipment Purchase,2084,Engineering,"5,595.60 "
Nottinghamshire Fire and Rescue Service,100437,Nottinghamshire Fire Safety Limited,Nottinghamshire Fire Safety Limited,Management & Support Services,1,202312,24/03/2023,P6,9105599,"-1,720.12 ","1,720.12 ",4000,Operational Equipment Purchase,2084,Engineering,"1,433.43 "
Nottinghamshire Fire and Rescue Service,101867,Nottinghamshire Police and Crime Commissioner,Nottinghamshire Police and Crime Commissioner,Management & Support Services,4,202312,21/03/2023,P6,9105852,"-15,185.26 ","15,185.26 ",4000,Operational Equipment Purchase,2084,Engineering,"15,185.26 "
Nottinghamshire Fire and Rescue Service,104081,Wel Medical Ltd,Wel Medical Ltd,Management & Support Services,5,202312,03/03/2023,P6,9105218,"-3,135.60 ","3,135.60 ",4001,Operational Equipment (Medical),2084,Engineering,"2,613.00 "
Nottinghamshire Fire and Rescue Service,102203,Flogas Britian Limited,Flogas Britian Limited,Management & Support Services,1,202312,15/03/2023,P6,9105685,"-1,173.22 ","1,173.22 ",4006,Oxygen and Other Gases,2084,Engineering,977.68 
Nottinghamshire Fire and Rescue Service,103373,GTT (Interoute/Easynet),GTT (Interoute/Easynet),Management & Support Services,5,202312,25/02/2023,P6,9105190,"-17,215.35 ","17,215.35 ",4101,Computer Software Maintenance Contracts,2095,ICT Digital Transformation,"14,384.58 "
Nottinghamshire Fire and Rescue Service,103483,Risual Limited,Risual Limited,Management & Support Services,5,202312,24/02/2023,P6,9105194,-270.00 ,270.00 ,4101,Computer Software Maintenance Contracts,2097,ICT Service Operations,225.00 
Nottinghamshire Fire and Rescue Service,101782,Derbyshire Fire Authority,Derbyshire Fire Authority,Operational Responses,4,202312,13/02/2023,P6,9105259,"-36,517.26 ","36,517.26 ",4101,Computer Software Maintenance Contracts,2005,Fire Control,"23,276.03 "
Nottinghamshire Fire and Rescue Service,102072,Civica Uk Limited,Civica Uk Limited,Management & Support Services,1,202312,15/02/2023,P6,9105260,"-13,329.13 ","13,329.13 ",4101,Computer Software Maintenance Contracts,2097,ICT Service Operations,"11,107.61 "
Nottinghamshire Fire and Rescue Service,101782,Derbyshire Fire Authority,Derbyshire Fire Authority,Operational Responses,4,202312,13/02/2023,P6,9105272,"-117,706.40 ","117,706.40 ",4101,Computer Software Maintenance Contracts,2005,Fire Control,"78,028.60 "
Nottinghamshire Fire and Rescue Service,102072,Civica Uk Limited,Civica Uk Limited,Management & Support Services,1,202312,15/02/2023,P6,9105537,"-37,871.65 ","37,871.65 ",4101,Computer Software Maintenance Contracts,2097,ICT Service Operations,"31,559.70 "
Nottinghamshire Fire and Rescue Service,103483,Risual Limited,Risual Limited,Management & Support Services,5,202312,01/03/2023,P6,9105539,"-17,260.70 ","17,260.70 ",4101,Computer Software Maintenance Contracts,2097,ICT Service Operations,"14,383.92 "
Nottinghamshire Fire and Rescue Service,102319,Experian Ltd,Experian Ltd,Management & Support Services,1,202312,23/03/2023,P6,9105662,"-21,582.28 ","21,582.28 ",4101,Computer Software Maintenance Contracts,2097,ICT Service Operations,"17,985.23 "
Nottinghamshire Fire and Rescue Service,102261,Airwave Solutions Ltd,Airwave Solutions Ltd,Management & Support Services,1,202312,08/03/2023,P6,9105823,"-2,488.32 ","2,488.32 ",4101,Computer Software Maintenance Contracts,2097,ICT Service Operations,"2,073.60 "
Nottinghamshire Fire and Rescue Service,103483,Risual Limited,Risual Limited,Management & Support Services,5,202312,24/03/2023,P6,9105838,-270.00 ,270.00 ,4101,Computer Software Maintenance Contracts,2097,ICT Service Operations,225.00 
Nottinghamshire Fire and Rescue Service,100289,Home Office,Home Office,Management & Support Services,4,202312,20/03/2023,P6,9105473,"-61,207.61 ","61,207.61 ",4204,FireLink Contract Charges,2097,ICT Service Operations,"51,006.34 "
Nottinghamshire Fire and Rescue Service,103092,Daisy Corporate Services Trading Limited,Daisy Corporate Services Trading Limited,Management & Support Services,1,202312,01/03/2023,P6,9105241,"-1,556.60 ","1,556.60 ",4301,Phones - Landline,2096,ICT Service Transformation,"1,297.17 "
Nottinghamshire Fire and Rescue Service,103483,Risual Limited,Risual Limited,Management & Support Services,5,202312,21/03/2023,P6,9105540,"-1,780.99 ","1,780.99 ",4301,Phones - Landline,2097,ICT Service Operations,"1,484.16 "
Nottinghamshire Fire and Rescue Service,102420,BT PLC,BT PLC,Management & Support Services,1,202312,07/03/2023,P6,9105767,"-1,318.79 ","1,318.79 ",4301,Phones - Landline,2097,ICT Service Operations,70.00 
Nottinghamshire Fire and Rescue Service,102420,BT PLC,BT PLC,Management & Support Services,1,202312,07/03/2023,P6,9105767,"-1,318.79 ","1,318.79 ",4301,Phones - Landline,2097,ICT Service Operations,"1,040.66 "
Nottinghamshire Fire and Rescue Service,101802,EE,EE,Management & Support Services,1,202312,01/03/2023,P6,9105389,"-3,969.28 ","3,969.28 ",4302,Phones - Mobiles,2097,ICT Service Operations,"3,307.73 "
Nottinghamshire Fire and Rescue Service,104045,Smalley's Gentleman's Outfitters,Smalley's Gentleman's Outfitters,Prevention and Education ,10,202312,05/09/2022,P6,9105201,-550.00 ,550.00 ,4400,Clothing and Uniform,2026,Fire Investigation,150.00 
Nottinghamshire Fire and Rescue Service,104045,Smalley's Gentleman's Outfitters,Smalley's Gentleman's Outfitters,Management & Support Services,10,202312,05/09/2022,P6,9105201,-550.00 ,550.00 ,4400,Clothing and Uniform,2086,Procurement,400.00 
Nottinghamshire Fire and Rescue Service,100357,Eastern Shires Purchasing Organisation,Eastern Shires Purchasing Organisation,Operational Responses,1,202312,16/03/2023,P6,9105469,-381.60 ,381.60 ,4401,Protective Clothing,1001,Mansfield,318.00 
Nottinghamshire Fire and Rescue Service,102119,Radiocoms Systems Ltd,Radiocoms Systems Ltd,Management & Support Services,1,202312,20/03/2023,P6,9105491,"-7,336.50 ","7,336.50 ",4401,Protective Clothing,2084,Engineering,"6,113.75 "
Nottinghamshire Fire and Rescue Service,103094,Draeger Safety UK Limited,Draeger Safety UK Limited,Management & Support Services,5,202312,23/03/2023,P6,9105530,"-2,718.10 ","2,718.10 ",4401,Protective Clothing,2084,Engineering,"2,265.08 "
Nottinghamshire Fire and Rescue Service,102190,Dot Promotional Clothing,Dot Promotional Clothing,Management & Support Services,1,202312,07/03/2023,P6,9105669,"-1,383.89 ","1,383.89 ",4401,Protective Clothing,2086,Procurement,"1,153.24 "
Nottinghamshire Fire and Rescue Service,102280,Amptron Electrical Services,Amptron Electrical Services,Operational Responses,1,202312,29/03/2023,P6,9105789,"-3,419.81 ","3,419.81 ",4401,Protective Clothing,1024,Eastwood,"2,849.84 "
Nottinghamshire Fire and Rescue Service,102280,Amptron Electrical Services,Amptron Electrical Services,Operational Responses,1,202312,31/03/2023,P6,9105796,-256.28 ,256.28 ,4401,Protective Clothing,1017,Bingham,213.57 
Nottinghamshire Fire and Rescue Service,102280,Amptron Electrical Services,Amptron Electrical Services,Management & Support Services,1,202312,30/03/2023,P6,9105801,"-7,470.72 ","7,470.72 ",4401,Protective Clothing,2086,Procurement,"6,225.60 "
Nottinghamshire Fire and Rescue Service,100369,Boddingtons Electrical Limited,Boddingtons Electrical Limited,Management & Support Services,1,202312,30/03/2023,P6,9105814,-559.78 ,559.78 ,4401,Protective Clothing,2086,Procurement,466.48 
Nottinghamshire Fire and Rescue Service,102280,Amptron Electrical Services,Amptron Electrical Services,Operational Responses,1,202312,31/03/2023,P6,9105819,-894.31 ,894.31 ,4401,Protective Clothing,1020,Stockhill,745.26 
Nottinghamshire Fire and Rescue Service,102376,Bristol Uniforms Limited,Bristol Uniforms Limited,Management & Support Services,1,202312,28/02/2023,P6,9105484,"-12,975.49 ","12,975.49 ",4402,Uniform and Protectice Clothing Repairs,2086,Procurement,"6,359.92 "
Nottinghamshire Fire and Rescue Service,102376,Bristol Uniforms Limited,Bristol Uniforms Limited,Management & Support Services,1,202312,28/02/2023,P6,9105484,"-12,975.49 ","12,975.49 ",4403,Laundry and Dry Cleaning,2086,Procurement,"4,452.99 "
Nottinghamshire Fire and Rescue Service,100260,Plastor Ltd,Plastor Ltd,Management & Support Services,1,202312,28/03/2023,P6,9105821,"-1,255.20 ","1,255.20 ",4500,Furniture,2086,Procurement,60.00 
Nottinghamshire Fire and Rescue Service,100260,Plastor Ltd,Plastor Ltd,Management & Support Services,1,202312,28/03/2023,P6,9105821,"-1,255.20 ","1,255.20 ",4500,Furniture,2086,Procurement,986.00 
Nottinghamshire Fire and Rescue Service,103678,Fitness Warehouse Limited t/a Gym Gear,Fitness Warehouse Limited t/a Gym Gear,Management & Support Services,5,202312,27/02/2023,P6,9105209,-468.60 ,468.60 ,4510,Fitness Equipment,2061,Occupational Health & Fitness,335.50 
Nottinghamshire Fire and Rescue Service,103678,Fitness Warehouse Limited t/a Gym Gear,Fitness Warehouse Limited t/a Gym Gear,Management & Support Services,5,202312,20/02/2023,P6,9105659,-714.00 ,714.00 ,4510,Fitness Equipment,2061,Occupational Health & Fitness,595.00 
Nottinghamshire Fire and Rescue Service,101656,Amplivox Ltd,Amplivox Ltd,Management & Support Services,1,202312,07/03/2023,P6,9105656,-255.98 ,255.98 ,4512,Medical Equipment Maintenance,2061,Occupational Health & Fitness,213.32 
Nottinghamshire Fire and Rescue Service,103678,Fitness Warehouse Limited t/a Gym Gear,Fitness Warehouse Limited t/a Gym Gear,Management & Support Services,5,202312,27/02/2023,P6,9105209,-468.60 ,468.60 ,4534,Carriage and Packaging,2061,Occupational Health & Fitness,55.00 
Nottinghamshire Fire and Rescue Service,101820,Metcalf Leenside Limited,Metcalf Leenside Limited,Management & Support Services,1,202312,28/02/2023,P6,9105211,-350.58 ,350.58 ,4534,Carriage and Packaging,2086,Procurement,15.00 
Nottinghamshire Fire and Rescue Service,102070,Life Safety Distribution AG,Life Safety Distribution AG,Management & Support Services,1,202312,28/02/2023,P6,9105220,-437.46 ,437.46 ,4534,Carriage and Packaging,2084,Engineering,18.55 
Nottinghamshire Fire and Rescue Service,100723,J Hudson & Co (Whistles) Ltd,J Hudson & Co (Whistles) Ltd,Management & Support Services,1,202312,02/02/2022,P6,9105240,-575.38 ,575.38 ,4534,Carriage and Packaging,2086,Procurement,11.48 
Nottinghamshire Fire and Rescue Service,100468,Specialised Canvas Group,Specialised Canvas Group,Management & Support Services,1,202312,03/03/2023,P6,9105279,"-1,314.44 ","1,314.44 ",4534,Carriage and Packaging,2086,Procurement,36.08 
Nottinghamshire Fire and Rescue Service,100114,Goliath Footwear Ltd,Goliath Footwear Ltd,Management & Support Services,1,202312,16/03/2023,P6,9105402,-268.28 ,268.28 ,4534,Carriage and Packaging,4200,Equipment Capital Programme,8.00 
Nottinghamshire Fire and Rescue Service,100479,MedTree,MedTree,Management & Support Services,1,202312,15/03/2023,P6,9105413,-682.14 ,682.14 ,4534,Carriage and Packaging,4200,Equipment Capital Programme,5.95 
Nottinghamshire Fire and Rescue Service,100468,Specialised Canvas Group,Specialised Canvas Group,Management & Support Services,1,202312,14/03/2023,P6,9105479,-321.87 ,321.87 ,4534,Carriage and Packaging,2086,Procurement,15.61 
Nottinghamshire Fire and Rescue Service,104201,BlockaboxLimited,BlockaboxLimited,Management & Support Services,5,202312,23/03/2023,P6,9105555,-695.00 ,695.00 ,4534,Carriage and Packaging,2086,Procurement,20.00 
Nottinghamshire Fire and Rescue Service,103010,Rig Equipment Limited,Rig Equipment Limited,Management & Support Services,5,202312,22/03/2023,P6,9105557,-416.10 ,416.10 ,4534,Carriage and Packaging,4200,Equipment Capital Programme,9.75 
Nottinghamshire Fire and Rescue Service,102306,Northern Diver (International) Ltd,Northern Diver (International) Ltd,Management & Support Services,1,202312,06/03/2023,P6,9105682,-359.40 ,359.40 ,4534,Carriage and Packaging,2086,Procurement,9.50 
Nottinghamshire Fire and Rescue Service,102306,Northern Diver (International) Ltd,Northern Diver (International) Ltd,Management & Support Services,1,202312,06/03/2023,P6,9105684,"-1,206.00 ","1,206.00 ",4534,Carriage and Packaging,2086,Procurement,19.00 
Nottinghamshire Fire and Rescue Service,102191,Anglian Water Services Ltd (Hydrants repairs),Anglian Water Services Ltd (Hydrants repairs),Management & Support Services,1,202312,23/03/2023,P6,9105522,-549.60 ,549.60 ,4541,Hydrant Maintenance,2084,Engineering,458.00 
Nottinghamshire Fire and Rescue Service,100395,Severn Trent Water Ltd,Severn Trent Water Ltd,Management & Support Services,1,202312,28/03/2023,P6,9105614,-908.83 ,908.83 ,4541,Hydrant Maintenance,2084,Engineering,757.36 
Nottinghamshire Fire and Rescue Service,100395,Severn Trent Water Ltd,Severn Trent Water Ltd,Management & Support Services,1,202312,27/03/2023,P6,9105615,-790.28 ,790.28 ,4541,Hydrant Maintenance,2084,Engineering,658.57 
Nottinghamshire Fire and Rescue Service,100395,Severn Trent Water Ltd,Severn Trent Water Ltd,Management & Support Services,1,202312,27/03/2023,P6,9105616,"-1,801.70 ","1,801.70 ",4541,Hydrant Maintenance,2084,Engineering,"1,501.42 "
Nottinghamshire Fire and Rescue Service,100395,Severn Trent Water Ltd,Severn Trent Water Ltd,Management & Support Services,1,202312,27/03/2023,P6,9105623,"-1,801.70 ","1,801.70 ",4541,Hydrant Maintenance,2084,Engineering,"1,501.42 "
Nottinghamshire Fire and Rescue Service,100395,Severn Trent Water Ltd,Severn Trent Water Ltd,Management & Support Services,1,202312,27/03/2023,P6,9105632,-790.28 ,790.28 ,4541,Hydrant Maintenance,2084,Engineering,658.57 
Nottinghamshire Fire and Rescue Service,100395,Severn Trent Water Ltd,Severn Trent Water Ltd,Management & Support Services,1,202312,28/03/2023,P6,9105633,-790.28 ,790.28 ,4541,Hydrant Maintenance,2084,Engineering,658.57 
Nottinghamshire Fire and Rescue Service,100395,Severn Trent Water Ltd,Severn Trent Water Ltd,Management & Support Services,1,202312,28/03/2023,P6,9105634,-790.28 ,790.28 ,4541,Hydrant Maintenance,2084,Engineering,658.57 
Nottinghamshire Fire and Rescue Service,100395,Severn Trent Water Ltd,Severn Trent Water Ltd,Management & Support Services,1,202312,28/03/2023,P6,9105635,"-1,801.70 ","1,801.70 ",4541,Hydrant Maintenance,2084,Engineering,"1,501.42 "
Nottinghamshire Fire and Rescue Service,100395,Severn Trent Water Ltd,Severn Trent Water Ltd,Management & Support Services,1,202312,28/03/2023,P6,9105638,"-1,801.70 ","1,801.70 ",4541,Hydrant Maintenance,2084,Engineering,"1,501.42 "
Nottinghamshire Fire and Rescue Service,100395,Severn Trent Water Ltd,Severn Trent Water Ltd,Management & Support Services,1,202312,28/03/2023,P6,9105639,"-1,801.70 ","1,801.70 ",4541,Hydrant Maintenance,2084,Engineering,"1,501.42 "
Nottinghamshire Fire and Rescue Service,100395,Severn Trent Water Ltd,Severn Trent Water Ltd,Management & Support Services,1,202312,28/03/2023,P6,9105640,"-1,801.70 ","1,801.70 ",4541,Hydrant Maintenance,2084,Engineering,"1,501.42 "
Nottinghamshire Fire and Rescue Service,100395,Severn Trent Water Ltd,Severn Trent Water Ltd,Management & Support Services,1,202312,28/03/2023,P6,9105647,"-1,866.13 ","1,866.13 ",4541,Hydrant Maintenance,2084,Engineering,"1,555.11 "
Nottinghamshire Fire and Rescue Service,100395,Severn Trent Water Ltd,Severn Trent Water Ltd,Management & Support Services,1,202312,28/03/2023,P6,9105648,"-1,866.13 ","1,866.13 ",4541,Hydrant Maintenance,2084,Engineering,"1,555.11 "
Nottinghamshire Fire and Rescue Service,100395,Severn Trent Water Ltd,Severn Trent Water Ltd,Management & Support Services,1,202312,28/03/2023,P6,9105649,"-1,866.13 ","1,866.13 ",4541,Hydrant Maintenance,2084,Engineering,"1,555.11 "
Nottinghamshire Fire and Rescue Service,100395,Severn Trent Water Ltd,Severn Trent Water Ltd,Management & Support Services,1,202312,28/03/2023,P6,9105650,"-1,866.13 ","1,866.13 ",4541,Hydrant Maintenance,2084,Engineering,"1,555.11 "
Nottinghamshire Fire and Rescue Service,101844,Nottinghamshire Relate,Nottinghamshire Relate,Management & Support Services,1,202312,28/02/2023,P6,9105303,-800.00 ,800.00 ,4552,Occupational Health Costs,2061,Occupational Health & Fitness,800.00 
Nottinghamshire Fire and Rescue Service,599999,Sundry Account Interview Expenses,Redacted Personal Data ,Management & Support Services,2,202312,14/03/2022,P6,9105766,-500.00 ,500.00 ,4552,Occupational Health Costs,2061,Occupational Health & Fitness,500.00 
Nottinghamshire Fire and Rescue Service,101844,Nottinghamshire Relate,Nottinghamshire Relate,Management & Support Services,1,202312,28/03/2023,P6,9105772,"-1,000.00 ","1,000.00 ",4552,Occupational Health Costs,2061,Occupational Health & Fitness,"1,000.00 "
Nottinghamshire Fire and Rescue Service,102964,Trinity Occupational and Public Health Solutions Ltd,Trinity Occupational and Public Health Solutions Ltd,Management & Support Services,5,202312,30/03/2023,P6,9105773,"-6,000.00 ","6,000.00 ",4552,Occupational Health Costs,2061,Occupational Health & Fitness,"6,000.00 "
Nottinghamshire Fire and Rescue Service,102964,Trinity Occupational and Public Health Solutions Ltd,Trinity Occupational and Public Health Solutions Ltd,Management & Support Services,5,202312,30/03/2023,P6,9105774,"-2,250.00 ","2,250.00 ",4552,Occupational Health Costs,2061,Occupational Health & Fitness,"2,250.00 "
Nottinghamshire Fire and Rescue Service,104115,Valentine Occupational Health Limited,Valentine Occupational Health Limited,Management & Support Services,5,202312,01/04/2023,P6,9105777,-468.00 ,468.00 ,4552,Occupational Health Costs,2061,Occupational Health & Fitness,390.00 
Nottinghamshire Fire and Rescue Service,102964,Trinity Occupational and Public Health Solutions Ltd,Trinity Occupational and Public Health Solutions Ltd,Management & Support Services,5,202312,20/01/2023,P6,9105270,750.00 ,-750.00 ,4552,Occupational Health Costs,2061,Occupational Health & Fitness,-750.00 
Nottinghamshire Fire and Rescue Service,104221,Operational Research in Health Limited (ORH),Operational Research in Health Limited (ORH),Management & Support Services,5,202312,20/09/2022,P6,9105508,"-11,850.00 ","11,850.00 ",4554,Consultancy Fees - Non Estates Related,2081,Finance,"9,875.00 "
Nottinghamshire Fire and Rescue Service,103275,Zellis,Zellis,Management & Support Services,5,202312,23/02/2023,P6,9105315,-359.30 ,359.30 ,4555,Disclosure Checks,2049,Professional Support,146.08 
Nottinghamshire Fire and Rescue Service,103275,Zellis,Zellis,Management & Support Services,5,202312,23/02/2023,P6,9105315,-359.30 ,359.30 ,4555,Disclosure Checks,2049,Professional Support,184.00 
Nottinghamshire Fire and Rescue Service,103275,Zellis,Zellis,Management & Support Services,5,202312,30/03/2023,P6,9105791,-802.01 ,802.01 ,4555,Disclosure Checks,2049,Professional Support,731.68 
Nottinghamshire Fire and Rescue Service,101756,Opinion Research Services Ltd,Opinion Research Services Ltd,Management & Support Services,1,202312,12/12/2022,P6,9105559,"-17,787.00 ","17,787.00 ",4557,Consultation Costs,2050,Corporate Support,"14,822.50 "
Nottinghamshire Fire and Rescue Service,100019,Nuffield Sailing Centre,Nuffield Sailing Centre,Management & Support Services,1,202312,01/03/2023,P6,9105191,-880.00 ,880.00 ,4561,Overnight Accomodation,2059,Corporate Training,840.00 
Nottinghamshire Fire and Rescue Service,100019,Nuffield Sailing Centre,Nuffield Sailing Centre,Management & Support Services,1,202312,24/03/2023,P6,9105668,-880.00 ,880.00 ,4561,Overnight Accomodation,2059,Corporate Training,840.00 
Nottinghamshire Fire and Rescue Service,102124,East Midlands Councils,East Midlands Councils,Management & Support Services,1,202312,22/02/2023,P6,9105208,-606.00 ,606.00 ,4581,Subscriptions,2054,Equalities Team,505.00 
Nottinghamshire Fire and Rescue Service,100779,Local Government Association,Local Government Association,Management & Support Services,1,202312,03/04/2023,P6,9105847,"-12,930.11 ","12,930.11 ",4581,Subscriptions,1087,Democratic Core,"10,775.09 "
Nottinghamshire Fire and Rescue Service,101851,Complete Business Solutions Group Ltd,Complete Business Solutions Group Ltd,Management & Support Services,1,202312,06/03/2023,P6,9105243,-480.00 ,480.00 ,4583,Marketing and Publicity,2075,Service Support Hub,480.00 
Nottinghamshire Fire and Rescue Service,103860,Debora Link Creative,Debora Link Creative,Management & Support Services,5,202312,15/03/2023,P6,9105387,-487.50 ,487.50 ,4583,Marketing and Publicity,2054,Equalities Team,406.00 
Nottinghamshire Fire and Rescue Service,101851,Complete Business Solutions Group Ltd,Complete Business Solutions Group Ltd,Management & Support Services,1,202312,15/03/2023,P6,9105409,-552.00 ,552.00 ,4583,Marketing and Publicity,2014,On Call / Rostering Team,552.00 
Nottinghamshire Fire and Rescue Service,103860,Debora Link Creative,Debora Link Creative,Management & Support Services,5,202312,15/03/2023,P6,9105778,-940.00 ,940.00 ,4583,Marketing and Publicity,2054,Equalities Team,940.00 
Nottinghamshire Fire and Rescue Service,104260,Designs Signage Solutions Ltd,Designs Signage Solutions Ltd,Operational Responses,5,202312,09/02/2023,P6,9105851,"-3,703.20 ","3,703.20 ",4583,Marketing and Publicity,1003,London Road,"1,543.00 "
Nottinghamshire Fire and Rescue Service,104260,Designs Signage Solutions Ltd,Designs Signage Solutions Ltd,Operational Responses,5,202312,09/02/2023,P6,9105851,"-3,703.20 ","3,703.20 ",4583,Marketing and Publicity,1020,Stockhill,"1,543.00 "
Nottinghamshire Fire and Rescue Service,101851,Complete Business Solutions Group Ltd,Complete Business Solutions Group Ltd,Management & Support Services,1,202312,13/03/2023,P6,9105416,"-1,117.20 ","1,117.20 ",4594,Training/ Teaching Equipment,2059,Corporate Training,931.00 
Nottinghamshire Fire and Rescue Service,102144,A W Elliott Technical Services,A W Elliott Technical Services,Management & Support Services,1,202312,07/03/2023,P6,9105462,-319.80 ,319.80 ,4594,Training/ Teaching Equipment,1030,Service Development Centre,319.80 
Nottinghamshire Fire and Rescue Service,102107,Bits At Micks,Bits At Micks,Operational Responses,1,202312,31/12/2022,P6,9105799,"-1,306.80 ","1,306.80 ",4594,Training/ Teaching Equipment,1003,London Road,435.60 
Nottinghamshire Fire and Rescue Service,102107,Bits At Micks,Bits At Micks,Operational Responses,1,202312,31/12/2022,P6,9105799,"-1,306.80 ","1,306.80 ",4594,Training/ Teaching Equipment,1020,Stockhill,217.80 
Nottinghamshire Fire and Rescue Service,102107,Bits At Micks,Bits At Micks,Operational Responses,1,202312,31/12/2022,P6,9105799,"-1,306.80 ","1,306.80 ",4594,Training/ Teaching Equipment,1023,Stapleford,435.60 
Nottinghamshire Fire and Rescue Service,102107,Bits At Micks,Bits At Micks,Operational Responses,1,202312,28/02/2023,P6,9105802,"-1,829.52 ","1,829.52 ",4594,Training/ Teaching Equipment,1003,London Road,435.60 
Nottinghamshire Fire and Rescue Service,102107,Bits At Micks,Bits At Micks,Operational Responses,1,202312,28/02/2023,P6,9105802,"-1,829.52 ","1,829.52 ",4594,Training/ Teaching Equipment,1020,Stockhill,217.80 
Nottinghamshire Fire and Rescue Service,102107,Bits At Micks,Bits At Micks,Operational Responses,1,202312,28/02/2023,P6,9105802,"-1,829.52 ","1,829.52 ",4594,Training/ Teaching Equipment,1028,East Leake,435.60 
Nottinghamshire Fire and Rescue Service,102107,Bits At Micks,Bits At Micks,Operational Responses,1,202312,28/02/2023,P6,9105802,"-1,829.52 ","1,829.52 ",4594,Training/ Teaching Equipment,1029,Highfields Station,435.60 
Nottinghamshire Fire and Rescue Service,102107,Bits At Micks,Bits At Micks,Operational Responses,1,202312,31/01/2023,P6,9105803,"-2,613.60 ","2,613.60 ",4594,Training/ Teaching Equipment,1017,Bingham,217.80 
Nottinghamshire Fire and Rescue Service,102107,Bits At Micks,Bits At Micks,Operational Responses,1,202312,31/01/2023,P6,9105803,"-2,613.60 ","2,613.60 ",4594,Training/ Teaching Equipment,1020,Stockhill,217.80 
Nottinghamshire Fire and Rescue Service,102107,Bits At Micks,Bits At Micks,Operational Responses,1,202312,31/01/2023,P6,9105803,"-2,613.60 ","2,613.60 ",4594,Training/ Teaching Equipment,1024,Eastwood,217.80 
Nottinghamshire Fire and Rescue Service,102107,Bits At Micks,Bits At Micks,Operational Responses,1,202312,31/01/2023,P6,9105803,"-2,613.60 ","2,613.60 ",4594,Training/ Teaching Equipment,1025,Hucknall,435.60 
Nottinghamshire Fire and Rescue Service,102107,Bits At Micks,Bits At Micks,Operational Responses,1,202312,31/01/2023,P6,9105803,"-2,613.60 ","2,613.60 ",4594,Training/ Teaching Equipment,1026,Arnold,217.80 
Nottinghamshire Fire and Rescue Service,102107,Bits At Micks,Bits At Micks,Operational Responses,1,202312,31/01/2023,P6,9105803,"-2,613.60 ","2,613.60 ",4594,Training/ Teaching Equipment,1027,Carlton,435.60 
Nottinghamshire Fire and Rescue Service,102107,Bits At Micks,Bits At Micks,Operational Responses,1,202312,30/11/2022,P6,9105805,-784.08 ,784.08 ,4594,Training/ Teaching Equipment,1019,West Bridgford,435.60 
Nottinghamshire Fire and Rescue Service,102107,Bits At Micks,Bits At Micks,Operational Responses,1,202312,30/11/2022,P6,9105805,-784.08 ,784.08 ,4594,Training/ Teaching Equipment,1020,Stockhill,217.80 
Nottinghamshire Fire and Rescue Service,102073,B D Motor Spares,B D Motor Spares,Operational Responses,1,202312,02/04/2023,P6,9105820,"-7,392.00 ","7,392.00 ",4594,Training/ Teaching Equipment,1013,Tuxford,440.00 
Nottinghamshire Fire and Rescue Service,102073,B D Motor Spares,B D Motor Spares,Management & Support Services,1,202312,02/04/2023,P6,9105820,"-7,392.00 ","7,392.00 ",4594,Training/ Teaching Equipment,2059,Corporate Training,440.00 
Nottinghamshire Fire and Rescue Service,102073,B D Motor Spares,B D Motor Spares,Management & Support Services,1,202312,02/04/2023,P6,9105820,"-7,392.00 ","7,392.00 ",4594,Training/ Teaching Equipment,2059,Corporate Training,660.00 
Nottinghamshire Fire and Rescue Service,102073,B D Motor Spares,B D Motor Spares,Management & Support Services,1,202312,02/04/2023,P6,9105820,"-7,392.00 ","7,392.00 ",4594,Training/ Teaching Equipment,2059,Corporate Training,"4,620.00 "
Nottinghamshire Fire and Rescue Service,103849,Vision Support Services Ltd,Vision Support Services Ltd,Management & Support Services,5,202312,28/02/2023,P6,9105271,-291.78 ,291.78 ,4600,Community Safety Delivery Consumables,2068,Prevention,243.15 
Nottinghamshire Fire and Rescue Service,103849,Vision Support Services Ltd,Vision Support Services Ltd,Operational Responses,5,202312,16/01/2023,P6,9105392,-367.14 ,367.14 ,4600,Community Safety Delivery Consumables,1026,Arnold,305.95 
Nottinghamshire Fire and Rescue Service,103849,Vision Support Services Ltd,Vision Support Services Ltd,Operational Responses,5,202312,23/03/2023,P6,9105520,-434.28 ,434.28 ,4600,Community Safety Delivery Consumables,1001,Mansfield,361.90 
Nottinghamshire Fire and Rescue Service,103849,Vision Support Services Ltd,Vision Support Services Ltd,Operational Responses,5,202312,27/03/2023,P6,9105646,-734.28 ,734.28 ,4600,Community Safety Delivery Consumables,1003,London Road,611.90 
Nottinghamshire Fire and Rescue Service,103849,Vision Support Services Ltd,Vision Support Services Ltd,Operational Responses,5,202312,23/03/2023,P6,9105670,-434.28 ,434.28 ,4600,Community Safety Delivery Consumables,1029,Highfields Station,361.90 
Nottinghamshire Fire and Rescue Service,103849,Vision Support Services Ltd,Vision Support Services Ltd,Management & Support Services,5,202312,27/03/2023,P6,9105770,"-1,468.56 ","1,468.56 ",4600,Community Safety Delivery Consumables,2068,Prevention,"1,223.80 "
Nottinghamshire Fire and Rescue Service,104135,Nottingham Drawing Services,Nottingham Drawing Services,Prevention and Education ,5,202312,21/03/2023,P6,9105492,-252.00 ,252.00 ,4602,Fire Investigation Services,2026,Fire Investigation,252.00 
Nottinghamshire Fire and Rescue Service,104135,Nottingham Drawing Services,Nottingham Drawing Services,Prevention and Education ,5,202312,21/03/2023,P6,9105493,-252.00 ,252.00 ,4602,Fire Investigation Services,2026,Fire Investigation,252.00 
Nottinghamshire Fire and Rescue Service,101782,Derbyshire Fire Authority,Derbyshire Fire Authority,Operational Responses,4,202312,13/02/2023,P6,9105272,"-117,706.40 ","117,706.40 ",7002,Legal Services,2005,Fire Control,"4,326.80 "
Nottinghamshire Fire and Rescue Service,101712,Browne Jacobson LLP,Browne Jacobson LLP,Management & Support Services,1,202312,24/02/2023,P6,9105510,-441.00 ,441.00 ,7002,Legal Services,2058,HR Support,300.00 
Nottinghamshire Fire and Rescue Service,101712,Browne Jacobson LLP,Browne Jacobson LLP,Management & Support Services,1,202312,24/02/2023,P6,9105510,-441.00 ,441.00 ,7002,Legal Services,2087,Estates Department (Previously Premises),67.50 
Nottinghamshire Fire and Rescue Service,101712,Browne Jacobson LLP,Browne Jacobson LLP,Management & Support Services,1,202312,26/01/2023,P6,9105511,"-2,481.84 ","2,481.84 ",7002,Legal Services,2058,HR Support,462.00 
Nottinghamshire Fire and Rescue Service,101712,Browne Jacobson LLP,Browne Jacobson LLP,Management & Support Services,1,202312,26/01/2023,P6,9105511,"-2,481.84 ","2,481.84 ",7002,Legal Services,2058,HR Support,468.50 
Nottinghamshire Fire and Rescue Service,100779,Local Government Association,Local Government Association,Management & Support Services,1,202312,31/03/2023,P6,9105832,"-3,568.45 ","3,568.45 ",7002,Legal Services,2049,Professional Support,"2,973.71 "
Nottinghamshire Fire and Rescue Service,100878,Nottinghamshire County Council,Nottinghamshire County Council,Management & Support Services,4,202312,28/02/2023,P6,9105247,"-9,246.00 ","9,246.00 ",7500,Treasury Services,1086,Corporate Core,"7,705.00 "
Nottinghamshire Fire and Rescue Service,102431,Jafco Tools,Jafco Tools,Management & Support Services,1,202312,28/02/2023,P6,9105200,-418.66 ,418.66 ,B314,Stock,9999,Default,348.88 
Nottinghamshire Fire and Rescue Service,101820,Metcalf Leenside Limited,Metcalf Leenside Limited,Management & Support Services,1,202312,28/02/2023,P6,9105211,-350.58 ,350.58 ,B314,Stock,9999,Default,277.15 
Nottinghamshire Fire and Rescue Service,102078,Thomas Kneale & Co Ltd,Thomas Kneale & Co Ltd,Management & Support Services,1,202312,01/03/2023,P6,9105224,"-1,166.40 ","1,166.40 ",B314,Stock,9999,Default,972.00 
Nottinghamshire Fire and Rescue Service,100299,FireAngel Safety Technology Limited,FireAngel Safety Technology Limited,Management & Support Services,1,202312,08/02/2023,P6,9105237,"-2,803.68 ","2,803.68 ",B314,Stock,9999,Default,"2,336.40 "
Nottinghamshire Fire and Rescue Service,100723,J Hudson & Co (Whistles) Ltd,J Hudson & Co (Whistles) Ltd,Management & Support Services,1,202312,02/02/2022,P6,9105240,-575.38 ,575.38 ,B314,Stock,9999,Default,468.00 
Nottinghamshire Fire and Rescue Service,100357,Eastern Shires Purchasing Organisation,Eastern Shires Purchasing Organisation,Management & Support Services,1,202312,28/02/2023,P6,9105264,-483.63 ,483.63 ,B314,Stock,9999,Default,403.03 
Nottinghamshire Fire and Rescue Service,100357,Eastern Shires Purchasing Organisation,Eastern Shires Purchasing Organisation,Management & Support Services,1,202312,06/03/2023,P6,9105269,-344.35 ,344.35 ,B314,Stock,9999,Default,286.96 
Nottinghamshire Fire and Rescue Service,102376,Bristol Uniforms Limited,Bristol Uniforms Limited,Management & Support Services,1,202312,22/02/2023,P6,9105277,"-2,009.81 ","2,009.81 ",B314,Stock,9999,Default,"1,674.84 "
Nottinghamshire Fire and Rescue Service,100228,Romar Innovate,Romar Innovate,Management & Support Services,1,202312,24/02/2023,P6,9105278,-413.86 ,413.86 ,B314,Stock,9999,Default,344.88 
Nottinghamshire Fire and Rescue Service,100468,Specialised Canvas Group,Specialised Canvas Group,Management & Support Services,1,202312,03/03/2023,P6,9105279,"-1,314.44 ","1,314.44 ",B314,Stock,9999,Default,"1,059.28 "
Nottinghamshire Fire and Rescue Service,102864,William Sugden & sons Limited,William Sugden & sons Limited,Management & Support Services,5,202312,20/10/2022,P6,9105285,-369.46 ,369.46 ,B314,Stock,9999,Default,307.89 
Nottinghamshire Fire and Rescue Service,102864,William Sugden & sons Limited,William Sugden & sons Limited,Management & Support Services,5,202312,09/03/2023,P6,9105297,-292.80 ,292.80 ,B314,Stock,9999,Default,244.00 
Nottinghamshire Fire and Rescue Service,102376,Bristol Uniforms Limited,Bristol Uniforms Limited,Management & Support Services,1,202312,10/03/2023,P6,9105302,"-1,770.36 ","1,770.36 ",B314,Stock,9999,Default,"1,475.30 "
Nottinghamshire Fire and Rescue Service,103242,New Balance Athletic Shoes (UK) Limited,New Balance Athletic Shoes (UK) Limited,Management & Support Services,5,202312,10/03/2023,P6,9105328,-836.09 ,836.09 ,B314,Stock,9999,Default,696.74 
Nottinghamshire Fire and Rescue Service,104020,MPL (Yorkshire) Ltd,MPL (Yorkshire) Ltd,Management & Support Services,5,202312,14/03/2023,P6,9105393,-331.68 ,331.68 ,B314,Stock,9999,Default,276.40 
Nottinghamshire Fire and Rescue Service,104268,Ukplanettools,Ukplanettools,Management & Support Services,5,202312,09/03/2023,P6,9105395,"-5,640.00 ","5,640.00 ",B314,Stock,9999,Default,"4,700.00 "
Nottinghamshire Fire and Rescue Service,102101,H-Squared,H-Squared,Management & Support Services,1,202312,14/03/2023,P6,9105414,-279.36 ,279.36 ,B314,Stock,9999,Default,232.80 
Nottinghamshire Fire and Rescue Service,100299,FireAngel Safety Technology Limited,FireAngel Safety Technology Limited,Management & Support Services,1,202312,07/03/2023,P6,9105461,"-1,126.80 ","1,126.80 ",B314,Stock,9999,Default,939.00 
Nottinghamshire Fire and Rescue Service,102309,Walter Frank & Sons Limited,Walter Frank & Sons Limited,Management & Support Services,1,202312,07/03/2023,P6,9105478,-536.40 ,536.40 ,B314,Stock,9999,Default,447.00 
Nottinghamshire Fire and Rescue Service,100468,Specialised Canvas Group,Specialised Canvas Group,Management & Support Services,1,202312,14/03/2023,P6,9105479,-321.87 ,321.87 ,B314,Stock,9999,Default,252.62 
Nottinghamshire Fire and Rescue Service,100357,Eastern Shires Purchasing Organisation,Eastern Shires Purchasing Organisation,Management & Support Services,1,202312,14/03/2023,P6,9105482,-413.88 ,413.88 ,B314,Stock,9999,Default,344.90 
Nottinghamshire Fire and Rescue Service,100357,Eastern Shires Purchasing Organisation,Eastern Shires Purchasing Organisation,Management & Support Services,1,202312,14/03/2023,P6,9105483,-955.57 ,955.57 ,B314,Stock,9999,Default,800.63 
Nottinghamshire Fire and Rescue Service,102752,K B Packaging,K B Packaging,Management & Support Services,5,202312,16/03/2023,P6,9105487,-400.80 ,400.80 ,B314,Stock,9999,Default,334.00 
Nottinghamshire Fire and Rescue Service,100299,FireAngel Safety Technology Limited,FireAngel Safety Technology Limited,Management & Support Services,1,202312,20/03/2023,P6,9105489,"-1,869.12 ","1,869.12 ",B314,Stock,9999,Default,"1,557.60 "
Nottinghamshire Fire and Rescue Service,102190,Dot Promotional Clothing,Dot Promotional Clothing,Management & Support Services,1,202312,15/03/2023,P6,9105495,"-1,180.80 ","1,180.80 ",B314,Stock,9999,Default,984.00 
Nottinghamshire Fire and Rescue Service,102376,Bristol Uniforms Limited,Bristol Uniforms Limited,Management & Support Services,1,202312,22/03/2023,P6,9105521,-581.98 ,581.98 ,B314,Stock,9999,Default,484.98 
Nottinghamshire Fire and Rescue Service,102376,Bristol Uniforms Limited,Bristol Uniforms Limited,Management & Support Services,1,202312,15/03/2023,P6,9105549,"-1,267.87 ","1,267.87 ",B314,Stock,9999,Default,"1,056.56 "
Nottinghamshire Fire and Rescue Service,104201,BlockaboxLimited,BlockaboxLimited,Management & Support Services,5,202312,23/03/2023,P6,9105555,-695.00 ,695.00 ,B314,Stock,9999,Default,150.00 
Nottinghamshire Fire and Rescue Service,104201,BlockaboxLimited,BlockaboxLimited,Management & Support Services,5,202312,23/03/2023,P6,9105555,-695.00 ,695.00 ,B314,Stock,9999,Default,525.00 
Nottinghamshire Fire and Rescue Service,102376,Bristol Uniforms Limited,Bristol Uniforms Limited,Management & Support Services,1,202312,22/03/2023,P6,9105560,-996.59 ,996.59 ,B314,Stock,9999,Default,830.49 
Nottinghamshire Fire and Rescue Service,103094,Draeger Safety UK Limited,Draeger Safety UK Limited,Management & Support Services,5,202312,24/03/2023,P6,9105664,-720.00 ,720.00 ,B314,Stock,9999,Default,600.00 
Nottinghamshire Fire and Rescue Service,103094,Draeger Safety UK Limited,Draeger Safety UK Limited,Management & Support Services,5,202312,24/03/2023,P6,9105667,"-1,368.82 ","1,368.82 ",B314,Stock,9999,Default,"1,140.68 "
Nottinghamshire Fire and Rescue Service,102376,Bristol Uniforms Limited,Bristol Uniforms Limited,Management & Support Services,1,202312,13/03/2023,P6,9105678,"-4,129.13 ","4,129.13 ",B314,Stock,9999,Default,"3,440.94 "
Nottinghamshire Fire and Rescue Service,102101,H-Squared,H-Squared,Management & Support Services,1,202312,24/03/2023,P6,9105680,-260.16 ,260.16 ,B314,Stock,9999,Default,216.80 
Nottinghamshire Fire and Rescue Service,102306,Northern Diver (International) Ltd,Northern Diver (International) Ltd,Management & Support Services,1,202312,06/03/2023,P6,9105682,-359.40 ,359.40 ,B314,Stock,9999,Default,290.00 
Nottinghamshire Fire and Rescue Service,102306,Northern Diver (International) Ltd,Northern Diver (International) Ltd,Management & Support Services,1,202312,06/03/2023,P6,9105684,"-1,206.00 ","1,206.00 ",B314,Stock,9999,Default,986.00 
Nottinghamshire Fire and Rescue Service,102376,Bristol Uniforms Limited,Bristol Uniforms Limited,Management & Support Services,1,202312,28/03/2023,P6,9105687,-570.48 ,570.48 ,B314,Stock,9999,Default,475.40 
Nottinghamshire Fire and Rescue Service,102280,Amptron Electrical Services,Amptron Electrical Services,Management & Support Services,1,202312,23/03/2023,P6,9105535,"-16,642.91 ","16,642.91 ",C000,Vehicle Equipment,4200,Equipment Capital Programme,"13,869.09 "
Nottinghamshire Fire and Rescue Service,102280,Amptron Electrical Services,Amptron Electrical Services,Management & Support Services,1,202312,23/03/2023,P6,9105536,"-10,731.96 ","10,731.96 ",C000,Vehicle Equipment,4200,Equipment Capital Programme,"8,943.30 "
Nottinghamshire Fire and Rescue Service,102280,Amptron Electrical Services,Amptron Electrical Services,Management & Support Services,1,202312,30/03/2023,P6,9105824,"-49,455.48 ","49,455.48 ",C103,External Works,4100,Fire Station Improvement & Refurbishments,"41,212.90 "
Nottinghamshire Fire and Rescue Service,102280,Amptron Electrical Services,Amptron Electrical Services,Management & Support Services,1,202312,22/03/2023,P6,9105538,-780.00 ,780.00 ,C104,Electrical / IT Comms /Printers Etc,4100,Fire Station Improvement & Refurbishments,650.00 
Nottinghamshire Fire and Rescue Service,102280,Amptron Electrical Services,Amptron Electrical Services,Management & Support Services,1,202312,30/03/2023,P6,9105786,-300.00 ,300.00 ,C104,Electrical / IT Comms /Printers Etc,4101,Non Operational Buildings Improvements & Refurbishments,250.00 
Nottinghamshire Fire and Rescue Service,101712,Browne Jacobson LLP,Browne Jacobson LLP,Management & Support Services,1,202312,26/01/2023,P6,9105511,"-2,481.84 ","2,481.84 ",C157,Professional Fees - Legal,4102,Strategic New Build Projects,141.20 
Nottinghamshire Fire and Rescue Service,101712,Browne Jacobson LLP,Browne Jacobson LLP,Management & Support Services,1,202312,26/01/2023,P6,9105511,"-2,481.84 ","2,481.84 ",C157,Professional Fees - Legal,4102,Strategic New Build Projects,996.50 
Nottinghamshire Fire and Rescue Service,102979,Planet IT Limited,Planet IT Limited,Management & Support Services,5,202312,09/03/2023,P6,9105283,"-2,784.00 ","2,784.00 ",C200,Hardware,4300,ICT Capital Programme,"2,320.00 "
Nottinghamshire Fire and Rescue Service,103814,Ergo Computing UK,Ergo Computing UK,Management & Support Services,5,202312,03/03/2023,P6,9105312,"-17,255.27 ","17,255.27 ",C200,Hardware,4300,ICT Capital Programme,"14,379.39 "
Nottinghamshire Fire and Rescue Service,102979,Planet IT Limited,Planet IT Limited,Management & Support Services,5,202312,31/03/2023,P6,9105797,"-1,928.98 ","1,928.98 ",C200,Hardware,4300,ICT Capital Programme,"1,607.48 "
Nottinghamshire Fire and Rescue Service,102072,Civica Uk Limited,Civica Uk Limited,Management & Support Services,1,202312,21/12/2022,P6,9105226,"-1,860.00 ","1,860.00 ",C201,Software and Licences,4300,ICT Capital Programme,"1,550.00 "
Nottinghamshire Fire and Rescue Service,102072,Civica Uk Limited,Civica Uk Limited,Management & Support Services,1,202312,22/02/2023,P6,9105675,"-5,760.00 ","5,760.00 ",C201,Software and Licences,4300,ICT Capital Programme,"4,800.00 "
Nottinghamshire Fire and Rescue Service,103003,Caretower Limited,Caretower Limited,Management & Support Services,5,202312,15/03/2023,P6,9105771,"-15,480.00 ","15,480.00 ",C201,Software and Licences,4300,ICT Capital Programme,"12,900.00 "
Nottinghamshire Fire and Rescue Service,103344,Bytes Software Services Ltd,Bytes Software Services Ltd,Management & Support Services,5,202312,24/02/2023,P6,9105196,"-5,760.00 ","5,760.00 ",C202,Consultancy and Services,4300,ICT Capital Programme,"4,800.00 "
Nottinghamshire Fire and Rescue Service,104197,NTG Consultants Limited,NTG Consultants Limited,Management & Support Services,5,202312,03/03/2023,P6,9105213,"-1,620.00 ","1,620.00 ",C202,Consultancy and Services,2049,Professional Support,"1,350.00 "
Nottinghamshire Fire and Rescue Service,103483,Risual Limited,Risual Limited,Management & Support Services,5,202312,28/02/2023,P6,9105230,"-9,360.00 ","9,360.00 ",C202,Consultancy and Services,4300,ICT Capital Programme,"7,800.00 "
Nottinghamshire Fire and Rescue Service,104197,NTG Consultants Limited,NTG Consultants Limited,Management & Support Services,5,202312,10/03/2023,P6,9105316,-810.00 ,810.00 ,C202,Consultancy and Services,2049,Professional Support,675.00 
Nottinghamshire Fire and Rescue Service,100224,Delta Fire,Delta Fire,Management & Support Services,1,202312,23/03/2023,P6,9105593,"-10,269.48 ","10,269.48 ",C300,Other Equipment - Purchase,4200,Equipment Capital Programme,"8,557.90 "
Nottinghamshire Fire and Rescue Service,100224,Delta Fire,Delta Fire,Management & Support Services,1,202312,23/03/2023,P6,9105595,-903.00 ,903.00 ,C300,Other Equipment - Purchase,4200,Equipment Capital Programme,752.50 
Nottinghamshire Fire and Rescue Service,100114,Goliath Footwear Ltd,Goliath Footwear Ltd,Management & Support Services,1,202312,16/03/2023,P6,9105402,-268.28 ,268.28 ,C301,Operational Equipment - Purchase,4200,Equipment Capital Programme,215.56 
Nottinghamshire Fire and Rescue Service,100479,MedTree,MedTree,Management & Support Services,1,202312,15/03/2023,P6,9105413,-682.14 ,682.14 ,C301,Operational Equipment - Purchase,4200,Equipment Capital Programme,562.50 
Nottinghamshire Fire and Rescue Service,103010,Rig Equipment Limited,Rig Equipment Limited,Management & Support Services,5,202312,22/03/2023,P6,9105557,-416.10 ,416.10 ,C301,Operational Equipment - Purchase,4200,Equipment Capital Programme,337.00 
Nottinghamshire Fire and Rescue Service,102306,Northern Diver (International) Ltd,Northern Diver (International) Ltd,Management & Support Services,1,202312,28/03/2023,P6,9105652,"-5,587.20 ","5,587.20 ",C301,Operational Equipment - Purchase,4200,Equipment Capital Programme,"4,656.00 "
Nottinghamshire Fire and Rescue Service,102306,Northern Diver (International) Ltd,Northern Diver (International) Ltd,Management & Support Services,1,202312,28/03/2023,P6,9105653,"-20,692.80 ","20,692.80 ",C301,Operational Equipment - Purchase,4200,Equipment Capital Programme,"17,244.00 "
Nottinghamshire Fire and Rescue Service,102532,Safequip Ltd,Safequip Ltd,Management & Support Services,1,202312,30/03/2023,P6,9105813,"-2,610.00 ","2,610.00 ",C301,Operational Equipment - Purchase,4200,Equipment Capital Programme,"2,175.00 "
Nottinghamshire Fire and Rescue Service,104132,West Yorkshire Pension Fund,West Yorkshire Pension Fund,Management & Support Services,5,202312,27/03/2023,P6,9105660,"-78,664.52 ","78,664.52 ",P204,Annual Allowance - scheme pays,5999,Pension Fund,"5,380.26 "
Nottinghamshire Fire and Rescue Service,104132,West Yorkshire Pension Fund,West Yorkshire Pension Fund,Management & Support Services,5,202312,27/03/2023,P6,9105660,"-78,664.52 ","78,664.52 ",P204,Annual Allowance - scheme pays,5999,Pension Fund,"6,966.45 "
Nottinghamshire Fire and Rescue Service,104132,West Yorkshire Pension Fund,West Yorkshire Pension Fund,Management & Support Services,5,202312,27/03/2023,P6,9105660,"-78,664.52 ","78,664.52 ",P204,Annual Allowance - scheme pays,5999,Pension Fund,"8,196.80 "
Nottinghamshire Fire and Rescue Service,104132,West Yorkshire Pension Fund,West Yorkshire Pension Fund,Management & Support Services,5,202312,27/03/2023,P6,9105660,"-78,664.52 ","78,664.52 ",P941,Tax payable on behalf of Members,5999,Pension Fund,"1,475.02 "
Nottinghamshire Fire and Rescue Service,104132,West Yorkshire Pension Fund,West Yorkshire Pension Fund,Management & Support Services,5,202312,27/03/2023,P6,9105660,"-78,664.52 ","78,664.52 ",P941,Tax payable on behalf of Members,5999,Pension Fund,"1,632.03 "
Nottinghamshire Fire and Rescue Service,104132,West Yorkshire Pension Fund,West Yorkshire Pension Fund,Management & Support Services,5,202312,27/03/2023,P6,9105660,"-78,664.52 ","78,664.52 ",P941,Tax payable on behalf of Members,5999,Pension Fund,"2,374.43 "
Nottinghamshire Fire and Rescue Service,104132,West Yorkshire Pension Fund,West Yorkshire Pension Fund,Management & Support Services,5,202312,27/03/2023,P6,9105660,"-78,664.52 ","78,664.52 ",P941,Tax payable on behalf of Members,5999,Pension Fund,"2,941.94 "
Nottinghamshire Fire and Rescue Service,104132,West Yorkshire Pension Fund,West Yorkshire Pension Fund,Management & Support Services,5,202312,27/03/2023,P6,9105660,"-78,664.52 ","78,664.52 ",P941,Tax payable on behalf of Members,5999,Pension Fund,"3,117.96 "
Nottinghamshire Fire and Rescue Service,104132,West Yorkshire Pension Fund,West Yorkshire Pension Fund,Management & Support Services,5,202312,27/03/2023,P6,9105660,"-78,664.52 ","78,664.52 ",P941,Tax payable on behalf of Members,5999,Pension Fund,"3,212.13 "
Nottinghamshire Fire and Rescue Service,104132,West Yorkshire Pension Fund,West Yorkshire Pension Fund,Management & Support Services,5,202312,27/03/2023,P6,9105660,"-78,664.52 ","78,664.52 ",P941,Tax payable on behalf of Members,5999,Pension Fund,"3,315.28 "
Nottinghamshire Fire and Rescue Service,104132,West Yorkshire Pension Fund,West Yorkshire Pension Fund,Management & Support Services,5,202312,27/03/2023,P6,9105660,"-78,664.52 ","78,664.52 ",P941,Tax payable on behalf of Members,5999,Pension Fund,"3,761.52 "
Nottinghamshire Fire and Rescue Service,104132,West Yorkshire Pension Fund,West Yorkshire Pension Fund,Management & Support Services,5,202312,27/03/2023,P6,9105660,"-78,664.52 ","78,664.52 ",P941,Tax payable on behalf of Members,5999,Pension Fund,"4,219.69 "
Nottinghamshire Fire and Rescue Service,104132,West Yorkshire Pension Fund,West Yorkshire Pension Fund,Management & Support Services,5,202312,27/03/2023,P6,9105660,"-78,664.52 ","78,664.52 ",P941,Tax payable on behalf of Members,5999,Pension Fund,"5,774.32 "
Nottinghamshire Fire and Rescue Service,104132,West Yorkshire Pension Fund,West Yorkshire Pension Fund,Management & Support Services,5,202312,27/03/2023,P6,9105660,"-78,664.52 ","78,664.52 ",P941,Tax payable on behalf of Members,5999,Pension Fund,"6,458.43 "
Nottinghamshire Fire and Rescue Service,104132,West Yorkshire Pension Fund,West Yorkshire Pension Fund,Management & Support Services,5,202312,27/03/2023,P6,9105660,"-78,664.52 ","78,664.52 ",P941,Tax payable on behalf of Members,5999,Pension Fund,"8,401.12 "
,***Note:,,,,,,,,,,,,,,,
,"***The report shows the payment in its original form. This means disaggregating many invoices into individual component payments many of which will be less than £250 in their own right. This explains why you will see many of the amounts showing less than £250. They were, however, paid as part of an invoice of £250 or more.

**** The Invoice date is the date issued on the invoice. This date may fall out of the date range for the report. In most cases this is due to the invoice being received  late.",,,,,,,,,,,,,,,